Service Area,Service Division,Expense Type,Expense Code,Detailed Expense Type,Payment Date,Transaction Number,Amount Exc VAT,Supplier Name
Transformation and Partnerships,Comms & Information Management,Supplies and Services,332029,Printing Stationery and Gen Off Exps,01/08/2018,3471898-61091,"13,415.27",ACORN WEB OFFSET LTD.
Regeneration and Local Services,Technical Services,Supplies and Services,304221,Equipment and Materials,01/08/2018,3471903-26828496,"2,002.08",AGGREGATE INDUSTRIES UK LTD.
Regeneration and Local Services,Technical Services,Supplies and Services,304221,Equipment and Materials,01/08/2018,3471903-26828498,"1,112.88",AGGREGATE INDUSTRIES UK LTD.
Regeneration and Local Services,Culture & Sport,Supplies and Services,384199,Miscellaneous Expenses,01/08/2018,3471905-17-1807,677.00,ALEX SNEATH.
Regeneration and Local Services,Direct Services,Third Party Payments 4THIRD,430100,Rendered by Private Contractors,01/08/2018,3471911-INV-2769,595.25,ANNFIELD AUTO SERVICES.
Children and Young Peoples Services,Head of Education and Skills,Supplies and Services,312009,Newspapers books and periodicals E312,01/08/2018,3471916-5775662,985.59,ASKEWS & HOLTS LIBRARY SERVICES LTD.
Adult and Health Services,Commissioning inc Supporting People,Third Party Payments 4THIRD,442002,Supporting People E442,01/08/2018,3471926-1967922,"16,448.04",BID SERVICES WITH DEAF PEOPLE.
Regeneration and Local Services,Economic Development and Housing,Supplies and Services,338066,Services,01/08/2018,3471942-178,"2,175.00",BRYAN LATTY (FREELANCE CONSULTANT).
Children and Young Peoples Services,Head of Education and Skills,Transfer Payments,510027,School Children,01/08/2018,3471943-JACOBHDOB24/10/2015-9/7/18,688.50,BUDDIES CHILDCARE CENTRE.
Children and Young Peoples Services,Head of Education and Skills,Transfer Payments,510027,School Children,01/08/2018,3471943-WWDOB4/10/13-9/7/18,535.50,BUDDIES CHILDCARE CENTRE.
Regeneration and Local Services,Economic Development and Housing,Third Party Payments 4THIRD,460305,Contract Payments,01/08/2018,3471947-RED-07-2018-173,"16,577.93",BUSINESS & ENTERPRISE COMMERCIAL LTD T/A BE GROUP.
Regeneration and Local Services,Culture & Sport,Supplies and Services,338047,Services,01/08/2018,3471950-E010,"1,047.67",CAP-A-PIE ENGAGEMENTS.
Regeneration and Local Services,Economic Development and Housing,Premises,108251,Service Repairs and Maintenance,01/08/2018,3471959-4488,"1,210.86",CATHEDRAL LOCK & SAFE SERVICES LTD.
Regeneration and Local Services,Technical Services,Supplies and Services,304221,Equipment and Materials,01/08/2018,3471961-3010672746,"1,619.04",CEMEX UK MATERIALS LTD.
Children and Young Peoples Services,Head of Education and Skills,Transport,230007,Contract Hire,01/08/2018,3471969-46398,"1,875.00",CHRISTOPHER JAMES GRIERSON T/A GRIERSONS COACHES.
Children and Young Peoples Services,Head of Education and Skills,Transport,230003,Contract Hire,01/08/2018,3471969-46395,"2,086.00",CHRISTOPHER JAMES GRIERSON T/A GRIERSONS COACHES.
Children and Young Peoples Services,Head of Education and Skills,Transport,230003,Contract Hire,01/08/2018,3471969-46397,"5,580.00",CHRISTOPHER JAMES GRIERSON T/A GRIERSONS COACHES.
Children and Young Peoples Services,Head of Education and Skills,Transport,230003,Contract Hire,01/08/2018,3471969-46399,"2,100.00",CHRISTOPHER JAMES GRIERSON T/A GRIERSONS COACHES.
Children and Young Peoples Services,Head of Education and Skills,Transport,230003,Contract Hire,01/08/2018,3471969-46400,"1,950.00",CHRISTOPHER JAMES GRIERSON T/A GRIERSONS COACHES.
Regeneration and Local Services,Economic Development and Housing,Supplies and Services,338099,Services,01/08/2018,3471973-RED-07-2018-182,500.00,CLARKE SAWKILL.
Regeneration and Local Services,Technical Services,Premises,150015,Apportioned Exps of Operational Blds,01/08/2018,3471975-92346,821.40,CLEE HILL PLANT LTD.
Regeneration and Local Services,Technical Services,Premises,150015,Apportioned Exps of Operational Blds,01/08/2018,3471975-92347,821.40,CLEE HILL PLANT LTD.
Regeneration and Local Services,Technical Services,Premises,150015,Apportioned Exps of Operational Blds,01/08/2018,3471975-92348,"8,747.91",CLEE HILL PLANT LTD.
Regeneration and Local Services,Technical Services,Premises,150015,Apportioned Exps of Operational Blds,01/08/2018,3471975-94605,862.47,CLEE HILL PLANT LTD.
Regeneration and Local Services,Technical Services,Premises,150015,Apportioned Exps of Operational Blds,01/08/2018,3471975-94606,862.47,CLEE HILL PLANT LTD.
Regeneration and Local Services,Technical Services,Premises,150015,Apportioned Exps of Operational Blds,01/08/2018,3471975-94607,862.47,CLEE HILL PLANT LTD.
Regeneration and Local Services,Technical Services,Premises,150015,Apportioned Exps of Operational Blds,01/08/2018,3471975-94608,862.47,CLEE HILL PLANT LTD.
Children and Young Peoples Services,Head of Education and Skills,Transport,230007,Contract Hire,01/08/2018,3471976-1056,"1,200.00",CLIVE HUBERY.
Regeneration and Local Services,Direct Services,Third Party Payments 4THIRD,460305,Contract Payments,01/08/2018,3471978-4348,"1,260.00",CO-WHEELS CAR CLUB CIC.
Regeneration and Local Services,Direct Services,Third Party Payments 4THIRD,460305,Contract Payments,01/08/2018,3471978-4394,"1,260.00",CO-WHEELS CAR CLUB CIC.
Regeneration and Local Services,Direct Services,Third Party Payments 4THIRD,460305,Contract Payments,01/08/2018,3471978-4478,"1,260.00",CO-WHEELS CAR CLUB CIC.
Adult and Health Services,Commissioning inc Supporting People,Third Party Payments 4THIRD,442002,Supporting People E442,01/08/2018,3471995-1967902,"19,868.48",CREATIVE SUPPORT LTD.
Children and Young Peoples Services,Head of Education and Skills,Transport,230009,Contract Hire,01/08/2018,3471997-108052,"1,374.94",CROFT BUSINESS SERVICES (UK) LTD T/A CROFT TAXIS.
Dedicated Schools Grant,DSG High Needs Block,Transport,230010,Contract Hire,01/08/2018,3471997-108068,"1,197.00",CROFT BUSINESS SERVICES (UK) LTD T/A CROFT TAXIS.
Dedicated Schools Grant,DSG High Needs Block,Third Party Payments 4THIRD,425005,Rendered by Voluntary Organisations,01/08/2018,3472000-BUR0045773,"2,220.00",CYGNET HEALTHCARE LTD.
Children and Young Peoples Services,Head of Education and Skills,Transport,230007,Contract Hire,01/08/2018,3472004-1589,600.00,DA TAXIS.
Children and Young Peoples Services,Head of Education and Skills,Transport,230006,Contract Hire,01/08/2018,3472004-1588,"1,245.00",DA TAXIS.
Children and Young Peoples Services,Head of Education and Skills,Transport,230008,Contract Hire,01/08/2018,3472004-1590,"1,125.00",DA TAXIS.
Children and Young Peoples Services,Head of Education and Skills,Transport,230008,Contract Hire,01/08/2018,3472004-1591,720.00,DA TAXIS.
Children and Young Peoples Services,Head of Education and Skills,Transport,230008,Contract Hire,01/08/2018,3472005-285,743.40,DA TRAVEL.
Children and Young Peoples Services,Head of Education and Skills,Transport,230008,Contract Hire,01/08/2018,3472005-286,930.00,DA TRAVEL.
Children and Young Peoples Services,Head of Education and Skills,Transport,230008,Contract Hire,01/08/2018,3472005-287,870.00,DA TRAVEL.
Children and Young Peoples Services,Head of Education and Skills,Transport,230008,Contract Hire,01/08/2018,3472009-A74,"1,425.00",DAVES TAXIS.
Children and Young Peoples Services,Head of Education and Skills,Transport,230008,Contract Hire,01/08/2018,3472009-A75,975.00,DAVES TAXIS.
Children and Young Peoples Services,Head of Education and Skills,Transport,230008,Contract Hire,01/08/2018,3472009-A76,825.00,DAVES TAXIS.
Children and Young Peoples Services,Head of Education and Skills,Transport,230008,Contract Hire,01/08/2018,3472009-A77,525.00,DAVES TAXIS.
Children and Young Peoples Services,Head of Education and Skills,Transport,230007,Contract Hire,01/08/2018,310546-50,"1,200.00",DAVID WILKINSON...
Regeneration and Local Services,Direct Services,Third Party Payments 4THIRD,430100,Rendered by Private Contractors,01/08/2018,3472014-96360408,"1,431.67",DENNIS EAGLE LTD T/A TERBERG MATEC (UK) LTD.
Resources,Legal & Democratic Services,Supplies and Services,338042,Services,01/08/2018,3472016-337663/INVDR539,750.00,DERE STREET BARRISTERS.
Resources,Legal & Democratic Services,Supplies and Services,338042,Services,01/08/2018,3472016-337829/INVEMC197,"3,400.00",DERE STREET BARRISTERS.
Regeneration and Local Services,Direct Services,Third Party Payments 4THIRD,430101,Rendered by Private Contractors,01/08/2018,3472023-IV1010651,"2,291.15",DIRECT TYRE MANAGEMENT LTD (DTM).
Children and Young Peoples Services,Head of Childrens Social Care,Supplies and Services,338044,Services,01/08/2018,3472025-SI-213,695.92,DR SUSAN COOPER.
Adult and Health Services,Commissioning inc Supporting People,Third Party Payments 4THIRD,441001,Supporting People E441,01/08/2018,3472026-1967941,"20,819.76",DURHAM ACTION ON SINGLE HOUSING.
Adult and Health Services,Commissioning inc Supporting People,Third Party Payments 4THIRD,443001,Supporting People E443,01/08/2018,3472026-1967954,"2,582.86",DURHAM ACTION ON SINGLE HOUSING.
Adult and Health Services,Commissioning inc Supporting People,Third Party Payments 4THIRD,441001,Supporting People E441,01/08/2018,3472032-1967919,"5,483.40",EAST DURHAM COMMUNITY INITIATIVES LTD.
Regeneration and Local Services,Direct Services,Supplies and Services,304221,Equipment and Materials,01/08/2018,3472034-059-225974,"6,095.33",EDMUNDSON ELECTRICAL LTD.
Dedicated Schools Grant,DSG High Needs Block,Third Party Payments 4THIRD,440080,Other third party payments E440,01/08/2018,3472037-1001641,"7,674.41",EDUCATION VILLAGE ACADEMY TRUST.*
Adult and Health Services,Commissioning inc Supporting People,Third Party Payments 4THIRD,442002,Supporting People E442,01/08/2018,3472062-1967943,"2,863.28",FOUNDATION.
Adult and Health Services,Commissioning inc Supporting People,Third Party Payments 4THIRD,442002,Supporting People E442,01/08/2018,3472062-1967950,"19,776.44",FOUNDATION.
Adult and Health Services,Commissioning inc Supporting People,Third Party Payments 4THIRD,442002,Supporting People E442,01/08/2018,3472063-1967942,"32,194.64",FOUR HOUSING GROUP & CARE & REPAIR HANDYPERSON SERVICE.
Children and Young Peoples Services,Head of Education and Skills,Transport,230008,Contract Hire,01/08/2018,3472072-000046,960.00,GP TAXIS.
Regeneration and Local Services,Direct Services,Third Party Payments 4THIRD,430100,Rendered by Private Contractors,01/08/2018,3472075-147018,"1,707.65",GREENLAY (GRASS MACHINERY) LTD.
Regeneration and Local Services,Transport and Contracted Services,Supplies and Services,384540,Miscellaneous Expenses,01/08/2018,3472077-INV-0089,612.50,GRM MAPPING LTD.
Adult and Health Services,Commissioning inc Supporting People,Third Party Payments 4THIRD,442002,Supporting People E442,01/08/2018,3472080-1967960,"3,297.48",HANOVER HOUSING ASSOCIATION.
Adult and Health Services,Commissioning inc Supporting People,Third Party Payments 4THIRD,441001,Supporting People E441,01/08/2018,3472081-1967903,"18,082.80",HARBOUR SUPPORT SERVICES.
Children and Young Peoples Services,"Head of Early Help, Inclusion and Vulnerable Children",Supplies and Services,352001,Conference Expenses,01/08/2018,3472083-0040267030,715.00,HARTLEPOOL BOROUGH COUNCIL.
Adult and Health Services,Head of Adults,Third Party Payments 4THIRD,472101,Purchase of Care,01/08/2018,3472089-HCL114,"5,789.82",HIGHLEA CARE LTD.
Regeneration and Local Services,Technical Services,Third Party Payments 4THIRD,430100,Rendered by Private Contractors,01/08/2018,3472090-2787,"7,342.80",HIGHWAY CONSTRUCTION SERVICES LTD.
Regeneration and Local Services,Direct Services,Third Party Payments 4THIRD,430100,Rendered by Private Contractors,01/08/2018,3472092-73820,754.41,HOGARTH COACHWORKS LTD.
Children and Young Peoples Services,Head of Education and Skills,Transport,230006,Contract Hire,01/08/2018,3472095-INV204,883.00,HORNDALE TAXIS LTD.
Adult and Health Services,Commissioning inc Supporting People,Third Party Payments 4THIRD,442002,Supporting People E442,01/08/2018,3472099-1967901,"5,668.48",HUMANKIND CHARITY (FORMERLY DISC LTD).
Adult and Health Services,Commissioning inc Supporting People,Third Party Payments 4THIRD,442002,Supporting People E442,01/08/2018,3472099-1967948,"27,885.68",HUMANKIND CHARITY (FORMERLY DISC LTD).
Transformation and Partnerships,Comms & Information Management,Supplies and Services,384199,Miscellaneous Expenses,01/08/2018,3472104-111240,"1,200.00",IDOX SOFTWARE LTD.
Regeneration and Local Services,Economic Development and Housing,Supplies and Services,336005,Advertising E336,01/08/2018,3472124-MPB718532,900.00,JOHNSTON PUBLISHING LTD.
Regeneration and Local Services,Technical Services,Supplies and Services,304221,Equipment and Materials,01/08/2018,3472126-BII257044,616.28,JT DOVE LTD.
Regeneration and Local Services,Technical Services,Supplies and Services,304221,Equipment and Materials,01/08/2018,3472126-BII262410,665.62,JT DOVE LTD.
Regeneration and Local Services,Technical Services,Stock A926,926900,Stock in hand-Inventory system,01/08/2018,3472126-BII258464,910.88,JT DOVE LTD.
Regeneration and Local Services,Technical Services,Stock A926,926900,Stock in hand-Inventory system,01/08/2018,3472126-STI483496,"1,621.74",JT DOVE LTD.
Regeneration and Local Services,Spatial Policy Planning Assets & Environment,Supplies and Services,338066,Services,01/08/2018,3472127-972,"4,627.25",JW BAINBRIDGE CONTRACTORS LTD.
Regeneration and Local Services,Spatial Policy Planning Assets & Environment,Supplies and Services,338066,Services,01/08/2018,3472127-973,"2,476.00",JW BAINBRIDGE CONTRACTORS LTD.
Regeneration and Local Services,Direct Services,Supplies and Services,304221,Equipment and Materials,01/08/2018,3472135-SAJ/2018/184903,976.20,LBS WORLDWIDE LTD T/A FRESH2O GLOBAL.
Children and Young Peoples Services,"Head of Early Help, Inclusion and Vulnerable Children",Supplies and Services,308011,Furniture,01/08/2018,3472141-2792,"1,295.00",LINK DESIGN LTD.
Dedicated Schools Grant,DSG High Needs Block,Third Party Payments 4THIRD,440080,Other third party payments E440,01/08/2018,3472150-1001581,"9,860.22",MARCHBANK FREE SCHOOL.
Dedicated Schools Grant,DSG High Needs Block,Third Party Payments 4THIRD,440080,Other third party payments E440,01/08/2018,3472150-1001695,"7,463.95",MARCHBANK FREE SCHOOL.
Adult and Health Services,Commissioning inc Supporting People,Third Party Payments 4THIRD,442002,Supporting People E442,01/08/2018,3472155-1967904,"5,469.72",MENTAL HEALTH MATTERS.
Adult and Health Services,Commissioning inc Supporting People,Third Party Payments 4THIRD,442002,Supporting People E442,01/08/2018,3472159-1967961,"2,620.48",MOVING ON.
Children and Young Peoples Services,Head of Education and Skills,Transport,230008,Contract Hire,01/08/2018,3472161-11-JULY18,900.00,MR BW YOUNG T/A ESH TAXIS.
Children and Young Peoples Services,Head of Childrens Social Care,Supplies and Services,338044,Services,01/08/2018,3472164-RES-07-2018-115,"1,000.00",MR PG RICHARDS (CONSULTANT).
Children and Young Peoples Services,Head of Education and Skills,Supplies and Services,338045,Services,01/08/2018,3472166-107519/A,735.00,MR PHILIP MORLEY (FOUNTAIN CHAMBERS).
Regeneration and Local Services,EnvironmentHealth & Consumer Protection,Supplies and Services,338045,Services,01/08/2018,3472168-107006,750.00,MR SCOTT SMITH. (FOUNTAIN CHAMBERS).
Transformation and Partnerships,Comms & Information Management,Supplies and Services,304259,Equipment and Materials,01/08/2018,310582-40013025,"1,414.00",NATIONAL RECORDS OF SCOTLAND.
Transformation and Partnerships,Comms & Information Management,Supplies and Services,336005,Advertising E336,01/08/2018,3472181-25180522,"1,500.00",NEWSQUEST (YORKSHIRE & NORTH EAST) LTD.
Transformation and Partnerships,Comms & Information Management,Supplies and Services,336005,Advertising E336,01/08/2018,3472181-25439189,"1,875.00",NEWSQUEST (YORKSHIRE & NORTH EAST) LTD.
Transformation and Partnerships,Comms & Information Management,Supplies and Services,336005,Advertising E336,01/08/2018,3472181-25439199,"1,875.00",NEWSQUEST (YORKSHIRE & NORTH EAST) LTD.
Dedicated Schools Grant,DSG High Needs Block,Third Party Payments 4THIRD,425005,Rendered by Voluntary Organisations,01/08/2018,3472185-0000036234,"25,456.66",NORTH EAST AUTISM SOCIETY.
Dedicated Schools Grant,DSG High Needs Block,Third Party Payments 4THIRD,425005,Rendered by Voluntary Organisations,01/08/2018,3472185-0000037050,"1,296.00",NORTH EAST AUTISM SOCIETY.
Dedicated Schools Grant,DSG High Needs Block,Third Party Payments 4THIRD,425005,Rendered by Voluntary Organisations,01/08/2018,3472185-0000037051,"14,040.00",NORTH EAST AUTISM SOCIETY.
Regeneration and Local Services,Direct Services,Third Party Payments 4THIRD,430100,Rendered by Private Contractors,01/08/2018,3472188-DI20295194,"5,641.00",NORTHERN POWERGRID (NORTHEAST) LTD.
Adult and Health Services,Head of Adults,Third Party Payments 4THIRD,478151,Purchase of Care,01/08/2018,3472191-1707,"7,938.84",OAKLEA TRUST.
Regeneration and Local Services,Direct Services,Transport,215005,Running Costs of Vehicles,01/08/2018,3472194-341441,"3,005.88",OIL NRG LTD.
Resources,Digital and Customer Services,Supplies and Services,342051,Computers and Communications,01/08/2018,3472202-45089,"1,500.00",PANDA SECURITY UK LTD.
Regeneration and Local Services,Technical Services,Stock A926,926900,Stock in hand-Inventory system,01/08/2018,3472204-XL225166,"1,575.00",PARK ELECTRICAL DISTRIBUTORS LTD.
Regeneration and Local Services,Technical Services,Stock A926,926900,Stock in hand-Inventory system,01/08/2018,3472204-XL225171,615.00,PARK ELECTRICAL DISTRIBUTORS LTD.
Regeneration and Local Services,Technical Services,Third Party Payments 4THIRD,430100,Rendered by Private Contractors,01/08/2018,3472221-5160,"16,870.82",PINKNEY BUILDING CONTRACTORS LTD.
Resources,Digital and Customer Services,Supplies and Services,332029,Printing Stationery and Gen Off Exps,01/08/2018,3472230-660658,"1,079.00",POTTS PRINTERS LTD.
Resources,Digital and Customer Services,Supplies and Services,342051,Computers and Communications,01/08/2018,3472250-INV-32317,855.00,REDSTOR LTD.
Children and Young Peoples Services,Head of Education and Skills,Transport,230007,Contract Hire,01/08/2018,3472251-045-1198MAY18,"1,100.00",REDZ PRIVATE HIRE.
Adult and Health Services,Commissioning inc Supporting People,Third Party Payments 4THIRD,441001,Supporting People E441,01/08/2018,3472256-1967918,"9,423.88",RICHMOND FELLOWSHIP.
Adult and Health Services,Commissioning inc Supporting People,Third Party Payments 4THIRD,442002,Supporting People E442,01/08/2018,3472256-1967906,"7,356.72",RICHMOND FELLOWSHIP.
Adult and Health Services,Commissioning inc Supporting People,Third Party Payments 4THIRD,444002,Supporting People E444,01/08/2018,3472256-1967907,"3,698.40",RICHMOND FELLOWSHIP.
Children and Young Peoples Services,Head of Education and Skills,Supplies and Services,372009,Subscriptions E372,01/08/2018,3472263-INV-0260,"4,462.00",RSE INSIGHT LTD.
Adult and Health Services,Commissioning inc Supporting People,Third Party Payments 4THIRD,442002,Supporting People E442,01/08/2018,3472279-1967962,"6,331.08",SHAID LTD.
Regeneration and Local Services,Spatial Policy Planning Assets & Environment,Supplies and Services,352001,Conference Expenses,01/08/2018,3472282-10072018,"10,093.80",SHE`S GOTT IT.
Regeneration and Local Services,Direct Services,Transport,230710,Contract Hire,01/08/2018,3472290-105/18/16994,"2,250.00",SOCIETE GENERALE EQUIPMENT FINANCE LTD.
Regeneration and Local Services,Technical Services,Supplies and Services,304221,Equipment and Materials,01/08/2018,3472304-107302,"1,470.76",STONEGRAVE AGGREGATES LTD.
Adult and Health Services,Commissioning inc Supporting People,Third Party Payments 4THIRD,441001,Supporting People E441,01/08/2018,3472305-1967953,"54,465.72",STONHAM HOUSING ASSOCIATION LTD.
Adult and Health Services,Commissioning inc Supporting People,Third Party Payments 4THIRD,441001,Supporting People E441,01/08/2018,3472305-1967972,"15,342.48",STONHAM HOUSING ASSOCIATION LTD.
Adult and Health Services,Commissioning inc Supporting People,Third Party Payments 4THIRD,442002,Supporting People E442,01/08/2018,3472305-1967900,"113,942.68",STONHAM HOUSING ASSOCIATION LTD.
Adult and Health Services,Commissioning inc Supporting People,Third Party Payments 4THIRD,442002,Supporting People E442,01/08/2018,3472305-1967971,"27,962.72",STONHAM HOUSING ASSOCIATION LTD.
Adult and Health Services,Commissioning inc Supporting People,Third Party Payments 4THIRD,443001,Supporting People E443,01/08/2018,3472305-1967925,836.16,STONHAM HOUSING ASSOCIATION LTD.
Adult and Health Services,Commissioning inc Supporting People,Third Party Payments 4THIRD,443001,Supporting People E443,01/08/2018,3472305-1967968,"11,506.84",STONHAM HOUSING ASSOCIATION LTD.
Children and Young Peoples Services,Head of Education and Skills,Transport,230003,Contract Hire,01/08/2018,3472307-STNE0867,966.00,STYLE TRAVEL NORTH EAST.
Children and Young Peoples Services,Head of Education and Skills,Transport,230012,Contract Hire,01/08/2018,3472317-DCC/2018/039,"1,080.00",TAYLOR`S TAXIS.
Children and Young Peoples Services,Head of Education and Skills,Transport,230008,Contract Hire,01/08/2018,3472317-DCC/2018/036,"1,200.00",TAYLOR`S TAXIS.
Children and Young Peoples Services,Head of Education and Skills,Transport,230008,Contract Hire,01/08/2018,3472317-DCC/2018/037,"1,245.00",TAYLOR`S TAXIS.
Children and Young Peoples Services,Head of Education and Skills,Transport,230008,Contract Hire,01/08/2018,3472317-DCC/2018/038,"1,230.00",TAYLOR`S TAXIS.
Children and Young Peoples Services,Head of Education and Skills,Transport,230008,Contract Hire,01/08/2018,3472317-DCC/2018/040,"1,620.00",TAYLOR`S TAXIS.
Dedicated Schools Grant,DSG High Needs Block,Third Party Payments 4THIRD,440080,Other third party payments E440,01/08/2018,3472325-NBSI89,"11,453.96",THE ASCENT ACADEMIES TRUST T/A THE NEW BRIDGE ACADEMY.
Adult and Health Services,Commissioning inc Supporting People,Third Party Payments 4THIRD,441001,Supporting People E441,01/08/2018,3472327-1967923,"19,231.20",THE CYRENIANS LTD T/A CHANGING LIVES.
Regeneration and Local Services,Economic Development and Housing,Supplies and Services,344033,Telephones,01/08/2018,3472328-004094897,980.68,THE PHONE CO-OP.
Dedicated Schools Grant,DSG High Needs Block,Third Party Payments 4THIRD,440080,Other third party payments E440,01/08/2018,3472331-7103,"3,104.50",THE ROYAL NATIONAL COLLEGE FOR THE BLIND.
Children and Young Peoples Services,Head of Education and Skills,Transport,230008,Contract Hire,01/08/2018,3472341-TS40/22,780.00,TOP STAR TRAVEL.
Regeneration and Local Services,Technical Services,Supplies and Services,304221,Equipment and Materials,01/08/2018,3472351-189045,"1,104.40",TYNEDALE ROADSTONE LTD.
Children and Young Peoples Services,Head of Education and Skills,Construction work A908,908105,Construction work,01/08/2018,310591-1425,"1,590.00",UNIVERSAL POOL SERVICES LTD.
Regeneration and Local Services,Economic Development and Housing,Supplies and Services,384437,Miscellaneous Expenses,01/08/2018,3472356-9000302390,"1,009.50",UNIVERSITY OF NEWCASTLE UPON TYNE.
Regeneration and Local Services,Direct Services,Third Party Payments 4THIRD,430105,Rendered by Private Contractors,01/08/2018,3472358-8541138087,"2,361.06",VEOLIA ENVIRONMENTAL SERVICES ES (UK) LTD.
Regeneration and Local Services,Direct Services,Third Party Payments 4THIRD,430105,Rendered by Private Contractors,01/08/2018,3472358-8541139840,"3,491.11",VEOLIA ENVIRONMENTAL SERVICES ES (UK) LTD.
Resources,Digital and Customer Services,Intangible Assets,917001,Software capitalised licence fees,01/08/2018,3472362-KW58500,"80,000.00",VODAFONE LTD.
Adult and Health Services,Commissioning inc Supporting People,Third Party Payments 4THIRD,441001,Supporting People E441,01/08/2018,3472363-1967920,"2,367.20",WADDINGTON STREET CENTRE LTD.
Adult and Health Services,Commissioning inc Supporting People,Third Party Payments 4THIRD,444002,Supporting People E444,01/08/2018,3472363-1967944,567.36,WADDINGTON STREET CENTRE LTD.
Regeneration and Local Services,Direct Services,Third Party Payments 4THIRD,430100,Rendered by Private Contractors,01/08/2018,3472365-INV-0950,"1,073.00",WATER SOLUTIONS (EUROPE) LTD.
Adult and Health Services,Commissioning inc Supporting People,Third Party Payments 4THIRD,441001,Supporting People E441,01/08/2018,3472367-1967905,"7,303.20",WEAR VALLEY WOMENS AID.
Regeneration and Local Services,Direct Services,Supplies and Services,304221,Equipment and Materials,01/08/2018,3472372-53469751,"1,023.03",WOLSELEY UK LTD.
Regeneration and Local Services,Spatial Policy Planning Assets & Environment,Supplies and Services,338066,Services,01/08/2018,3472376-9358,"1,750.00",YOUNGS RPS LLP.
Resources,Legal & Democratic Services,Supplies and Services,338042,Services,01/08/2018,3472377-INV/VW97,500.00,ZENITH CHAMBERS.
Regeneration and Local Services,Technical Services,Supplies and Services,304221,Equipment and Materials,02/08/2018,3472386-26834985,"1,328.32",AGGREGATE INDUSTRIES UK LTD.
Regeneration and Local Services,Technical Services,Supplies and Services,304221,Equipment and Materials,02/08/2018,3472386-26834986,988.16,AGGREGATE INDUSTRIES UK LTD.
Regeneration and Local Services,Technical Services,Supplies and Services,304221,Equipment and Materials,02/08/2018,3472386-26834987,869.92,AGGREGATE INDUSTRIES UK LTD.
Regeneration and Local Services,Direct Services,Supplies and Services,304221,Equipment and Materials,02/08/2018,3472390-NE/532157,"1,719.40",AMARI PLASTICS PLC.
Regeneration and Local Services,Technical Services,Third Party Payments 4THIRD,430100,Rendered by Private Contractors,02/08/2018,3472398-IN34314,"2,664.96",BALFOUR BEATTY LIVING PLACES LTD.*
Regeneration and Local Services,Technical Services,Third Party Payments 4THIRD,430100,Rendered by Private Contractors,02/08/2018,3472398-IN34321,"3,198.42",BALFOUR BEATTY LIVING PLACES LTD.*
Children and Young Peoples Services,Head of Childrens Social Care,Supplies and Services,338044,Services,02/08/2018,3472399-I41006432,"1,710.00",BARNARDO SERVICES LTD.
Children and Young Peoples Services,Head of Education and Skills,Transport,230008,Contract Hire,02/08/2018,3472405-BZ00266,735.00,BREZ`S TAXIS.
Children and Young Peoples Services,Head of Education and Skills,Transport,230008,Contract Hire,02/08/2018,3472405-BZ00267,885.00,BREZ`S TAXIS.
Regeneration and Local Services,Direct Services,Supplies and Services,304221,Equipment and Materials,02/08/2018,3472410-851801643,"1,260.00",CARLISLE CONSTRUCTION MATERIALS LTD.
Regeneration and Local Services,Technical Services,Supplies and Services,304221,Equipment and Materials,02/08/2018,3472415-3010675604,"1,672.31",CEMEX UK MATERIALS LTD.
Dedicated Schools Grant,DSG High Needs Block,Third Party Payments 4THIRD,425005,Rendered by Voluntary Organisations,02/08/2018,3472417-16912,"8,307.50",CHORISTER SCHOOL.
Dedicated Schools Grant,DSG High Needs Block,Third Party Payments 4THIRD,425005,Rendered by Voluntary Organisations,02/08/2018,3472417-17043,"4,113.75",CHORISTER SCHOOL.
Dedicated Schools Grant,DSG High Needs Block,Third Party Payments 4THIRD,440080,Other third party payments E440,02/08/2018,3472421-I0024528,"9,912.74",CITY OF SUNDERLAND COLLEGE.
Transformation and Partnerships,Partnerships & Community Engagement Div.,Supplies and Services,308011,Furniture,02/08/2018,3472429-GG501,965.00,COUNTY DURHAM FURNITURE HELP SCHEME (CDFHS).
Dedicated Schools Grant,DSG High Needs Block,Third Party Payments 4THIRD,425005,Rendered by Voluntary Organisations,02/08/2018,3472434-BUR0041528,"1,924.00",CYGNET HEALTHCARE LTD.
Resources,Legal & Democratic Services,Supplies and Services,338042,Services,02/08/2018,3472441-340476/INVHMU206,550.00,DERE STREET BARRISTERS.
Regeneration and Local Services,Direct Services,Third Party Payments 4THIRD,430101,Rendered by Private Contractors,02/08/2018,3472443-IV1010667,"1,391.05",DIRECT TYRE MANAGEMENT LTD (DTM).
Resources,Legal & Democratic Services,Supplies and Services,384199,Miscellaneous Expenses,02/08/2018,3472447-10/7/18,500.00,DR SCOTT PHILLIPS T/A GENTLE DENTAL CENTRE.
Regeneration and Local Services,Direct Services,Supplies and Services,304221,Equipment and Materials,02/08/2018,3472456-059-226485,"14,193.45",EDMUNDSON ELECTRICAL LTD.
Regeneration and Local Services,Direct Services,Supplies and Services,304221,Equipment and Materials,02/08/2018,3472456-059-227275,714.35,EDMUNDSON ELECTRICAL LTD.
Regeneration and Local Services,Economic Development and Housing,Supplies and Services,384700,Miscellaneous Expenses,02/08/2018,3472460-RED-08-2018-001,"1,000.00",ELLE HAIR & BEAUTY.
Transformation and Partnerships,Partnerships & Community Engagement Div.,Cap Exp on Grants & Other Financial Assistance (REFCUS),918004,Contributions to other bodies 918004,02/08/2018,3472464-VOUCHER17NB-EDRC013,"4,000.00",FISHBURN YOUTH & COMMUNITY CENTRE.
Children and Young Peoples Services,Head of Childrens Social Care,Third Party Payments 4THIRD,425021,Rendered by Voluntary Organisations,02/08/2018,3472465-445,"14,000.00",FOREVER CARE.
Children and Young Peoples Services,Head of Childrens Social Care,Third Party Payments 4THIRD,425021,Rendered by Voluntary Organisations,02/08/2018,3472465-453,"14,000.00",FOREVER CARE.
Regeneration and Local Services,Economic Development and Housing,Supplies and Services,344033,Telephones,02/08/2018,3472467-DERW01-0001,903.60,FREEDOM COMMUNICATIONS (UK) LTD.
Regeneration and Local Services,Technical Services,Supplies and Services,304357,Equipment and Materials,02/08/2018,3472469-DCC010718,"14,672.26",GAP GROUP LTD.
Regeneration and Local Services,Technical Services,Supplies and Services,304357,Equipment and Materials,02/08/2018,3472469-DCC080718,"15,844.76",GAP GROUP LTD.
Regeneration and Local Services,Direct Services,Supplies and Services,304221,Equipment and Materials,02/08/2018,3472472-158540,"4,831.00",GLOBAL LIFT EQUIPMENT LTD.
Children and Young Peoples Services,Head of Education and Skills,Transport,230007,Contract Hire,02/08/2018,3472473-90/124A,"1,310.36",GRAHAMS MOTOR SERVICES LTD.
Regeneration and Local Services,Culture & Sport,Premises,145023,Cleaning and Domestic Supplies,02/08/2018,3472474-06/748667,644.14,GREENHAM TRADING LTD.
Regeneration and Local Services,Culture & Sport,Premises,145023,Cleaning and Domestic Supplies,02/08/2018,3472474-06/748668,673.35,GREENHAM TRADING LTD.
Regeneration and Local Services,Technical Services,Stock A926,926900,Stock in hand-Inventory system,02/08/2018,3472474-06/744552,"5,422.26",GREENHAM TRADING LTD.
Regeneration and Local Services,Technical Services,Stock A926,926900,Stock in hand-Inventory system,02/08/2018,3472474-06/745877,702.95,GREENHAM TRADING LTD.
Regeneration and Local Services,Technical Services,Stock A926,926900,Stock in hand-Inventory system,02/08/2018,3472474-06/748565,"1,181.76",GREENHAM TRADING LTD.
Resources,Corporate Finance & Commercial Services,Supplies and Services,338221,Services,02/08/2018,3472478-SF-020652,990.00,HEALTH ASSURED LTD.
Adult and Health Services,Public Health,Third Party Payments 4THIRD,460803,Contract Payments,02/08/2018,3472482-219/19/1801,"374,815.58",HUMANKIND CHARITY (FORMERLY DISC LTD).
Dedicated Schools Grant,DSG High Needs Block,Third Party Payments 4THIRD,425005,Rendered by Voluntary Organisations,02/08/2018,3472483-4140000903,"5,457.47",HURWORTH HOUSE PRIORY.
Regeneration and Local Services,Technical Services,Stock A926,926900,Stock in hand-Inventory system,02/08/2018,3472484-123754,852.40,HYDRAM ENGINEERING LTD.
Regeneration and Local Services,Technical Services,Third Party Payments 4THIRD,430100,Rendered by Private Contractors,02/08/2018,3472485-NO1861399,"68,423.86",IAN FARMER ASSOCIATES (1998) LTD.
Resources,Digital and Customer Services,Stock A926,926900,Stock in hand-Inventory system,02/08/2018,3472488-3964596,"1,520.00",INSIGHT DIRECT (UK) LTD.
Regeneration and Local Services,Direct Services,Supplies and Services,304221,Equipment and Materials,02/08/2018,3472490-16002,"4,402.00",J & L ELEVATOR COMPONENTS LTD.
Regeneration and Local Services,Technical Services,Third Party Payments 4THIRD,430100,Rendered by Private Contractors,02/08/2018,3472492-21919,"8,419.74",JACK COUPE & SONS LTD T/A COUPE LINE.
Regeneration and Local Services,Direct Services,Third Party Payments 4THIRD,430100,Rendered by Private Contractors,02/08/2018,3472500-48,640.00,JH ORGANICS T/A P HUTCHINSON & SONS
Regeneration and Local Services,Technical Services,Supplies and Services,304221,Equipment and Materials,02/08/2018,3472504-BII262581,814.00,JT DOVE LTD.
Regeneration and Local Services,Technical Services,Stock A926,926900,Stock in hand-Inventory system,02/08/2018,3472504-STI483617,789.58,JT DOVE LTD.
Children and Young Peoples Services,"Head of Early Help, Inclusion and Vulnerable Children",Premises,108135,Service Repairs and Maintenance,02/08/2018,3472520-NE179858,"1,503.75",MCNAUGHTON BLAIR LTD T/A LLOYD WORRALL (NEWCASTLE UPON TYNE) LTD.
Adult and Health Services,Head of Adults,Supplies and Services,338042,Services,02/08/2018,3472534-1039358/A,"1,500.00",MR JOSEPH O`BRIEN.
Regeneration and Local Services,Economic Development and Housing,Supplies and Services,340001,Postages E340,02/08/2018,3472544-RED-07-2018-188,"1,000.00",NEOPOST CREDIFON.
Regeneration and Local Services,Economic Development and Housing,Supplies and Services,304259,Equipment and Materials,02/08/2018,3472545-2018046159,"1,106.67",NEOPOST FINANCE LTD.
Children and Young Peoples Services,Head of Education and Skills,Third Party Payments 4THIRD,440999,Other third party payments E440,02/08/2018,3472548-6-10/7/18,609.00,NIGEL BROUGH T/A BESPOKE TRAINING SOLUTIONS LTD.
Children and Young Peoples Services,Head of Education and Skills,Third Party Payments 4THIRD,440999,Other third party payments E440,02/08/2018,3472548-8,"1,695.00",NIGEL BROUGH T/A BESPOKE TRAINING SOLUTIONS LTD.
Children and Young Peoples Services,Head of Education and Skills,Third Party Payments 4THIRD,440999,Other third party payments E440,02/08/2018,3472548-9,"1,668.00",NIGEL BROUGH T/A BESPOKE TRAINING SOLUTIONS LTD.
Resources,Finance & Transactional Services,Supplies and Services,338064,Services,02/08/2018,3472550-21123,"28,988.00",NORTH EAST REGIONAL EMPLOYERS ORGANISATION (NEREO).
Children and Young Peoples Services,Head of Education and Skills,Construction work A908,908105,Construction work,02/08/2018,3472552-NEI-EXP-07-2018-023,"5,119.60",NORTHERN GAS NETWORKS LTD.
Regeneration and Local Services,Economic Development and Housing,Construction work A908,908201,Capital - Public Utilities - Electricity Services,02/08/2018,3472553-50035407,620.00,NORTHERN POWERGRID (NORTHEAST) LTD.
Children and Young Peoples Services,Head of Education and Skills,Construction work A908,908105,Construction work,02/08/2018,3472553-NEI-EXP-07-2018-025,"18,991.02",NORTHERN POWERGRID (NORTHEAST) LTD.
Children and Young Peoples Services,Head of Education and Skills,Construction work A908,908105,Construction work,02/08/2018,3472554-NEI-EXP-07-2018-024,"2,623.00",NORTHUMBRIAN WATER LTD.
Regeneration and Local Services,Direct Services,Transport,215005,Running Costs of Vehicles,02/08/2018,3472558-341641,"13,536.90",OIL NRG LTD.
Regeneration and Local Services,Direct Services,Transport,215005,Running Costs of Vehicles,02/08/2018,3472558-341642,"2,888.50",OIL NRG LTD.
Regeneration and Local Services,Direct Services,Third Party Payments 4THIRD,430100,Rendered by Private Contractors,02/08/2018,3472564-12292.,"4,009.00",PA MOODY RECYCLING T/A GAP WASTE MANAGMENT.
Regeneration and Local Services,Technical Services,Stock A926,926900,Stock in hand-Inventory system,02/08/2018,3472566-XL225212,"1,729.80",PARK ELECTRICAL DISTRIBUTORS LTD.
Children and Young Peoples Services,Head of Education and Skills,Transport,230007,Contract Hire,02/08/2018,3472572-3350-JUL18,600.00,PETER`S TAXIS.
Children and Young Peoples Services,Head of Education and Skills,Transfer Payments,510026,School Children,02/08/2018,3472577-10/7/18,"1,425.00",PLAYDAY NURSERY.
Regeneration and Local Services,Technical Services,Third Party Payments 4THIRD,430100,Rendered by Private Contractors,02/08/2018,3472581-111901,550.00,PROTECTOR SECURITY GROUP LTD.
Children and Young Peoples Services,Head of Education and Skills,Supplies and Services,384540,Miscellaneous Expenses,02/08/2018,3472587-2017-30,700.00,ROBERT CARR T/A RGR FILM PRODUCTIONS.
Regeneration and Local Services,Direct Services,Third Party Payments 4THIRD,430103,Rendered by Private Contractors,02/08/2018,3472612-NEI-EXP-07-2018-029,"18,086.39",TEESDALE CONSERVATION VOLUNTEERS.
Children and Young Peoples Services,Head of Education and Skills,Transfer Payments,510026,School Children,02/08/2018,3472617-THENURSERYSUMMER18,"2,748.33",THE NURSERY.
Dedicated Schools Grant,DSG High Needs Block,Third Party Payments 4THIRD,440080,Other third party payments E440,02/08/2018,3472618-7038,"3,104.45",THE ROYAL NATIONAL COLLEGE FOR THE BLIND.
Dedicated Schools Grant,DSG High Needs Block,Third Party Payments 4THIRD,440080,Other third party payments E440,02/08/2018,3472618-7070,"3,104.45",THE ROYAL NATIONAL COLLEGE FOR THE BLIND.
Regeneration and Local Services,Technical Services,Stock A926,926900,Stock in hand-Inventory system,02/08/2018,3472621-N/IN220701,"2,100.00",THOMAS OWEN & SONS (NEWCASTLE) LTD.
Regeneration and Local Services,Technical Services,Stock A926,926900,Stock in hand-Inventory system,02/08/2018,3472621-N/IN225459,"1,024.20",THOMAS OWEN & SONS (NEWCASTLE) LTD.
Regeneration and Local Services,Technical Services,Stock A926,926900,Stock in hand-Inventory system,02/08/2018,3472621-N/IN225495,862.97,THOMAS OWEN & SONS (NEWCASTLE) LTD.
Regeneration and Local Services,Direct Services,Supplies and Services,304221,Equipment and Materials,02/08/2018,3472622-SIP-203542,549.67,THYSSENKRUPP ENCASA A DIVISION OF THYSSENKRUPP ACCESS LTD.
Children and Young Peoples Services,"Head of Early Help, Inclusion and Vulnerable Children",Premises,108135,Service Repairs and Maintenance,02/08/2018,3472625-LINV811845,"6,716.25",TRINITY MEDICAL PROPERTIES LTD.
Regeneration and Local Services,Technical Services,Supplies and Services,304221,Equipment and Materials,02/08/2018,3472626-189072,613.21,TYNEDALE ROADSTONE LTD.
Regeneration and Local Services,Technical Services,Supplies and Services,304221,Equipment and Materials,02/08/2018,3472626-189073,"1,100.00",TYNEDALE ROADSTONE LTD.
Regeneration and Local Services,Technical Services,Supplies and Services,304221,Equipment and Materials,02/08/2018,3472626-189077,822.66,TYNEDALE ROADSTONE LTD.
Regeneration and Local Services,Economic Development and Housing,Supplies and Services,384906,Miscellaneous Expenses,02/08/2018,3472634-RED-07-2018-174,750.00,WELLFIELD COMMUNITY SCHOOL.
Transformation and Partnerships,Partnerships & Community Engagement Div.,Supplies and Services,384086,Miscellaneous Expenses,02/08/2018,3472639-18NB-WEAR002,"4,500.00",WOLSINGHAM RECREATION ASSOCIATION.
Resources,Legal & Democratic Services,Supplies and Services,338042,Services,02/08/2018,3472642-INV/PW45,"2,255.00",ZENITH CHAMBERS.
Children and Young Peoples Services,Head of Education and Skills,Transport,230008,Contract Hire,03/08/2018,3472643-N0200718,"1,650.00",1ST AID COMMERCIALS LTD.
Children and Young Peoples Services,Head of Education and Skills,Transport,230008,Contract Hire,03/08/2018,3472644-H15/SV,735.00,AABAT TAXIS.
Children and Young Peoples Services,Head of Education and Skills,Transport,230008,Contract Hire,03/08/2018,3472644-H3/SC,"1,216.00",AABAT TAXIS.
Children and Young Peoples Services,Head of Education and Skills,Transport,230007,Contract Hire,03/08/2018,3472645-531,900.00,ACE TAXIS (WINSTON).
Children and Young Peoples Services,Head of Education and Skills,Transport,230007,Contract Hire,03/08/2018,3472645-532,"1,050.00",ACE TAXIS (WINSTON).
Children and Young Peoples Services,Head of Education and Skills,Transport,230007,Contract Hire,03/08/2018,3472645-533,"1,050.00",ACE TAXIS (WINSTON).
Regeneration and Local Services,Technical Services,Supplies and Services,304221,Equipment and Materials,03/08/2018,3472648-26841230,"1,380.08",AGGREGATE INDUSTRIES UK LTD.
Regeneration and Local Services,Technical Services,Supplies and Services,304221,Equipment and Materials,03/08/2018,3472648-26841231,932.40,AGGREGATE INDUSTRIES UK LTD.
Resources,Digital and Customer Services,Supplies and Services,332029,Printing Stationery and Gen Off Exps,03/08/2018,3472649-114450,716.00,AGNE LTD T/A ALPHAGRAPHICS.
Regeneration and Local Services,EnvironmentHealth & Consumer Protection,Supplies and Services,308011,Furniture,03/08/2018,3472650-162820,555.00,ALBANY OFFICE EQUIPMENT (WHOLESALE) LTD.
Regeneration and Local Services,Economic Development and Housing,Supplies and Services,342053,Computers and Communications,03/08/2018,3472653-9942121,902.20,ANCHOR COMPUTER SYSTEMS LTD.
Adult and Health Services,Head of Adults,Transport,230005,Contract Hire,03/08/2018,3472655-JULY-SLD011,600.00,ANDREW PYGALL T/A ARP TAXIS.
Transformation and Partnerships,Partnerships & Community Engagement Div.,Cap Exp on Grants & Other Financial Assistance (REFCUS),918004,Contributions to other bodies 918004,03/08/2018,3472658-VOUCHER18NB-CHES005,"1,281.77",ANKERS HOUSE MUSEUM.
Regeneration and Local Services,Direct Services,Supplies and Services,304358,Equipment and Materials,03/08/2018,3472661-30200,"1,445.78",AQUAJET DRAIN CLEANING LTD.
Regeneration and Local Services,Technical Services,Supplies and Services,304358,Equipment and Materials,03/08/2018,3472661-30210,"2,587.50",AQUAJET DRAIN CLEANING LTD.
Children and Young Peoples Services,Head of Education and Skills,Transport,230012,Contract Hire,03/08/2018,3472662-JULY2018-3,849.00,ARMSTRONG`S TAXIS.
Children and Young Peoples Services,Head of Education and Skills,Transport,230008,Contract Hire,03/08/2018,3472662-JULY2018-1,"1,350.00",ARMSTRONG`S TAXIS.
Regeneration and Local Services,Transport and Contracted Services,Third Party Payments 4THIRD,430106,Rendered by Private Contractors,03/08/2018,3472664-114089,"32,091.79",ARRIVA NORTH EAST LTD.
Children and Young Peoples Services,Head of Education and Skills,Transport,230008,Contract Hire,03/08/2018,3472666-DCC12JULY18,"1,540.00",ATLAS TAXIS BISHOP AUCKLAND.
Children and Young Peoples Services,Head of Education and Skills,Transport,230008,Contract Hire,03/08/2018,3472666-DCC1JULY18,"1,397.00",ATLAS TAXIS BISHOP AUCKLAND.
Regeneration and Local Services,Economic Development and Housing,Supplies and Services,384999,Miscellaneous Expenses,03/08/2018,3472668-INV25862,"2,562.17",BEAMISH HALL LTD.
Regeneration and Local Services,Direct Services,Transport,210057,Repair and Maintenance of Vehicles,03/08/2018,3472670-15133859,520.88,BELL TRUCK SALES LTD T/A BELL TRUCK & VAN.
Regeneration and Local Services,Direct Services,Transport,210057,Repair and Maintenance of Vehicles,03/08/2018,3472671-15133881,"1,081.08",BELL TRUCK SALES LTD T/A BELL TRUCK & VAN.
Regeneration and Local Services,Economic Development and Housing,Supplies and Services,384700,Miscellaneous Expenses,03/08/2018,3472672-RED-08-2018-011,"1,000.00",BERGER CLOSURES LTD.
Regeneration and Local Services,Spatial Policy Planning Assets & Environment,Supplies and Services,338066,Services,03/08/2018,3472677-SIN001063,"89,463.95",BLOOM PROCUREMENT SERVICES LTD (FORMERLY NEPRO LTD).
Resources,Digital and Customer Services,Supplies and Services,338066,Services,03/08/2018,3472677-SIN000669,"28,726.89",BLOOM PROCUREMENT SERVICES LTD (FORMERLY NEPRO LTD).
Regeneration and Local Services,Direct Services,Supplies and Services,304221,Equipment and Materials,03/08/2018,3472679-NEINV10817,"2,150.00",BOLTON GATE CO.
Children and Young Peoples Services,Head of Education and Skills,Transport,230008,Contract Hire,03/08/2018,3472683-11,924.00,BRIAN PURVIS T/A BJ`S TAXIS.
Children and Young Peoples Services,Head of Education and Skills,Transport,230008,Contract Hire,03/08/2018,3472689-A028011,910.00,C & R TAXIS.
Children and Young Peoples Services,Head of Education and Skills,Transport,230008,Contract Hire,03/08/2018,3472689-S026011,990.00,C & R TAXIS.
Children and Young Peoples Services,Head of Education and Skills,Transport,230008,Contract Hire,03/08/2018,3472689-W078011,"1,800.00",C & R TAXIS.
Adult and Health Services,Head of Adults,Supplies and Services,338367,Services,03/08/2018,3472691-51212JUL2018,675.00,CARE ABILITY.
Children and Young Peoples Services,"Head of Early Help, Inclusion and Vulnerable Children",Supplies and Services,352001,Conference Expenses,03/08/2018,3472693-DCC03,600.00,CAROLINE MORALEE T/A TRANSFORM & ASPIRE.
Regeneration and Local Services,Culture & Sport,Supplies and Services,384199,Miscellaneous Expenses,03/08/2018,3472695-0319,675.00,CARRIE DENNISON T/A PRESS FOR DESIGN.
Children and Young Peoples Services,Head of Childrens Social Care,Supplies and Services,338044,Services,03/08/2018,3472698-142716,"1,233.11",CARTER BROWN THE EXPERT SERVICE LTD.*
Children and Young Peoples Services,Head of Childrens Social Care,Premises,108099,Service Repairs and Maintenance,03/08/2018,3472699-4586,"1,272.23",CATHEDRAL LOCK & SAFE SERVICES LTD.
Regeneration and Local Services,Direct Services,Premises,106082,Centrally Controlled Rep and Maint,03/08/2018,3472699-4537,511.17,CATHEDRAL LOCK & SAFE SERVICES LTD.
Regeneration and Local Services,Economic Development and Housing,Premises,106082,Centrally Controlled Rep and Maint,03/08/2018,3472699-4552,718.98,CATHEDRAL LOCK & SAFE SERVICES LTD.
Regeneration and Local Services,Culture & Sport,Premises,106082,Centrally Controlled Rep and Maint,03/08/2018,3472699-4555,"2,242.24",CATHEDRAL LOCK & SAFE SERVICES LTD.
Children and Young Peoples Services,Head of Education and Skills,Transport,230008,Contract Hire,03/08/2018,3472701-011-JULY,"1,610.00",CHANNER`S CABS.
Dedicated Schools Grant,DSG High Needs Block,Transport,230010,Contract Hire,03/08/2018,3472702-BL11,"1,455.00",CHIPPERS TAXIS.
Children and Young Peoples Services,Head of Education and Skills,Transport,230008,Contract Hire,03/08/2018,3472707-010,"1,275.00",COLIN HOLMES.
Regeneration and Local Services,Culture & Sport,Supplies and Services,384199,Miscellaneous Expenses,03/08/2018,3472709-INV03365,950.30,COMPETITION LINE UK LTD T/A LIFESTYLE FITNESS.
Regeneration and Local Services,Culture & Sport,Supplies and Services,384199,Miscellaneous Expenses,03/08/2018,3472709-INV03366,803.40,COMPETITION LINE UK LTD T/A LIFESTYLE FITNESS.
Regeneration and Local Services,Culture & Sport,Supplies and Services,384199,Miscellaneous Expenses,03/08/2018,3472715-4100626451,"1,800.00",CRISSY LEE (THEATRE CONTRACTOR).
Children and Young Peoples Services,Head of Education and Skills,Transport,230009,Contract Hire,03/08/2018,3472716-108051,697.50,CROFT BUSINESS SERVICES (UK) LTD T/A CROFT TAXIS.
Children and Young Peoples Services,Head of Education and Skills,Transport,230006,Contract Hire,03/08/2018,3472716-108066,"1,045.68",CROFT BUSINESS SERVICES (UK) LTD T/A CROFT TAXIS.
Children and Young Peoples Services,Head of Education and Skills,Transport,230008,Contract Hire,03/08/2018,3472716-108054,"3,479.48",CROFT BUSINESS SERVICES (UK) LTD T/A CROFT TAXIS.
Children and Young Peoples Services,Head of Education and Skills,Transport,230008,Contract Hire,03/08/2018,3472716-108055,"2,830.95",CROFT BUSINESS SERVICES (UK) LTD T/A CROFT TAXIS.
Children and Young Peoples Services,Head of Education and Skills,Transport,230008,Contract Hire,03/08/2018,3472716-108058,"1,311.44",CROFT BUSINESS SERVICES (UK) LTD T/A CROFT TAXIS.
Children and Young Peoples Services,Head of Education and Skills,Transport,230008,Contract Hire,03/08/2018,3472716-108062,"1,469.58",CROFT BUSINESS SERVICES (UK) LTD T/A CROFT TAXIS.
Children and Young Peoples Services,Head of Education and Skills,Transport,230008,Contract Hire,03/08/2018,3472716-108063,"1,100.04",CROFT BUSINESS SERVICES (UK) LTD T/A CROFT TAXIS.
Children and Young Peoples Services,Head of Education and Skills,Transport,230008,Contract Hire,03/08/2018,3472716-108067,991.05,CROFT BUSINESS SERVICES (UK) LTD T/A CROFT TAXIS.
Children and Young Peoples Services,Head of Education and Skills,Transport,230008,Contract Hire,03/08/2018,3472716-108070,"1,493.55",CROFT BUSINESS SERVICES (UK) LTD T/A CROFT TAXIS.
Dedicated Schools Grant,DSG High Needs Block,Third Party Payments 4THIRD,425005,Rendered by Voluntary Organisations,03/08/2018,3472717-BUR0038552,"1,776.00",CYGNET HEALTHCARE LTD.
Adult and Health Services,Head of Adults,Transport,230005,Contract Hire,03/08/2018,3472719-TH1807,796.00,D IRVING T/A BJ TAXIS.
Children and Young Peoples Services,Head of Education and Skills,Transport,230008,Contract Hire,03/08/2018,3472720-DI201807,705.00,D&I TAXIS.
Children and Young Peoples Services,Head of Education and Skills,Transport,230007,Contract Hire,03/08/2018,3472722-SCEAJULY1801,"1,245.00",DALELINK PRIVATE HIRE.
Children and Young Peoples Services,Head of Education and Skills,Transport,230008,Contract Hire,03/08/2018,3472723-3322,"1,275.00",DAVES MINIBUSES.
Regeneration and Local Services,Culture & Sport,Supplies and Services,338047,Services,03/08/2018,3472725-JST00039I,750.00,DEBORAH MCKENNA LTD (ON BEHALF OF JACK STEIN).
Resources,Digital and Customer Services,Vehicles Equipment Furniture and Fittings,912701,Computer equipment,03/08/2018,3472728-7402455457,"3,985.80",DELL COMPUTER CORPORATION LTD.
Resources,Digital and Customer Services,Supplies and Services,342033,Computers and Communications,03/08/2018,3472728-7402455557,"2,443.48",DELL COMPUTER CORPORATION LTD.
Resources,Legal & Democratic Services,Supplies and Services,338042,Services,03/08/2018,3472731-332817/INVSPA218,"12,950.00",DERE STREET BARRISTERS.
Resources,Legal & Democratic Services,Supplies and Services,338042,Services,03/08/2018,3472731-339103/INVKL21,550.00,DERE STREET BARRISTERS.
Resources,Legal & Democratic Services,Supplies and Services,338042,Services,03/08/2018,3472731-340719/INVSPA226,850.00,DERE STREET BARRISTERS.
Regeneration and Local Services,Direct Services,Third Party Payments 4THIRD,430101,Rendered by Private Contractors,03/08/2018,3472733-IV1006050,"2,767.32",DIRECT TYRE MANAGEMENT LTD (DTM).
Regeneration and Local Services,Direct Services,Third Party Payments 4THIRD,430101,Rendered by Private Contractors,03/08/2018,3472733-IV1006071,"2,654.79",DIRECT TYRE MANAGEMENT LTD (DTM).
Regeneration and Local Services,Direct Services,Third Party Payments 4THIRD,430101,Rendered by Private Contractors,03/08/2018,3472733-IV1012952,"1,273.57",DIRECT TYRE MANAGEMENT LTD (DTM).
Regeneration and Local Services,Culture & Sport,Supplies and Services,304259,Equipment and Materials,03/08/2018,3472735-7667,"2,205.00",DMK LEISURE LTD.
Resources,Legal & Democratic Services,Supplies and Services,338057,Services,03/08/2018,3472736-PB137,"1,427.60",DR PAUL BARRETT.
Children and Young Peoples Services,Head of Education and Skills,Transport,230003,Contract Hire,03/08/2018,3472738-26649,"2,025.00",DURHAM CITY COACHES.
Regeneration and Local Services,Culture & Sport,Supplies and Services,384199,Miscellaneous Expenses,03/08/2018,3472739-SI-250,"2,056.00",DURHAM SCENIC WORKSHOPS LTD.
Regeneration and Local Services,Direct Services,Third Party Payments 4THIRD,430100,Rendered by Private Contractors,03/08/2018,3472742-H200/2018,"8,379.16",EDEN LODGE FARM.
Regeneration and Local Services,Direct Services,Supplies and Services,304221,Equipment and Materials,03/08/2018,3472743-059-212757,528.00,EDMUNDSON ELECTRICAL LTD.
Regeneration and Local Services,Direct Services,Supplies and Services,304221,Equipment and Materials,03/08/2018,3472743-059-227410,"1,795.00",EDMUNDSON ELECTRICAL LTD.
Regeneration and Local Services,Direct Services,Supplies and Services,304221,Equipment and Materials,03/08/2018,3472743-059-227413,"1,095.44",EDMUNDSON ELECTRICAL LTD.
Transformation and Partnerships,Partnerships & Community Engagement Div.,Cap Exp on Grants & Other Financial Assistance (REFCUS),918004,Contributions to other bodies 918004,03/08/2018,3472747-VOUCHER18NB-TEES003,"2,000.00",EGGLESTON AGRICULTURAL SOCIETY LTD.
Children and Young Peoples Services,Head of Education and Skills,Transport,230007,Contract Hire,03/08/2018,3472750-5124/0718,592.50,ELLIOTTS OF TRIMDON.
Children and Young Peoples Services,Head of Education and Skills,Transport,230007,Contract Hire,03/08/2018,3472750-5182/0718,628.50,ELLIOTTS OF TRIMDON.
Children and Young Peoples Services,Head of Education and Skills,Transport,230016,Contract Hire,03/08/2018,3472750-E122/0718,885.00,ELLIOTTS OF TRIMDON.
Children and Young Peoples Services,Head of Education and Skills,Transport,230008,Contract Hire,03/08/2018,3472750-E014/0718,"1,546.50",ELLIOTTS OF TRIMDON.
Regeneration and Local Services,Culture & Sport,Premises,106080,Centrally Controlled Rep and Maint,03/08/2018,3472753-18501749,914.19,ENER-G COMBINED POWER LTD.
Regeneration and Local Services,Culture & Sport,Premises,106080,Centrally Controlled Rep and Maint,03/08/2018,3472753-18501750,736.92,ENER-G COMBINED POWER LTD.
Regeneration and Local Services,Culture & Sport,Premises,106080,Centrally Controlled Rep and Maint,03/08/2018,3472753-18502029,914.19,ENER-G COMBINED POWER LTD.
Regeneration and Local Services,Culture & Sport,Premises,106080,Centrally Controlled Rep and Maint,03/08/2018,3472753-18502030,736.92,ENER-G COMBINED POWER LTD.
Transformation and Partnerships,Partnerships & Community Engagement Div.,Cap Exp on Grants & Other Financial Assistance (REFCUS),918004,Contributions to other bodies 918004,03/08/2018,3472760-VOUCHER18NB-4TOG006,"5,000.00",FERRYHILL TOWN COUNCIL.
Children and Young Peoples Services,Head of Childrens Social Care,Third Party Payments 4THIRD,425021,Rendered by Voluntary Organisations,03/08/2018,3472763-456,"14,000.00",FOREVER CARE.
Children and Young Peoples Services,Head of Education and Skills,Transport,230008,Contract Hire,03/08/2018,3472765-1807,"1,350.00",FRANK ATKINSON T/A FJ MINIBUS TRAVEL.
Children and Young Peoples Services,Head of Education and Skills,Transport,230007,Contract Hire,03/08/2018,3472767-100935,952.00,G & P JOHNSON LTD T/A NIGHTINGALE COACHES.
Children and Young Peoples Services,Head of Education and Skills,Transport,230016,Contract Hire,03/08/2018,3472767-100942,"1,335.00",G & P JOHNSON LTD T/A NIGHTINGALE COACHES.
Children and Young Peoples Services,Head of Education and Skills,Transport,230008,Contract Hire,03/08/2018,3472767-100931,"1,575.00",G & P JOHNSON LTD T/A NIGHTINGALE COACHES.
Children and Young Peoples Services,Head of Education and Skills,Transport,230008,Contract Hire,03/08/2018,3472767-100932,"1,770.00",G & P JOHNSON LTD T/A NIGHTINGALE COACHES.
Children and Young Peoples Services,Head of Education and Skills,Transport,230008,Contract Hire,03/08/2018,3472767-100936,"1,095.00",G & P JOHNSON LTD T/A NIGHTINGALE COACHES.
Children and Young Peoples Services,Head of Education and Skills,Transport,230008,Contract Hire,03/08/2018,3472767-100937,780.00,G & P JOHNSON LTD T/A NIGHTINGALE COACHES.
Children and Young Peoples Services,Head of Education and Skills,Transport,230008,Contract Hire,03/08/2018,3472767-100938,675.00,G & P JOHNSON LTD T/A NIGHTINGALE COACHES.
Children and Young Peoples Services,Head of Education and Skills,Transport,230008,Contract Hire,03/08/2018,3472767-100939,"1,275.00",G & P JOHNSON LTD T/A NIGHTINGALE COACHES.
Children and Young Peoples Services,Head of Education and Skills,Transport,230008,Contract Hire,03/08/2018,3472767-100940,"1,170.00",G & P JOHNSON LTD T/A NIGHTINGALE COACHES.
Children and Young Peoples Services,Head of Education and Skills,Transport,230008,Contract Hire,03/08/2018,3472767-100941,870.00,G & P JOHNSON LTD T/A NIGHTINGALE COACHES.
Children and Young Peoples Services,Head of Education and Skills,Transport,230008,Contract Hire,03/08/2018,3472767-100942A,"1,050.00",G & P JOHNSON LTD T/A NIGHTINGALE COACHES.
Children and Young Peoples Services,Head of Education and Skills,Transport,230008,Contract Hire,03/08/2018,3472767-100943,"1,575.00",G & P JOHNSON LTD T/A NIGHTINGALE COACHES.
Children and Young Peoples Services,Head of Education and Skills,Transport,230008,Contract Hire,03/08/2018,3472767-100943A,735.00,G & P JOHNSON LTD T/A NIGHTINGALE COACHES.
Children and Young Peoples Services,Head of Education and Skills,Transport,230008,Contract Hire,03/08/2018,3472767-100944,840.00,G & P JOHNSON LTD T/A NIGHTINGALE COACHES.
Children and Young Peoples Services,Head of Education and Skills,Transport,230008,Contract Hire,03/08/2018,3472767-100945,840.00,G & P JOHNSON LTD T/A NIGHTINGALE COACHES.
Children and Young Peoples Services,Head of Education and Skills,Transport,230008,Contract Hire,03/08/2018,3472767-100946,"1,200.00",G & P JOHNSON LTD T/A NIGHTINGALE COACHES.
Children and Young Peoples Services,Head of Education and Skills,Transport,230008,Contract Hire,03/08/2018,3472767-100947,"1,005.00",G & P JOHNSON LTD T/A NIGHTINGALE COACHES.
Children and Young Peoples Services,Head of Education and Skills,Transport,230007,Contract Hire,03/08/2018,3472768-20637,"1,785.00",GARNETTS LTD (COACHES).
Children and Young Peoples Services,Head of Education and Skills,Transport,230007,Contract Hire,03/08/2018,3472768-20646,"1,631.00",GARNETTS LTD (COACHES).
Children and Young Peoples Services,Head of Education and Skills,Transport,230003,Contract Hire,03/08/2018,3472768-20638,"2,385.00",GARNETTS LTD (COACHES).
Children and Young Peoples Services,Head of Education and Skills,Transport,230008,Contract Hire,03/08/2018,3472769-M011,"1,312.50",GARY MCGOWAN T/A MACKA`S PRIVATE HIRE.
Children and Young Peoples Services,Head of Education and Skills,Employees,080025,Agency Staff,03/08/2018,3472770-39333,"4,495.00",GATENBY SANDERSON LTD.
Children and Young Peoples Services,Head of Education and Skills,Employees,080025,Agency Staff,03/08/2018,3472770-39403,"4,495.00",GATENBY SANDERSON LTD.
Children and Young Peoples Services,Head of Education and Skills,Employees,080025,Agency Staff,03/08/2018,3472770-39455,"3,596.00",GATENBY SANDERSON LTD.
Children and Young Peoples Services,Head of Education and Skills,Transport,230003,Contract Hire,03/08/2018,3472771-4619,"1,195.95",GEM TRAVEL.
Children and Young Peoples Services,Head of Education and Skills,Transport,230008,Contract Hire,03/08/2018,3472773-065,"1,050.00",GMC TAXIS NORTH EAST.
Resources,Finance & Transactional Services,Supplies and Services,338045,Services,03/08/2018,3472775-542265,750.00,GREENHALGH KERR.
Regeneration and Local Services,Technical Services,Stock A926,926900,Stock in hand-Inventory system,03/08/2018,3472776-06/748861,712.00,GREENHAM TRADING LTD.
Regeneration and Local Services,Direct Services,Transport,210057,Repair and Maintenance of Vehicles,03/08/2018,3472778-146895,568.39,GREENLAY (GRASS MACHINERY) LTD.
Regeneration and Local Services,Direct Services,Transport,210057,Repair and Maintenance of Vehicles,03/08/2018,3472778-146896,568.39,GREENLAY (GRASS MACHINERY) LTD.
Regeneration and Local Services,Direct Services,Transport,230005,Contract Hire,03/08/2018,3472779-1807/31472,"1,073.96",GULLIVER`S TRUCK HIRE LTD.
Children and Young Peoples Services,Head of Education and Skills,Transport,230016,Contract Hire,03/08/2018,3472782-HT347,"1,050.00",HARRY`S TAXI`S.
Children and Young Peoples Services,Head of Education and Skills,Transport,230008,Contract Hire,03/08/2018,3472782-HT348,"1,350.00",HARRY`S TAXI`S.
Children and Young Peoples Services,Head of Education and Skills,Transport,230008,Contract Hire,03/08/2018,3472782-HT349,"1,530.00",HARRY`S TAXI`S.
Children and Young Peoples Services,Head of Education and Skills,Transport,230008,Contract Hire,03/08/2018,3472782-HT350,900.00,HARRY`S TAXI`S.
Children and Young Peoples Services,Head of Education and Skills,Transport,230008,Contract Hire,03/08/2018,3472782-HT351,"1,950.00",HARRY`S TAXI`S.
Transformation and Partnerships,Partnerships & Community Engagement Div.,Cap Exp on Grants & Other Financial Assistance (REFCUS),918004,Contributions to other bodies 918004,03/08/2018,3472784-VOUCHER18NB-BASH005,"1,500.00",HENKNOWLE COMMUNITY ASSOCIATION.
Children and Young Peoples Services,Head of Education and Skills,Transport,230007,Contract Hire,03/08/2018,3472787-14027,764.00,HODGSONS COACH OPERATORS LTD.
Children and Young Peoples Services,Head of Education and Skills,Transport,230007,Contract Hire,03/08/2018,3472787-14028,"1,184.00",HODGSONS COACH OPERATORS LTD.
Children and Young Peoples Services,Head of Education and Skills,Transport,230007,Contract Hire,03/08/2018,3472787-14029,"2,940.00",HODGSONS COACH OPERATORS LTD.
Children and Young Peoples Services,Head of Education and Skills,Transport,230007,Contract Hire,03/08/2018,3472787-14030,"1,190.00",HODGSONS COACH OPERATORS LTD.
Children and Young Peoples Services,Head of Education and Skills,Transport,230007,Contract Hire,03/08/2018,3472787-14032,"1,590.00",HODGSONS COACH OPERATORS LTD.
Children and Young Peoples Services,Head of Education and Skills,Transport,230007,Contract Hire,03/08/2018,3472787-14033,990.00,HODGSONS COACH OPERATORS LTD.
Children and Young Peoples Services,Head of Education and Skills,Transport,230007,Contract Hire,03/08/2018,3472787-14034,790.00,HODGSONS COACH OPERATORS LTD.
Children and Young Peoples Services,Head of Education and Skills,Transport,230007,Contract Hire,03/08/2018,3472787-14035,"1,680.00",HODGSONS COACH OPERATORS LTD.
Children and Young Peoples Services,Head of Education and Skills,Transport,230007,Contract Hire,03/08/2018,3472787-14036,"1,890.00",HODGSONS COACH OPERATORS LTD.
Children and Young Peoples Services,Head of Education and Skills,Transport,230007,Contract Hire,03/08/2018,3472787-14037,"2,200.00",HODGSONS COACH OPERATORS LTD.
Children and Young Peoples Services,Head of Education and Skills,Transport,230007,Contract Hire,03/08/2018,3472787-14038,"1,590.00",HODGSONS COACH OPERATORS LTD.
Children and Young Peoples Services,Head of Education and Skills,Transport,230007,Contract Hire,03/08/2018,3472787-14039,882.00,HODGSONS COACH OPERATORS LTD.
Children and Young Peoples Services,Head of Education and Skills,Transport,230007,Contract Hire,03/08/2018,3472787-14041,"2,989.00",HODGSONS COACH OPERATORS LTD.
Children and Young Peoples Services,Head of Education and Skills,Transport,230007,Contract Hire,03/08/2018,3472787-14042,"2,860.00",HODGSONS COACH OPERATORS LTD.
Children and Young Peoples Services,Head of Education and Skills,Transport,230007,Contract Hire,03/08/2018,3472787-14043,"1,988.00",HODGSONS COACH OPERATORS LTD.
Children and Young Peoples Services,Head of Education and Skills,Transport,230007,Contract Hire,03/08/2018,3472787-14044,661.50,HODGSONS COACH OPERATORS LTD.
Children and Young Peoples Services,Head of Education and Skills,Transport,230007,Contract Hire,03/08/2018,3472787-14045,888.00,HODGSONS COACH OPERATORS LTD.
Children and Young Peoples Services,Head of Education and Skills,Transport,230007,Contract Hire,03/08/2018,3472787-14046,"1,192.50",HODGSONS COACH OPERATORS LTD.
Children and Young Peoples Services,Head of Education and Skills,Transport,230007,Contract Hire,03/08/2018,3472787-14047,573.00,HODGSONS COACH OPERATORS LTD.
Children and Young Peoples Services,Head of Education and Skills,Transport,230007,Contract Hire,03/08/2018,3472787-14048,"1,260.00",HODGSONS COACH OPERATORS LTD.
Children and Young Peoples Services,Head of Education and Skills,Transport,230007,Contract Hire,03/08/2018,3472787-14049,"1,417.50",HODGSONS COACH OPERATORS LTD.
Children and Young Peoples Services,Head of Education and Skills,Transport,230007,Contract Hire,03/08/2018,3472787-14050,"1,650.00",HODGSONS COACH OPERATORS LTD.
Children and Young Peoples Services,Head of Education and Skills,Transport,230007,Contract Hire,03/08/2018,3472787-14052,"2,241.75",HODGSONS COACH OPERATORS LTD.
Children and Young Peoples Services,Head of Education and Skills,Transport,230007,Contract Hire,03/08/2018,3472787-14053,"2,205.00",HODGSONS COACH OPERATORS LTD.
Children and Young Peoples Services,Head of Education and Skills,Transport,230007,Contract Hire,03/08/2018,3472787-14054,"2,145.00",HODGSONS COACH OPERATORS LTD.
Children and Young Peoples Services,Head of Education and Skills,Transport,230007,Contract Hire,03/08/2018,3472787-14055,"1,491.00",HODGSONS COACH OPERATORS LTD.
Children and Young Peoples Services,Head of Education and Skills,Transport,230007,Contract Hire,03/08/2018,3472787-14056,742.50,HODGSONS COACH OPERATORS LTD.
Children and Young Peoples Services,Head of Education and Skills,Transport,230007,Contract Hire,03/08/2018,3472787-14057,"1,192.50",HODGSONS COACH OPERATORS LTD.
Children and Young Peoples Services,Head of Education and Skills,Transport,230007,Contract Hire,03/08/2018,3472787-14058,892.50,HODGSONS COACH OPERATORS LTD.
Children and Young Peoples Services,Head of Education and Skills,Transport,230007,Contract Hire,03/08/2018,3472787-14059,592.50,HODGSONS COACH OPERATORS LTD.
Regeneration and Local Services,Spatial Policy Planning Assets & Environment,Construction work A908,908105,Construction work,03/08/2018,3472788-5201273905,"91,326.59",HONEYWELL CONTROL SYSTEMS LTD.
Regeneration and Local Services,Direct Services,Premises,108099,Service Repairs and Maintenance,03/08/2018,3472789-7080703214,"1,105.73",HONEYWELL NOVAR SYSTEMS LTD.
Children and Young Peoples Services,Head of Childrens Social Care,Third Party Payments 4THIRD,425021,Rendered by Voluntary Organisations,03/08/2018,3472793-4640,"3,520.00",HOWARD HOUSE CARE LTD.
Children and Young Peoples Services,Head of Education and Skills,Transport,230008,Contract Hire,03/08/2018,3472796-IR1807001,"1,965.00",I & R EXECUTIVE TRAVEL.
Children and Young Peoples Services,Head of Education and Skills,Transport,230008,Contract Hire,03/08/2018,3472796-IR1807002,"1,725.00",I & R EXECUTIVE TRAVEL.
Adult and Health Services,Head of Adults,Transport,230005,Contract Hire,03/08/2018,3472796-IR1807004,"1,050.00",I & R EXECUTIVE TRAVEL.
Resources - C A C,Centrally Administered costs,Supplies and Services,372009,Subscriptions E372,03/08/2018,3472797-9000242672,"16,000.00",INDUSTRIAL COMMUNITIES ALLIANCE.
Regeneration and Local Services,Technical Services,Stock A926,926900,Stock in hand-Inventory system,03/08/2018,3472799-640916,"2,424.80",INSTARMAC GROUP PLC.
Children and Young Peoples Services,Head of Education and Skills,Transport,230007,Contract Hire,03/08/2018,3472803-5112,520.00,J YOUNG T/A VIP TAXIS.
Children and Young Peoples Services,Head of Education and Skills,Transport,230007,Contract Hire,03/08/2018,3472803-5122,525.00,J YOUNG T/A VIP TAXIS.
Children and Young Peoples Services,Head of Education and Skills,Transport,230007,Contract Hire,03/08/2018,3472803-5128,630.00,J YOUNG T/A VIP TAXIS.
Children and Young Peoples Services,Head of Education and Skills,Transport,230008,Contract Hire,03/08/2018,3472803-5121,720.00,J YOUNG T/A VIP TAXIS.
Children and Young Peoples Services,Head of Education and Skills,Transport,230008,Contract Hire,03/08/2018,3472803-5124,840.00,J YOUNG T/A VIP TAXIS.
Children and Young Peoples Services,Head of Education and Skills,Transport,230008,Contract Hire,03/08/2018,3472803-5125,600.00,J YOUNG T/A VIP TAXIS.
Children and Young Peoples Services,Childrens Services Operational Support,Supplies and Services,338026,Services,03/08/2018,3472807-18DUR009,600.83,JIM MURDOCH.
Children and Young Peoples Services,Head of Education and Skills,Transport,230012,Contract Hire,03/08/2018,3472808-20/07/18F,900.00,JL EBDON. T/A DIAL-A-CAB.
Children and Young Peoples Services,Head of Education and Skills,Transport,230008,Contract Hire,03/08/2018,3472808-20/07/18A,"2,070.00",JL EBDON. T/A DIAL-A-CAB.
Children and Young Peoples Services,Head of Education and Skills,Transport,230008,Contract Hire,03/08/2018,3472808-20/07/18B,"1,020.00",JL EBDON. T/A DIAL-A-CAB.
Children and Young Peoples Services,Head of Education and Skills,Transport,230008,Contract Hire,03/08/2018,3472808-20/07/18C,900.00,JL EBDON. T/A DIAL-A-CAB.
Children and Young Peoples Services,Head of Education and Skills,Transport,230008,Contract Hire,03/08/2018,3472808-20/07/18D,"1,470.00",JL EBDON. T/A DIAL-A-CAB.
Children and Young Peoples Services,Head of Education and Skills,Transport,230008,Contract Hire,03/08/2018,3472808-20/07/18E,"1,320.00",JL EBDON. T/A DIAL-A-CAB.
Regeneration and Local Services,Technical Services,Supplies and Services,304358,Equipment and Materials,03/08/2018,3472810-28248,695.00,JOHN R BUTTERFIELD LTD.
Regeneration and Local Services,Technical Services,Supplies and Services,304358,Equipment and Materials,03/08/2018,3472810-28279,"1,308.00",JOHN R BUTTERFIELD LTD.
Regeneration and Local Services,Technical Services,Supplies and Services,304358,Equipment and Materials,03/08/2018,3472810-28311,782.50,JOHN R BUTTERFIELD LTD.
Regeneration and Local Services,Technical Services,Supplies and Services,304358,Equipment and Materials,03/08/2018,3472810-28312,586.00,JOHN R BUTTERFIELD LTD.
Regeneration and Local Services,Technical Services,Supplies and Services,304358,Equipment and Materials,03/08/2018,3472810-28373,600.00,JOHN R BUTTERFIELD LTD.
Regeneration and Local Services,Technical Services,Supplies and Services,304358,Equipment and Materials,03/08/2018,3472810-28429,953.00,JOHN R BUTTERFIELD LTD.
Regeneration and Local Services,Technical Services,Supplies and Services,304358,Equipment and Materials,03/08/2018,3472810-28430,"1,654.00",JOHN R BUTTERFIELD LTD.
Regeneration and Local Services,Technical Services,Supplies and Services,304358,Equipment and Materials,03/08/2018,3472810-28488,"2,597.00",JOHN R BUTTERFIELD LTD.
Regeneration and Local Services,Technical Services,Supplies and Services,304358,Equipment and Materials,03/08/2018,3472810-28489,692.00,JOHN R BUTTERFIELD LTD.
Regeneration and Local Services,Technical Services,Supplies and Services,304358,Equipment and Materials,03/08/2018,3472810-28491,"1,184.00",JOHN R BUTTERFIELD LTD.
Regeneration and Local Services,Technical Services,Supplies and Services,304358,Equipment and Materials,03/08/2018,3472810-28492,"1,326.00",JOHN R BUTTERFIELD LTD.
Regeneration and Local Services,Technical Services,Supplies and Services,304358,Equipment and Materials,03/08/2018,3472810-28495,858.00,JOHN R BUTTERFIELD LTD.
Regeneration and Local Services,Technical Services,Supplies and Services,304358,Equipment and Materials,03/08/2018,3472810-28498,885.00,JOHN R BUTTERFIELD LTD.
Regeneration and Local Services,Technical Services,Supplies and Services,304358,Equipment and Materials,03/08/2018,3472810-28500,572.00,JOHN R BUTTERFIELD LTD.
Regeneration and Local Services,Technical Services,Supplies and Services,304358,Equipment and Materials,03/08/2018,3472810-28517,936.00,JOHN R BUTTERFIELD LTD.
Regeneration and Local Services,Technical Services,Supplies and Services,304358,Equipment and Materials,03/08/2018,3472810-28521,858.00,JOHN R BUTTERFIELD LTD.
Regeneration and Local Services,Technical Services,Supplies and Services,304358,Equipment and Materials,03/08/2018,3472810-28524,"1,429.00",JOHN R BUTTERFIELD LTD.
Regeneration and Local Services,Technical Services,Supplies and Services,304358,Equipment and Materials,03/08/2018,3472810-28526,"1,149.00",JOHN R BUTTERFIELD LTD.
Regeneration and Local Services,Technical Services,Supplies and Services,304358,Equipment and Materials,03/08/2018,3472810-28527,"1,120.00",JOHN R BUTTERFIELD LTD.
Regeneration and Local Services,Technical Services,Supplies and Services,304358,Equipment and Materials,03/08/2018,3472810-28542,"1,326.00",JOHN R BUTTERFIELD LTD.
Regeneration and Local Services,Technical Services,Supplies and Services,304358,Equipment and Materials,03/08/2018,3472810-28543,975.00,JOHN R BUTTERFIELD LTD.
Regeneration and Local Services,Technical Services,Supplies and Services,304358,Equipment and Materials,03/08/2018,3472810-28545,682.00,JOHN R BUTTERFIELD LTD.
Regeneration and Local Services,Technical Services,Supplies and Services,304358,Equipment and Materials,03/08/2018,3472810-28546,"1,429.00",JOHN R BUTTERFIELD LTD.
Regeneration and Local Services,Technical Services,Supplies and Services,304358,Equipment and Materials,03/08/2018,3472810-28547,"1,149.00",JOHN R BUTTERFIELD LTD.
Regeneration and Local Services,Technical Services,Supplies and Services,304358,Equipment and Materials,03/08/2018,3472810-28548,996.00,JOHN R BUTTERFIELD LTD.
Regeneration and Local Services,Technical Services,Supplies and Services,304358,Equipment and Materials,03/08/2018,3472810-28585,743.50,JOHN R BUTTERFIELD LTD.
Regeneration and Local Services,Technical Services,Supplies and Services,304221,Equipment and Materials,03/08/2018,3472814-GO11070/D,625.00,JT DOVE LTD.
Regeneration and Local Services,Technical Services,Supplies and Services,304221,Equipment and Materials,03/08/2018,3472814-STI483710,581.36,JT DOVE LTD.
Children and Young Peoples Services,Head of Education and Skills,Transport,230008,Contract Hire,03/08/2018,3472815-M046-JUL18,"1,410.00",K & R TAXIS (STANLEY).
Children and Young Peoples Services,Head of Education and Skills,Transport,230008,Contract Hire,03/08/2018,3472815-N071-JUL18,"1,860.00",K & R TAXIS (STANLEY).
Children and Young Peoples Services,Head of Education and Skills,Transport,230008,Contract Hire,03/08/2018,3472817-013,"1,725.00",KDH TAXIS.
Regeneration and Local Services,Direct Services,Supplies and Services,304259,Equipment and Materials,03/08/2018,3472818-114870,"1,195.00",KEEP BRITAIN TIDY.
Children and Young Peoples Services,Head of Education and Skills,Transport,230008,Contract Hire,03/08/2018,3472821-040718,"1,440.00",KEVIN EDMUNDSON.
Regeneration and Local Services,Technical Services,Supplies and Services,304358,Equipment and Materials,03/08/2018,3472822-2104,"2,411.00",KEVIN SNOWDON GROUNDWORKS LTD.
Regeneration and Local Services,Technical Services,Supplies and Services,304358,Equipment and Materials,03/08/2018,3472822-2142,736.00,KEVIN SNOWDON GROUNDWORKS LTD.
Regeneration and Local Services,Technical Services,Supplies and Services,304358,Equipment and Materials,03/08/2018,3472822-2144,690.00,KEVIN SNOWDON GROUNDWORKS LTD.
Regeneration and Local Services,Technical Services,Supplies and Services,304358,Equipment and Materials,03/08/2018,3472823-2183,884.00,KEVIN SNOWDON GROUNDWORKS LTD.
Regeneration and Local Services,Technical Services,Supplies and Services,304358,Equipment and Materials,03/08/2018,3472823-2187,"1,010.00",KEVIN SNOWDON GROUNDWORKS LTD.
Regeneration and Local Services,Technical Services,Supplies and Services,304358,Equipment and Materials,03/08/2018,3472823-2212,542.50,KEVIN SNOWDON GROUNDWORKS LTD.
Regeneration and Local Services,Technical Services,Supplies and Services,304358,Equipment and Materials,03/08/2018,3472823-2214,516.25,KEVIN SNOWDON GROUNDWORKS LTD.
Regeneration and Local Services,Technical Services,Supplies and Services,304358,Equipment and Materials,03/08/2018,3472823-2261,"1,804.00",KEVIN SNOWDON GROUNDWORKS LTD.
Regeneration and Local Services,Technical Services,Supplies and Services,304358,Equipment and Materials,03/08/2018,3472823-2288,"1,035.00",KEVIN SNOWDON GROUNDWORKS LTD.
Regeneration and Local Services,Technical Services,Supplies and Services,304358,Equipment and Materials,03/08/2018,3472823-2289,744.00,KEVIN SNOWDON GROUNDWORKS LTD.
Regeneration and Local Services,Technical Services,Supplies and Services,304358,Equipment and Materials,03/08/2018,3472823-2290,"1,416.00",KEVIN SNOWDON GROUNDWORKS LTD.
Regeneration and Local Services,Technical Services,Supplies and Services,304358,Equipment and Materials,03/08/2018,3472823-2291,"1,017.50",KEVIN SNOWDON GROUNDWORKS LTD.
Regeneration and Local Services,Technical Services,Supplies and Services,304358,Equipment and Materials,03/08/2018,3472823-2293,"1,017.50",KEVIN SNOWDON GROUNDWORKS LTD.
Regeneration and Local Services,Technical Services,Supplies and Services,304358,Equipment and Materials,03/08/2018,3472823-2294,827.00,KEVIN SNOWDON GROUNDWORKS LTD.
Regeneration and Local Services,Technical Services,Supplies and Services,304358,Equipment and Materials,03/08/2018,3472823-2295,"1,099.00",KEVIN SNOWDON GROUNDWORKS LTD.
Regeneration and Local Services,Technical Services,Supplies and Services,304358,Equipment and Materials,03/08/2018,3472823-2298,"1,017.50",KEVIN SNOWDON GROUNDWORKS LTD.
Regeneration and Local Services,Technical Services,Supplies and Services,304358,Equipment and Materials,03/08/2018,3472823-2299,"1,043.25",KEVIN SNOWDON GROUNDWORKS LTD.
Regeneration and Local Services,Technical Services,Supplies and Services,304358,Equipment and Materials,03/08/2018,3472823-2300,851.00,KEVIN SNOWDON GROUNDWORKS LTD.
Regeneration and Local Services,Technical Services,Supplies and Services,304358,Equipment and Materials,03/08/2018,3472823-2301,851.00,KEVIN SNOWDON GROUNDWORKS LTD.
Regeneration and Local Services,Technical Services,Supplies and Services,304358,Equipment and Materials,03/08/2018,3472823-2302,"1,022.00",KEVIN SNOWDON GROUNDWORKS LTD.
Regeneration and Local Services,Technical Services,Supplies and Services,304358,Equipment and Materials,03/08/2018,3472823-2304,922.00,KEVIN SNOWDON GROUNDWORKS LTD.
Regeneration and Local Services,Technical Services,Supplies and Services,304358,Equipment and Materials,03/08/2018,3472823-2307,902.00,KEVIN SNOWDON GROUNDWORKS LTD.
Regeneration and Local Services,Technical Services,Supplies and Services,304358,Equipment and Materials,03/08/2018,3472823-2308,884.00,KEVIN SNOWDON GROUNDWORKS LTD.
Regeneration and Local Services,Technical Services,Supplies and Services,304358,Equipment and Materials,03/08/2018,3472823-2309,591.25,KEVIN SNOWDON GROUNDWORKS LTD.
Regeneration and Local Services,Technical Services,Supplies and Services,304358,Equipment and Materials,03/08/2018,3472823-2317,"1,139.00",KEVIN SNOWDON GROUNDWORKS LTD.
Regeneration and Local Services,Technical Services,Supplies and Services,304358,Equipment and Materials,03/08/2018,3472823-2319,"1,099.00",KEVIN SNOWDON GROUNDWORKS LTD.
Regeneration and Local Services,Technical Services,Supplies and Services,304358,Equipment and Materials,03/08/2018,3472823-2320,"1,017.50",KEVIN SNOWDON GROUNDWORKS LTD.
Regeneration and Local Services,Technical Services,Supplies and Services,304358,Equipment and Materials,03/08/2018,3472823-2322,746.50,KEVIN SNOWDON GROUNDWORKS LTD.
Regeneration and Local Services,Direct Services,Transport,230005,Contract Hire,03/08/2018,3472829-4454012,913.00,LEEDS COMMERCIAL LTD.
Regeneration and Local Services,Direct Services,Transport,230005,Contract Hire,03/08/2018,3472829-4457283,"1,800.00",LEEDS COMMERCIAL LTD.
Regeneration and Local Services,Direct Services,Transport,210057,Repair and Maintenance of Vehicles,03/08/2018,3472833-149065,565.65,LONDONDERRY GARAGE (S.E) LTD.
Regeneration and Local Services,Direct Services,Transport,210057,Repair and Maintenance of Vehicles,03/08/2018,3472833-149102,555.27,LONDONDERRY GARAGE (S.E) LTD.
Children and Young Peoples Services,Head of Education and Skills,Transport,230008,Contract Hire,03/08/2018,3472835-37,"1,350.00",LORRAINES TAXIS.
Children and Young Peoples Services,"Head of Early Help, Inclusion and Vulnerable Children",Supplies and Services,384199,Miscellaneous Expenses,03/08/2018,3472836-65463,550.00,LUCION ENVIRONMENTAL LLP LTD.
Children and Young Peoples Services,Head of Education and Skills,Transport,230008,Contract Hire,03/08/2018,3472838-110,600.00,MACS TAXIS LTD.
Children and Young Peoples Services,Head of Education and Skills,Transport,230008,Contract Hire,03/08/2018,3472838-111,900.00,MACS TAXIS LTD.
Children and Young Peoples Services,Head of Education and Skills,Transport,230008,Contract Hire,03/08/2018,3472838-112,"1,200.00",MACS TAXIS LTD.
Children and Young Peoples Services,Head of Education and Skills,Transport,230006,Contract Hire,03/08/2018,3472842-INV-07/1813,625.00,MARK & JOHN CHISHOLM T/A (CHEVRON).
Dedicated Schools Grant,DSG High Needs Block,Transport,230010,Contract Hire,03/08/2018,3472842-INV07/1814,"1,790.00",MARK & JOHN CHISHOLM T/A (CHEVRON).
Children and Young Peoples Services,Head of Education and Skills,Transport,230008,Contract Hire,03/08/2018,3472842-INV07/1805,"1,410.00",MARK & JOHN CHISHOLM T/A (CHEVRON).
Children and Young Peoples Services,Head of Education and Skills,Transport,230008,Contract Hire,03/08/2018,3472844-22,"1,050.00",MARK SUMMERS T/A MARK`S TAXI.
Children and Young Peoples Services,Head of Education and Skills,Transport,230008,Contract Hire,03/08/2018,3472847-MCD3795,"1,110.00",MCDONALD TRAVEL.
Children and Young Peoples Services,Head of Education and Skills,Transport,230008,Contract Hire,03/08/2018,3472847-MCD3796,"1,020.00",MCDONALD TRAVEL.
Children and Young Peoples Services,Head of Education and Skills,Transport,230008,Contract Hire,03/08/2018,3472847-MCD3797,"1,440.00",MCDONALD TRAVEL.
Children and Young Peoples Services,Head of Education and Skills,Transport,230016,Contract Hire,03/08/2018,3472849-38A,"1,239.70",MICHAEL A BODDY T/A MBS TAXIS.
Children and Young Peoples Services,Head of Education and Skills,Transport,230007,Contract Hire,03/08/2018,3472854-919,"1,218.00",MR AD HOWARD T/A TOFT HILL TAXIS.
Children and Young Peoples Services,Head of Education and Skills,Transport,230008,Contract Hire,03/08/2018,3472804-A088JULY,"1,050.00",MR DAVID P BRACE T/A JAFFAS TAXIS.
Children and Young Peoples Services,Head of Education and Skills,Transport,230007,Contract Hire,03/08/2018,3472857-160-08-33,735.00,MR GS ANDERSON.
Children and Young Peoples Services,Head of Education and Skills,Transport,230008,Contract Hire,03/08/2018,3472857-158-06-31,"1,087.50",MR GS ANDERSON.
Children and Young Peoples Services,Head of Education and Skills,Transport,230008,Contract Hire,03/08/2018,3472857-159-07-32,727.50,MR GS ANDERSON.
Children and Young Peoples Services,Head of Education and Skills,Transport,230008,Contract Hire,03/08/2018,3472859-75,"1,125.00",MR JOHN KNIGHTON T/A JK TAXIS.
Adult and Health Services,Head of Adults,Supplies and Services,338042,Services,03/08/2018,3472860-1037801/A,"1,500.00",MR JOSEPH O`BRIEN.
Children and Young Peoples Services,Head of Education and Skills,Transport,230008,Contract Hire,03/08/2018,3472861-3,975.00,MR M FARREY T/A TK TAXIS.
Children and Young Peoples Services,Head of Education and Skills,Transport,230008,Contract Hire,03/08/2018,3472862-W046-JULY,"1,185.00",MR NEIL FRASER ELLIS T/A MILLENNIUM CABS.
Regeneration and Local Services,Direct Services,Third Party Payments 4THIRD,430100,Rendered by Private Contractors,03/08/2018,3472864-DCC045,"1,500.00",MR WILLIAM MAGUIRE T/A VALLUM LIFTS.
Regeneration and Local Services,Direct Services,Third Party Payments 4THIRD,430100,Rendered by Private Contractors,03/08/2018,3472864-DCC046,"1,500.00",MR WILLIAM MAGUIRE T/A VALLUM LIFTS.
Regeneration and Local Services,Technical Services,Supplies and Services,304358,Equipment and Materials,03/08/2018,3472866-NC/038/BW,"2,035.00",NEDCO CONTRACTS (NE) LTD.
Children and Young Peoples Services,Head of Education and Skills,Transport,230008,Contract Hire,03/08/2018,3472867-44,"1,233.00",NEIL PASSMOOR T/A NEIL`S TAXI.
Dedicated Schools Grant,DSG High Needs Block,Transport,230010,Contract Hire,03/08/2018,3472868-234,"2,240.00",NEVILLE FORBES T/A FORBES TAXIS.
Regeneration and Local Services,Culture & Sport,Supplies and Services,338047,Services,03/08/2018,3472869-133,"1,434.92",NEWBIRTH TOURING PRODUCTIONS LTD.
Dedicated Schools Grant,DSG High Needs Block,Third Party Payments 4THIRD,425005,Rendered by Voluntary Organisations,03/08/2018,3472876-0000036244,"23,308.60",NORTH EAST AUTISM SOCIETY.
Regeneration and Local Services,Technical Services,Third Party Payments 4THIRD,430100,Rendered by Private Contractors,03/08/2018,3472878-DI20298286,"1,040.91",NORTHERN POWERGRID (NORTHEAST) LTD.
Regeneration and Local Services,Technical Services,Third Party Payments 4THIRD,430100,Rendered by Private Contractors,03/08/2018,3472878-DI20298291,"2,804.31",NORTHERN POWERGRID (NORTHEAST) LTD.
Children and Young Peoples Services,Head of Education and Skills,Transport,230003,Contract Hire,03/08/2018,3472884-7518,855.00,OVERLANDER LTD.
Children and Young Peoples Services,Head of Education and Skills,Transport,230003,Contract Hire,03/08/2018,3472884-7519,"1,560.00",OVERLANDER LTD.
Children and Young Peoples Services,Head of Education and Skills,Transport,230008,Contract Hire,03/08/2018,3472887-SC-322,"1,200.00",PAUL BURRELL T/A PAUL BURRELL TAXIS.
Children and Young Peoples Services,Head of Education and Skills,Transport,230007,Contract Hire,03/08/2018,3472888-1668,"1,650.00",PAUL WATSON TRAVEL.
Children and Young Peoples Services,Head of Education and Skills,Transport,230007,Contract Hire,03/08/2018,3472888-1669,"1,650.00",PAUL WATSON TRAVEL.
Children and Young Peoples Services,Head of Education and Skills,Transport,230007,Contract Hire,03/08/2018,3472888-1670,"1,680.00",PAUL WATSON TRAVEL.
Children and Young Peoples Services,Head of Education and Skills,Transport,230008,Contract Hire,03/08/2018,3472893-0662,840.00,PETER`S PRIVATE HIRE/PETER BEST.
Children and Young Peoples Services,Head of Education and Skills,Transport,230008,Contract Hire,03/08/2018,3472893-0666,"1,552.50",PETER`S PRIVATE HIRE/PETER BEST.
Dedicated Schools Grant,DSG High Needs Block,Transport,230010,Contract Hire,03/08/2018,3472891-588,"1,775.00",PETERLEE EXECUTIVE CARS.
Children and Young Peoples Services,Head of Education and Skills,Transport,230008,Contract Hire,03/08/2018,3472895-820-E004,"1,425.00",PG TRIPS.
Children and Young Peoples Services,Head of Education and Skills,Transport,230008,Contract Hire,03/08/2018,3472895-820-M014,"1,275.00",PG TRIPS.
Children and Young Peoples Services,Head of Education and Skills,Transport,230008,Contract Hire,03/08/2018,3472898-1290,"1,495.00",PODA TAXIS LTD.
Regeneration and Local Services,Technical Services,Third Party Payments 4THIRD,430100,Rendered by Private Contractors,03/08/2018,3472905-2800/180638,"46,708.88",RAINTON CONSTRUCTION LTD.
Children and Young Peoples Services,Head of Education and Skills,Transport,230007,Contract Hire,03/08/2018,3472906-5230-JUL18,900.00,RAY WHITTLE.
Children and Young Peoples Services,Head of Education and Skills,Transport,230008,Contract Hire,03/08/2018,3472907-011,742.40,RAYMOND CHURNSIDE T/A S & L TAXI.
Children and Young Peoples Services,Head of Childrens Social Care,Third Party Payments 4THIRD,425021,Rendered by Voluntary Organisations,03/08/2018,3472908-4460,"4,150.00",REACH OUT CARE SUPPORT SERVICES LTD.
Regeneration and Local Services,EnvironmentHealth & Consumer Protection,Supplies and Services,372009,Subscriptions E372,03/08/2018,3472911-I4833,"1,500.00",RH ENVIRONMENTAL LTD.
Regeneration and Local Services,Direct Services,Transport,210057,Repair and Maintenance of Vehicles,03/08/2018,3472912-702421,694.00,RICKERBY LTD.
Regeneration and Local Services,Direct Services,Transport,210057,Repair and Maintenance of Vehicles,03/08/2018,3472912-703739,"1,278.54",RICKERBY LTD.
Regeneration and Local Services,Direct Services,Third Party Payments 4THIRD,430100,Rendered by Private Contractors,03/08/2018,3472914-48030,715.00,RJ UTILITY SERVICES LTD.
Children and Young Peoples Services,Head of Education and Skills,Transport,230008,Contract Hire,03/08/2018,3472916-223,"1,468.50",ROBBIE`S PRIVATE HIRE.
Children and Young Peoples Services,Head of Education and Skills,Transport,230007,Contract Hire,03/08/2018,3472917-171120,"2,175.00",ROBERTS TOURS.
Children and Young Peoples Services,Head of Education and Skills,Transport,230007,Contract Hire,03/08/2018,3472917-171121,"1,721.25",ROBERTS TOURS.
Children and Young Peoples Services,Head of Education and Skills,Transport,230007,Contract Hire,03/08/2018,3472917-171122,"2,062.50",ROBERTS TOURS.
Children and Young Peoples Services,Head of Education and Skills,Transport,230007,Contract Hire,03/08/2018,3472919-1754,"1,184.00",RON`S TAXIS (FISHBURN).
Children and Young Peoples Services,Head of Education and Skills,Transport,230008,Contract Hire,03/08/2018,3472919-1753,"1,200.00",RON`S TAXIS (FISHBURN).
Children and Young Peoples Services,Head of Education and Skills,Transport,230008,Contract Hire,03/08/2018,3472919-1755,"2,960.00",RON`S TAXIS (FISHBURN).
Regeneration and Local Services,Culture & Sport,Premises,106080,Centrally Controlled Rep and Maint,03/08/2018,3472927-98152812,585.00,SCHNEIDER ELECTRIC LTD.
Regeneration and Local Services,Direct Services,Premises,108099,Service Repairs and Maintenance,03/08/2018,3472927-98280646,"1,170.00",SCHNEIDER ELECTRIC LTD.
Transformation and Partnerships,Partnerships & Community Engagement Div.,Cap Exp on Grants & Other Financial Assistance (REFCUS),918004,Contributions to other bodies 918004,03/08/2018,3472931-VOUCHER17NM-EDUR029,"1,500.00",SEAHAM HARBOUR CIC.
Children and Young Peoples Services,Head of Education and Skills,Transport,230008,Contract Hire,03/08/2018,3472935-011-A038,"1,200.00",SHOEY`S TAXIS.
Children and Young Peoples Services,Head of Education and Skills,Transport,230008,Contract Hire,03/08/2018,3472936-74266,"1,330.00",SHOTTON PRIVATE HIRE.
Children and Young Peoples Services,Head of Education and Skills,Transport,230008,Contract Hire,03/08/2018,3472936-74268,"1,140.00",SHOTTON PRIVATE HIRE.
Children and Young Peoples Services,Head of Education and Skills,Transport,230008,Contract Hire,03/08/2018,3472936-74271-N095,"1,485.00",SHOTTON PRIVATE HIRE.
Children and Young Peoples Services,Head of Education and Skills,Transport,230012,Contract Hire,03/08/2018,3472939-650A,"1,800.00",SJ MACKENZIE T/A SCOTTS TAXIS.
Children and Young Peoples Services,Head of Education and Skills,Transport,230016,Contract Hire,03/08/2018,3472939-643A,"1,125.00",SJ MACKENZIE T/A SCOTTS TAXIS.
Children and Young Peoples Services,Head of Education and Skills,Transport,230008,Contract Hire,03/08/2018,3472939-637A,"1,125.00",SJ MACKENZIE T/A SCOTTS TAXIS.
Children and Young Peoples Services,Head of Education and Skills,Transport,230008,Contract Hire,03/08/2018,3472939-638A,"1,800.00",SJ MACKENZIE T/A SCOTTS TAXIS.
Children and Young Peoples Services,Head of Education and Skills,Transport,230008,Contract Hire,03/08/2018,3472939-639A,"1,950.00",SJ MACKENZIE T/A SCOTTS TAXIS.
Children and Young Peoples Services,Head of Education and Skills,Transport,230008,Contract Hire,03/08/2018,3472939-640A,"1,500.00",SJ MACKENZIE T/A SCOTTS TAXIS.
Children and Young Peoples Services,Head of Education and Skills,Transport,230008,Contract Hire,03/08/2018,3472939-641A,"1,350.00",SJ MACKENZIE T/A SCOTTS TAXIS.
Children and Young Peoples Services,Head of Education and Skills,Transport,230008,Contract Hire,03/08/2018,3472939-642A,"1,260.00",SJ MACKENZIE T/A SCOTTS TAXIS.
Children and Young Peoples Services,Head of Education and Skills,Transport,230008,Contract Hire,03/08/2018,3472939-646A,825.00,SJ MACKENZIE T/A SCOTTS TAXIS.
Children and Young Peoples Services,Head of Education and Skills,Transport,230008,Contract Hire,03/08/2018,3472939-647A,"1,200.00",SJ MACKENZIE T/A SCOTTS TAXIS.
Regeneration and Local Services,Technical Services,Stock A926,926900,Stock in hand-Inventory system,03/08/2018,3472940-192091,"2,368.80",SNAPFAST.
Resources,Digital and Customer Services,Supplies and Services,342051,Computers and Communications,03/08/2018,3472941-INV97633,"4,999.00",SOFTWARE BOX LTD.
Children and Young Peoples Services,Head of Education and Skills,Transport,230008,Contract Hire,03/08/2018,3472949-21JULY18,"1,050.00",STEELYS TAXIS.
Dedicated Schools Grant,DSG High Needs Block,Transport,230010,Contract Hire,03/08/2018,3472951-42,532.00,STEVEN HENDERSON T/A HENDYS TAXIS.
Children and Young Peoples Services,Head of Education and Skills,Transport,230007,Contract Hire,03/08/2018,3472952-1807006,600.00,STEVEN PRATT T/A PTL TAXIS DURHAM.
Adult and Health Services,Commissioning inc Supporting People,Supplies and Services,338089,Services,03/08/2018,3472954-4100626531,900.00,SUSAN BELL (EXTERNAL TRAINER).
Children and Young Peoples Services,Childrens Services Operational Support,Supplies and Services,338089,Services,03/08/2018,3472954-030718A,506.00,SUSAN BELL (EXTERNAL TRAINER).
Regeneration and Local Services,Economic Development and Housing,Premises,108125,Service Repairs and Maintenance,03/08/2018,3472955-18073,800.00,SWINBURNE HORTICULTURAL SERVICES LTD.
Children and Young Peoples Services,Head of Education and Skills,Transport,230007,Contract Hire,03/08/2018,3472957-1101SB,"1,200.00",T MOORE & SON.
Children and Young Peoples Services,Head of Education and Skills,Transport,230003,Contract Hire,03/08/2018,3472957-1103SA,966.00,T MOORE & SON.
Children and Young Peoples Services,Head of Education and Skills,Transport,230008,Contract Hire,03/08/2018,3472958-2015,"1,245.00",TAILORMADE TRAVEL.
Children and Young Peoples Services,Head of Education and Skills,Transport,230008,Contract Hire,03/08/2018,3472959-07/2018/004,787.50,TARNS TAXIS LTD.
Children and Young Peoples Services,Head of Education and Skills,Transport,230008,Contract Hire,03/08/2018,3472959-07/2018/005,888.00,TARNS TAXIS LTD.
Children and Young Peoples Services,Head of Education and Skills,Transport,230007,Contract Hire,03/08/2018,3472961-009,"1,380.00",TAXZ.
Children and Young Peoples Services,Head of Education and Skills,Transport,230007,Contract Hire,03/08/2018,3472961-011,966.00,TAXZ.
Children and Young Peoples Services,Head of Education and Skills,Transport,230009,Contract Hire,03/08/2018,3472961-008,"1,520.00",TAXZ.
Children and Young Peoples Services,Head of Education and Skills,Transport,230009,Contract Hire,03/08/2018,3472961-010,"1,200.00",TAXZ.
Dedicated Schools Grant,DSG High Needs Block,Transport,230010,Contract Hire,03/08/2018,3472965-0033/0034,810.00,TERENCE CLARKE T/A TC TAXIS.
Regeneration and Local Services,Technical Services,Stock A926,926900,Stock in hand-Inventory system,03/08/2018,3472967-N/IN225637,972.14,THOMAS OWEN & SONS (NEWCASTLE) LTD.
Regeneration and Local Services,Technical Services,Stock A926,926900,Stock in hand-Inventory system,03/08/2018,3472967-N/IN225642,553.61,THOMAS OWEN & SONS (NEWCASTLE) LTD.
Dedicated Schools Grant,DSG High Needs Block,Third Party Payments 4THIRD,440080,Other third party payments E440,03/08/2018,3472970-MAY-JULY18-DC,"1,218.00",TONYS TAXIS (A BIRCH).
Children and Young Peoples Services,Head of Education and Skills,Transport,230012,Contract Hire,03/08/2018,3472971-S022,810.00,TOP STAR TRAVEL.
Children and Young Peoples Services,Head of Education and Skills,Transport,230012,Contract Hire,03/08/2018,3472971-TS-18/22,900.00,TOP STAR TRAVEL.
Children and Young Peoples Services,Head of Education and Skills,Transport,230008,Contract Hire,03/08/2018,3472971-TS-15/22,720.00,TOP STAR TRAVEL.
Children and Young Peoples Services,Head of Education and Skills,Transport,230008,Contract Hire,03/08/2018,3472971-TS21/22,720.00,TOP STAR TRAVEL.
Regeneration and Local Services,Direct Services,Transport,230005,Contract Hire,03/08/2018,3472973-18487,975.00,TRASH UK LTD.
Regeneration and Local Services,Direct Services,Transport,230005,Contract Hire,03/08/2018,3472973-18489,750.00,TRASH UK LTD.
Regeneration and Local Services,Direct Services,Transport,230005,Contract Hire,03/08/2018,3472973-18538,975.00,TRASH UK LTD.
Children and Young Peoples Services,Head of Education and Skills,Transport,230008,Contract Hire,03/08/2018,3472974-04-N086,"1,200.00",TRIDENT TAXIS.
Children and Young Peoples Services,Head of Education and Skills,Transport,230008,Contract Hire,03/08/2018,3472974-11-A133,870.00,TRIDENT TAXIS.
Regeneration and Local Services,Culture & Sport,Premises,106082,Centrally Controlled Rep and Maint,03/08/2018,3472976-910112,635.00,TYCO FIRE & INTEGRATED SOLUTIONS (UK) LTD.
Regeneration and Local Services,Technical Services,Supplies and Services,304221,Equipment and Materials,03/08/2018,3472977-189104,697.97,TYNEDALE ROADSTONE LTD.
Regeneration and Local Services,Technical Services,Supplies and Services,304221,Equipment and Materials,03/08/2018,3472977-189106,"1,089.20",TYNEDALE ROADSTONE LTD.
Regeneration and Local Services,Technical Services,Supplies and Services,304221,Equipment and Materials,03/08/2018,3472977-189107,687.68,TYNEDALE ROADSTONE LTD.
Regeneration and Local Services,Technical Services,Supplies and Services,304358,Equipment and Materials,03/08/2018,3472984-45054,"3,385.00",W MARLEY AGRICULTURAL CONTRACTORS LTD.
Regeneration and Local Services,Technical Services,Supplies and Services,304358,Equipment and Materials,03/08/2018,3472984-45055,"3,353.75",W MARLEY AGRICULTURAL CONTRACTORS LTD.
Regeneration and Local Services,Technical Services,Supplies and Services,304358,Equipment and Materials,03/08/2018,3472984-45520,541.25,W MARLEY AGRICULTURAL CONTRACTORS LTD.
Regeneration and Local Services,Direct Services,Transport,230005,Contract Hire,03/08/2018,3472986-76855,775.00,WARREN ACCESS LTD.
Regeneration and Local Services,Direct Services,Third Party Payments 4THIRD,430100,Rendered by Private Contractors,03/08/2018,3472987-INV-0968,"1,091.50",WATER SOLUTIONS (EUROPE) LTD.
Children and Young Peoples Services,Head of Education and Skills,Transport,230008,Contract Hire,03/08/2018,3472988-0002022,"1,125.00",WATSON OF SPENNYMOOR.
Transformation and Partnerships,Partnerships & Community Engagement Div.,Supplies and Services,384086,Miscellaneous Expenses,03/08/2018,3472989-VOUCHER17NB-BASH025,"1,040.00",WEAR RIVERS TRUST.
Dedicated Schools Grant,DSG High Needs Block,Transport,230010,Contract Hire,03/08/2018,3472991-487862,"1,175.00",WENDYS` TAXIS.
Dedicated Schools Grant,DSG High Needs Block,Transport,230010,Contract Hire,03/08/2018,3472992-128,"1,050.00",WHITTONSTALL TAXIS SERVICE.
Transformation and Partnerships,Partnerships & Community Engagement Div.,Cap Exp on Grants & Other Financial Assistance (REFCUS),918004,Contributions to other bodies 918004,03/08/2018,3472994-VOUCHER18NB-EDUR008,"2,800.00",WINGATE COMMUNITY ASSOCIATION.
Regeneration and Local Services,Direct Services,Supplies and Services,304221,Equipment and Materials,03/08/2018,3472995-53526852,"2,959.62",WOLSELEY UK LTD.
Regeneration and Local Services,Economic Development and Housing,Supplies and Services,384199,Miscellaneous Expenses,06/08/2018,3473001-201452,850.00,21ST CENTURY PASSENGER SYSTEMS LTD.
Children and Young Peoples Services,Head of Education and Skills,Transport,230006,Contract Hire,06/08/2018,3473004-HA220802,742.50,A MURRAY TRAVEL.
Children and Young Peoples Services,Head of Education and Skills,Transport,230008,Contract Hire,06/08/2018,3473004-A220800,"1,005.00",A MURRAY TRAVEL.
Children and Young Peoples Services,Head of Education and Skills,Transport,230008,Contract Hire,06/08/2018,3473004-EA220796,"1,785.00",A MURRAY TRAVEL.
Children and Young Peoples Services,Head of Education and Skills,Transport,230008,Contract Hire,06/08/2018,3473004-GC010,742.50,A MURRAY TRAVEL.
Regeneration and Local Services,Technical Services,Third Party Payments 4THIRD,410037,Rendered by Other Local Authorities,06/08/2018,3473009-28354830,"3,997.50",AECOM LTD.
Regeneration and Local Services,Spatial Policy Planning Assets & Environment,Supplies and Services,338066,Services,06/08/2018,3473010-INV-0300,500.00,AERIAL EXPOSURE LTD.
Regeneration and Local Services,Technical Services,Supplies and Services,304221,Equipment and Materials,06/08/2018,3473011-26847977,"1,414.72",AGGREGATE INDUSTRIES UK LTD.
Regeneration and Local Services,Technical Services,Supplies and Services,304221,Equipment and Materials,06/08/2018,3473011-26847978,970.88,AGGREGATE INDUSTRIES UK LTD.
Regeneration and Local Services,Technical Services,Supplies and Services,304221,Equipment and Materials,06/08/2018,3473011-26855317,"1,458.80",AGGREGATE INDUSTRIES UK LTD.
Regeneration and Local Services,Technical Services,Supplies and Services,304221,Equipment and Materials,06/08/2018,3473011-26855318,925.76,AGGREGATE INDUSTRIES UK LTD.
Resources,Legal & Democratic Services,Supplies and Services,338057,Services,06/08/2018,3473012-0000030811,"1,930.00",ALERE FORENSICS.
Regeneration and Local Services,Direct Services,Supplies and Services,372009,Subscriptions E372,06/08/2018,3473018-PN1819/22,"7,902.00",APSE.
Regeneration and Local Services,Culture & Sport,Supplies and Services,312013,Newspapers books and periodicals E312,06/08/2018,3473027-5778484,603.85,ASKEWS & HOLTS LIBRARY SERVICES LTD.
Children and Young Peoples Services,Head of Education and Skills,Supplies and Services,312009,Newspapers books and periodicals E312,06/08/2018,3473027-5782199,727.65,ASKEWS & HOLTS LIBRARY SERVICES LTD.
Adult and Health Services,Commissioning inc Supporting People,Third Party Payments 4THIRD,479111,Purchase of Care,06/08/2018,3473028-5056,"13,496.00",ASPIRE LEARNING SUPPORT & WELLBEING CIC.
Children and Young Peoples Services,Head of Education and Skills,Supplies and Services,384199,Miscellaneous Expenses,06/08/2018,3473029-138,540.00,ASPIRE TRAINING & DEVELOPMENT SOLUTIONS.
Children and Young Peoples Services,Head of Education and Skills,Transport,230007,Contract Hire,06/08/2018,3473030-03799,555.00,ATLAS TAXIS CONSETT.
Adult and Health Services,Head of Adults,Supplies and Services,384504,Miscellaneous Expenses,06/08/2018,3473032-AHS01935,"2,502.79",AUCKLAND HOME SOLUTIONS CIC.
Regeneration and Local Services,Technical Services,Supplies and Services,304221,Equipment and Materials,06/08/2018,3473046-BMPR/197/LW,"1,500.00",BISHOP MIDDLEHAM PLANT & RECYCLING LTD.
Adult and Health Services,Head of Adults,Transport,230005,Contract Hire,06/08/2018,3473051-7063,"1,089.00",BOBBY DOVE.
Regeneration and Local Services,Direct Services,Third Party Payments 4THIRD,430100,Rendered by Private Contractors,06/08/2018,3473058-4100617515,"2,981.00",BRIAN YOUNGER T/A B & E YOUNGER FLOORING.
Regeneration and Local Services,Transport and Contracted Services,Supplies and Services,336005,Advertising E336,06/08/2018,3473065-117347,750.00,CALCO PUBLICATIONS LLP.
Regeneration and Local Services,Transport and Contracted Services,Supplies and Services,336005,Advertising E336,06/08/2018,3473065-117348,750.00,CALCO PUBLICATIONS LLP.
Regeneration and Local Services,Transport and Contracted Services,Supplies and Services,336005,Advertising E336,06/08/2018,3473065-117349,750.00,CALCO PUBLICATIONS LLP.
Adult and Health Services,Head of Adults,Supplies and Services,338366,Services,06/08/2018,3473066-51302,"1,574.70",CARE ABILITY.
Regeneration and Local Services,Direct Services,Third Party Payments 4THIRD,430100,Rendered by Private Contractors,06/08/2018,3473068-4513,910.40,CATHEDRAL LOCK & SAFE SERVICES LTD.
Regeneration and Local Services,Direct Services,Third Party Payments 4THIRD,430100,Rendered by Private Contractors,06/08/2018,3473068-4515,"3,533.29",CATHEDRAL LOCK & SAFE SERVICES LTD.
Regeneration and Local Services,Technical Services,Supplies and Services,304221,Equipment and Materials,06/08/2018,3473069-3010682518,"1,280.30",CEMEX UK MATERIALS LTD.
Regeneration and Local Services,Technical Services,Supplies and Services,304221,Equipment and Materials,06/08/2018,3473069-3010682519,"2,387.92",CEMEX UK MATERIALS LTD.
Regeneration and Local Services,Technical Services,Supplies and Services,304221,Equipment and Materials,06/08/2018,3473069-3010685791,"2,273.15",CEMEX UK MATERIALS LTD.
Resources,Internal Audit and Insurance,Supplies and Services,338099,Services,06/08/2018,3473075-C/RB167793,"2,040.00",CIVICA UK LTD.
Children and Young Peoples Services,Head of Education and Skills,Transport,230012,Contract Hire,06/08/2018,3473078-50,"1,078.00",CLOVER TAXIS.
Children and Young Peoples Services,Head of Education and Skills,Transport,230012,Contract Hire,06/08/2018,3473078-52,825.00,CLOVER TAXIS.
Transformation and Partnerships,Partnerships & Community Engagement Div.,Supplies and Services,308011,Furniture,06/08/2018,3473082-MED9901,935.00,COUNTY DURHAM FURNITURE HELP SCHEME (CDFHS).
Regeneration and Local Services,Economic Development and Housing,Supplies and Services,377015,County Durham Development,06/08/2018,3473086-2018/014,620.00,CYD & CYD LTD.
Children and Young Peoples Services,Head of Education and Skills,Transport,230008,Contract Hire,06/08/2018,3473092-3323,"1,845.00",DAVES MINIBUSES.
Children and Young Peoples Services,Head of Education and Skills,Transport,230008,Contract Hire,06/08/2018,3473092-3324,"1,275.00",DAVES MINIBUSES.
Children and Young Peoples Services,Head of Education and Skills,Transport,230008,Contract Hire,06/08/2018,3473092-3325,"1,170.00",DAVES MINIBUSES.
Resources,Digital and Customer Services,Vehicles Equipment Furniture and Fittings,912701,Computer equipment,06/08/2018,3473095-7402456112,"2,073.15",DELL COMPUTER CORPORATION LTD.
Resources,Digital and Customer Services,Vehicles Equipment Furniture and Fittings,912701,Computer equipment,06/08/2018,3473095-7402456236,"10,883.00",DELL COMPUTER CORPORATION LTD.
Resources,Digital and Customer Services,Supplies and Services,342033,Computers and Communications,06/08/2018,3473095-7402455695,"14,490.00",DELL COMPUTER CORPORATION LTD.
Resources,Digital and Customer Services,Stock A926,926900,Stock in hand-Inventory system,06/08/2018,3473095-7402455769,966.00,DELL COMPUTER CORPORATION LTD.
Resources,Digital and Customer Services,Stock A926,926900,Stock in hand-Inventory system,06/08/2018,3473095-7402455977,524.34,DELL COMPUTER CORPORATION LTD.
Regeneration and Local Services,Direct Services,Third Party Payments 4THIRD,430100,Rendered by Private Contractors,06/08/2018,3473097-330060,"1,423.38",DENNIS EAGLE LTD.
Regeneration and Local Services,Direct Services,Third Party Payments 4THIRD,430101,Rendered by Private Contractors,06/08/2018,3473102-IV1008392,"1,691.31",DIRECT TYRE MANAGEMENT LTD (DTM).
Children and Young Peoples Services,Head of Childrens Social Care,Supplies and Services,338044,Services,06/08/2018,3473105-SI-218,"1,006.40",DR SUSAN COOPER.
Adult and Health Services,Commissioning inc Supporting People,Third Party Payments 4THIRD,443001,Supporting People E443,06/08/2018,3473108-1967984,"1,844.90",DURHAM ACTION ON SINGLE HOUSING.
Transformation and Partnerships,Partnerships & Community Engagement Div.,Supplies and Services,384199,Miscellaneous Expenses,06/08/2018,3473111-CAS-07-2018-083,"1,471.59",DURHAM COUNTY CARERS SUPPORT.
Adult and Health Services,Head of Adults,Supplies and Services,338365,Services,06/08/2018,3473116-39907,635.17,EASIBATHE LTD.
Regeneration and Local Services,Direct Services,Supplies and Services,304221,Equipment and Materials,06/08/2018,3473119-059-227371,520.00,EDMUNDSON ELECTRICAL LTD.
Regeneration and Local Services,Direct Services,Supplies and Services,304221,Equipment and Materials,06/08/2018,3473119-059-227442,"1,058.82",EDMUNDSON ELECTRICAL LTD.
Regeneration and Local Services,Direct Services,Supplies and Services,304221,Equipment and Materials,06/08/2018,3473119-059-227505,"1,594.20",EDMUNDSON ELECTRICAL LTD.
Regeneration and Local Services,Culture & Sport,Supplies and Services,312013,Newspapers books and periodicals E312,06/08/2018,3473124-25778,"6,695.00",ENCYCLOPAEDIA BRITANNICA (UK) LTD.
Regeneration and Local Services,Technical Services,Supplies and Services,384199,Miscellaneous Expenses,06/08/2018,3473125-18501956,"1,000.00",ENER-G COMBINED POWER LTD.
Regeneration and Local Services,Technical Services,Supplies and Services,384199,Miscellaneous Expenses,06/08/2018,3473129-126261/01,"1,995.00",FAIRHURST.
Regeneration and Local Services,Technical Services,Supplies and Services,338027,Services,06/08/2018,3473129-125693/01,"1,350.00",FAIRHURST.
Children and Young Peoples Services,Head of Education and Skills,Supplies and Services,338094,Services,06/08/2018,3473130-1802,720.00,FERRYHILL LADDER CENTRE LTD.
Children and Young Peoples Services,Head of Education and Skills,Supplies and Services,338094,Services,06/08/2018,3473130-1803,720.00,FERRYHILL LADDER CENTRE LTD.
Children and Young Peoples Services,Head of Education and Skills,Transport,230008,Contract Hire,06/08/2018,3473131-N060-022,"1,800.00",FERRYHILL VILLAGE TRAVEL.
Children and Young Peoples Services,Head of Education and Skills,Transport,230008,Contract Hire,06/08/2018,3473131-W053-022,"1,128.75",FERRYHILL VILLAGE TRAVEL.
Regeneration and Local Services,Transport and Contracted Services,Third Party Payments 4THIRD,430106,Rendered by Private Contractors,06/08/2018,3473131-JUNE/JULY18,"5,766.60",FERRYHILL VILLAGE TRAVEL.
Transformation and Partnerships,Partnerships & Community Engagement Div.,Cap Exp on Grants & Other Financial Assistance (REFCUS),918004,Contributions to other bodies 918004,06/08/2018,3473134-VOUCHER17AB-DCTY011,"10,000.00",FRAMWELLGATE MOOR PARISH COUNCIL.
Children and Young Peoples Services,Head of Education and Skills,Transport,230003,Contract Hire,06/08/2018,3473139-100933,"2,970.00",G & P JOHNSON LTD T/A NIGHTINGALE COACHES.
Children and Young Peoples Services,Head of Education and Skills,Transport,230007,Contract Hire,06/08/2018,3473140-20635-3042,"2,317.50",GARNETTS LTD (COACHES).
Children and Young Peoples Services,Head of Education and Skills,Transport,230007,Contract Hire,06/08/2018,3473140-20635-3195,"2,092.50",GARNETTS LTD (COACHES).
Children and Young Peoples Services,Head of Education and Skills,Transport,230009,Contract Hire,06/08/2018,3473146-GT015-JULY,532.00,GORDON`S TAXIS.
Children and Young Peoples Services,Head of Education and Skills,Transfer Payments,510027,School Children,06/08/2018,3473147-INV07475,"1,872.00",GREAT AYCLIFFE TOWN COUNCIL.
Adult and Health Services,Head of Adults,Supplies and Services,328041,Clothing uniforms and laundry E328,06/08/2018,3473148-06/749139,513.00,GREENHAM TRADING LTD.
Regeneration and Local Services,Direct Services,Supplies and Services,304221,Equipment and Materials,06/08/2018,3473148-06/749452,687.40,GREENHAM TRADING LTD.
Dedicated Schools Grant,DSG High Needs Block,Central Support and Other Recharges,615092,Support Services,06/08/2018,3473155-CAS-08-2018-024,500.00,HARTSIDE PRIMARY ACADEMY.
Regeneration and Local Services,Direct Services,Third Party Payments 4THIRD,430100,Rendered by Private Contractors,06/08/2018,3473161-2523,690.00,IAN C LIDDLE.
Dedicated Schools Grant,DSG High Needs Block,Transport,230010,Contract Hire,06/08/2018,3473162-011,"1,275.00",IAN SOULSBY.
Regeneration and Local Services,Direct Services,Supplies and Services,304221,Equipment and Materials,06/08/2018,3473163-7407,600.00,IBA FABRICATIONS LTD.
Regeneration and Local Services,Direct Services,Supplies and Services,304221,Equipment and Materials,06/08/2018,3473163-7411,500.00,IBA FABRICATIONS LTD.
Regeneration and Local Services,Direct Services,Supplies and Services,304221,Equipment and Materials,06/08/2018,3473163-7412,500.00,IBA FABRICATIONS LTD.
Resources,Corporate Finance & Commercial Services,Supplies and Services,338066,Services,06/08/2018,3473164-II0193,"1,500.00",ICHABOD`S INDUSTRIES LTD.
Adult and Health Services,Public Health,Supplies and Services,342033,Computers and Communications,06/08/2018,3473167-3967798,"1,584.00",INSIGHT DIRECT (UK) LTD.
Resources,Digital and Customer Services,Stock A926,926900,Stock in hand-Inventory system,06/08/2018,3473167-3968319,"1,950.00",INSIGHT DIRECT (UK) LTD.
Children and Young Peoples Services,Head of Education and Skills,Supplies and Services,342053,Computers and Communications,06/08/2018,3473169-INV329668,"14,789.10",INSTRUCTURE GLOBAL LTD.
Adult and Health Services,Commissioning inc Supporting People,Supplies and Services,338089,Services,06/08/2018,3473166-5857,"1,800.00",IN-TRAC TRAINING & CONSULTANCY LTD.
Children and Young Peoples Services,Childrens Services Operational Support,Supplies and Services,338089,Services,06/08/2018,3473166-5801,525.00,IN-TRAC TRAINING & CONSULTANCY LTD.
Regeneration and Local Services,Technical Services,Supplies and Services,304358,Equipment and Materials,06/08/2018,3473172-158/2018,"1,166.00",J & JG GILL & SONS LTD.
Children and Young Peoples Services,Head of Education and Skills,Transport,230009,Contract Hire,06/08/2018,3473177-0615,570.00,JACKSON`S TAXI.
Children and Young Peoples Services,Head of Education and Skills,Transport,230009,Contract Hire,06/08/2018,3473177-0617,886.50,JACKSON`S TAXI.
Regeneration and Local Services,Direct Services,Supplies and Services,304259,Equipment and Materials,06/08/2018,3473180-34498,"4,650.00",JD GARAGE EQUIPMENT T/A JD ENGINEERING  (NORTHERN) LTD.
Regeneration and Local Services,Direct Services,Supplies and Services,304259,Equipment and Materials,06/08/2018,3473180-34499,"4,650.00",JD GARAGE EQUIPMENT T/A JD ENGINEERING  (NORTHERN) LTD.
Transformation and Partnerships,Comms & Information Management,Supplies and Services,304259,Equipment and Materials,06/08/2018,3473185-122274,516.06,JOHN PURCELL PAPER.
Regeneration and Local Services,Technical Services,Stock A926,926900,Stock in hand-Inventory system,06/08/2018,3473189-BII262853,"1,302.57",JT DOVE LTD.
Regeneration and Local Services,Technical Services,Stock A926,926900,Stock in hand-Inventory system,06/08/2018,3473189-GOI1072/D,"3,195.00",JT DOVE LTD.
Regeneration and Local Services,Technical Services,Stock A926,926900,Stock in hand-Inventory system,06/08/2018,3473189-STI483788,647.46,JT DOVE LTD.
Regeneration and Local Services,Direct Services,Stock A926,926900,Stock in hand-Inventory system,06/08/2018,3473191-SI02-0191936,749.73,KILLGERM CHEMICALS LTD.
Regeneration and Local Services,Technical Services,Third Party Payments 4THIRD,430100,Rendered by Private Contractors,06/08/2018,3473194-2010,"44,025.74",L & G PLANT HIRE & SALES LTD.
Children and Young Peoples Services,Head of Education and Skills,Transport,230008,Contract Hire,06/08/2018,3473195-3C-JULY,"1,800.00",L & R PRIVATE HIRE.
Regeneration and Local Services,Spatial Policy Planning Assets & Environment,Supplies and Services,338045,Services,06/08/2018,3473198-INVNT10,"5,500.00",LANDMARK CHAMBERS.
Regeneration and Local Services,Direct Services,Supplies and Services,304221,Equipment and Materials,06/08/2018,3473201-00001590,"5,693.00",LESTER CONTROL SYSTEMS LTD.
Children and Young Peoples Services,Head of Education and Skills,Transfer Payments,510027,School Children,06/08/2018,3473203-0064/2018,986.58,LITTLE STARS EARLY YEARS.
Children and Young Peoples Services,Head of Education and Skills,Transfer Payments,510027,School Children,06/08/2018,3473203-0065/2018,986.58,LITTLE STARS EARLY YEARS.
Children and Young Peoples Services,Head of Education and Skills,Transfer Payments,510027,School Children,06/08/2018,3473203-0066/2018,"1,096.20",LITTLE STARS EARLY YEARS.
Children and Young Peoples Services,Head of Education and Skills,Transfer Payments,510027,School Children,06/08/2018,3473203-0067/2018,"1,096.20",LITTLE STARS EARLY YEARS.
Regeneration and Local Services,Technical Services,Stock A926,926900,Stock in hand-Inventory system,06/08/2018,3473204-11563,"1,513.00",LOGIC STREET & PARK FURNITURE LTD.
Dedicated Schools Grant,DSG High Needs Block,Supplies and Services,304259,Equipment and Materials,06/08/2018,3473208-INV-2881,"1,254.00",LYNCH HEALTHCARE LTD.
Dedicated Schools Grant,DSG High Needs Block,Supplies and Services,304259,Equipment and Materials,06/08/2018,3473208-INV-2885,"1,254.00",LYNCH HEALTHCARE LTD.
Children and Young Peoples Services,Head of Education and Skills,Transport,230008,Contract Hire,06/08/2018,3473211-21,"1,095.20",M&C`S CABS LTD.
Children and Young Peoples Services,Head of Education and Skills,Transport,230004,Contract Hire,06/08/2018,3473212-5635,580.00,MAKEPEACE MOTORS.
Children and Young Peoples Services,Head of Education and Skills,Transport,230006,Contract Hire,06/08/2018,3473212-5633,944.00,MAKEPEACE MOTORS.
Regeneration and Local Services,Technical Services,Stock A926,926900,Stock in hand-Inventory system,06/08/2018,3473213-132250,"1,146.40",MALLATITE LTD T/A MALLATITE PLASTICS LTD.
Dedicated Schools Grant,DSG High Needs Block,Transport,230010,Contract Hire,06/08/2018,3473214-INV07/1803,"2,530.00",MARK & JOHN CHISHOLM T/A (CHEVRON).
Regeneration and Local Services,Direct Services,Supplies and Services,304221,Equipment and Materials,06/08/2018,3473216-NE179965,"1,057.82",MCNAUGHTON BLAIR LTD T/A LLOYD WORRALL (NEWCASTLE UPON TYNE) LTD.
Adult and Health Services,Head of Adults,Supplies and Services,304259,Equipment and Materials,06/08/2018,3473218-PI-180713-1,610.86,MICHELLE BROWN T/A TRANSFORMATIONS.
Children and Young Peoples Services,Head of Education and Skills,Transport,230012,Contract Hire,06/08/2018,3473222-KDC-010718,"1,725.00",MJ TIMNEY T/A KDC & C&M TAXIS.
Children and Young Peoples Services,Head of Education and Skills,Transport,230006,Contract Hire,06/08/2018,3473225-810,"1,650.00",MOLLYS TAXIS.
Children and Young Peoples Services,Head of Education and Skills,Transport,230008,Contract Hire,06/08/2018,3473225-807,"1,440.00",MOLLYS TAXIS.
Children and Young Peoples Services,Head of Education and Skills,Transport,230008,Contract Hire,06/08/2018,3473225-808,"1,800.00",MOLLYS TAXIS.
Children and Young Peoples Services,Head of Education and Skills,Transport,230008,Contract Hire,06/08/2018,3473225-809,"1,650.00",MOLLYS TAXIS.
Children and Young Peoples Services,Head of Education and Skills,Transport,230008,Contract Hire,06/08/2018,3473227-0304882,"1,050.00",MR GN ROBBINS T/A GNR MINIBUS HIRE.
Children and Young Peoples Services,Head of Education and Skills,Transport,230008,Contract Hire,06/08/2018,3473227-0304883,"1,050.00",MR GN ROBBINS T/A GNR MINIBUS HIRE.
Children and Young Peoples Services,Head of Education and Skills,Transport,230006,Contract Hire,06/08/2018,3473228-OC/07/17,810.00,MR J AGAR T/A PARK TAXIS.
Children and Young Peoples Services,Head of Education and Skills,Transport,230008,Contract Hire,06/08/2018,3473228-SFB/07/18,"1,260.00",MR J AGAR T/A PARK TAXIS.
Children and Young Peoples Services,Head of Education and Skills,Transport,230012,Contract Hire,06/08/2018,3473230-073,"1,140.00",MR LJ TARRY T/A TARRY`S TAXI`S.
Children and Young Peoples Services,Head of Education and Skills,Transport,230012,Contract Hire,06/08/2018,3473231-102,750.00,MR NORMAN STEVENSON T/A EXTREME TAXI`S.
Children and Young Peoples Services,Head of Education and Skills,Transport,230008,Contract Hire,06/08/2018,3473231-101,750.00,MR NORMAN STEVENSON T/A EXTREME TAXI`S.
Children and Young Peoples Services,Head of Education and Skills,Transport,230007,Contract Hire,06/08/2018,3473233-1650,750.00,MR PETER YOUNG.
Children and Young Peoples Services,Head of Education and Skills,Transport,230012,Contract Hire,06/08/2018,3473233-1651,973.20,MR PETER YOUNG.
Dedicated Schools Grant,DSG High Needs Block,Transport,230010,Contract Hire,06/08/2018,3473236-FERRY0718,630.00,MR STUART SCOTT T/A AIRPORT CARS DURHAM
Resources,Digital and Customer Services,Supplies and Services,344111,Telephones,06/08/2018,3473240-202591,"4,833.00",NETWORKS 2 BUSINESS LTD.
Resources,Digital and Customer Services,Supplies and Services,344033,Telephones,06/08/2018,3473240-202582,"1,202.40",NETWORKS 2 BUSINESS LTD.
Transformation and Partnerships,Partnerships & Community Engagement Div.,Cap Exp on Grants & Other Financial Assistance (REFCUS),918004,Contributions to other bodies 918004,06/08/2018,3473241-VOUCHER18NB-GAMP003,"4,000.00",NEWTON AYCLIFFE WORKING MEN`S CLUB & INSTITUTE LTD.
Children and Young Peoples Services,Head of Education and Skills,Supplies and Services,304083,Equipment and Materials,06/08/2018,3473243-17138859,524.48,NISBETS PLC.
Children and Young Peoples Services,Head of Education and Skills,Third Party Payments 4THIRD,440999,Other third party payments E440,06/08/2018,3473245-3183,"1,664.00",NORTH EAST DANCE CIC.
Children and Young Peoples Services,Head of Education and Skills,Third Party Payments 4THIRD,440999,Other third party payments E440,06/08/2018,3473245-3184,936.00,NORTH EAST DANCE CIC.
Children and Young Peoples Services,Head of Education and Skills,Third Party Payments 4THIRD,440999,Other third party payments E440,06/08/2018,3473245-3186,832.00,NORTH EAST DANCE CIC.
Regeneration and Local Services,Technical Services,Third Party Payments 4THIRD,430100,Rendered by Private Contractors,06/08/2018,3473249-DI20297996,780.81,NORTHERN POWERGRID (NORTHEAST) LTD.
Regeneration and Local Services,Technical Services,Third Party Payments 4THIRD,430100,Rendered by Private Contractors,06/08/2018,3473249-DI20298276,"1,005.33",NORTHERN POWERGRID (NORTHEAST) LTD.
Children and Young Peoples Services,Head of Education and Skills,Transport,230008,Contract Hire,06/08/2018,3473252-7517,"1,341.00",OVERLANDER LTD.
Regeneration and Local Services,Economic Development and Housing,Supplies and Services,384437,Miscellaneous Expenses,06/08/2018,3473254-F56508010/1,700.50,P & O FERRIES HOLDINGS LTD.
Regeneration and Local Services,Culture & Sport,Supplies and Services,332029,Printing Stationery and Gen Off Exps,06/08/2018,3473258-24594838,507.50,PARK RETAIL LTD.
Regeneration and Local Services,Culture & Sport,Supplies and Services,338047,Services,06/08/2018,3473259-0024,"1,000.00",PAUL LIPPEATT T/A ALL SHOOK UP.
Transformation and Partnerships,Partnerships & Community Engagement Div.,Supplies and Services,384086,Miscellaneous Expenses,06/08/2018,3473266-VOUCHERHAWK04-18,500.00,PETERLEE HELFORD FC.
Children and Young Peoples Services,Head of Education and Skills,Supplies and Services,312009,Newspapers books and periodicals E312,06/08/2018,3473267-1703718,904.03,PETERS LTD.
Regeneration and Local Services,Direct Services,Supplies and Services,384956,Miscellaneous Expenses,06/08/2018,3473273-SIN739157,966.20,PPL PRS LTD.
Children and Young Peoples Services,Head of Education and Skills,Transport,230008,Contract Hire,06/08/2018,3473275-E10,"2,280.00",PRESTYS HACKNEY & PRIVATE HIRE TAXIS.
Regeneration and Local Services,Technical Services,Supplies and Services,304221,Equipment and Materials,06/08/2018,3473277-232613,916.83,PUDSEY DIAMOND ENGINEERING LTD.
Children and Young Peoples Services,Head of Education and Skills,Transport,230007,Contract Hire,06/08/2018,3473281-011A,"2,828.00",RAYNERS COACHES.
Children and Young Peoples Services,Head of Education and Skills,Transport,230007,Contract Hire,06/08/2018,3473281-64A,960.00,RAYNERS COACHES.
Children and Young Peoples Services,Head of Education and Skills,Transport,230007,Contract Hire,06/08/2018,3473281-64C,"1,624.00",RAYNERS COACHES.
Children and Young Peoples Services,Head of Education and Skills,Transport,230008,Contract Hire,06/08/2018,3473281-011A-M008,"1,200.00",RAYNERS COACHES.
Regeneration and Local Services,Spatial Policy Planning Assets & Environment,Supplies and Services,384199,Miscellaneous Expenses,06/08/2018,3473282-140722,700.00,RE ENACTMENT MERCENARIES.
Adult and Health Services,Commissioning inc Supporting People,Supplies and Services,384999,Miscellaneous Expenses,06/08/2018,3473283-4476,"3,909.90",REACH OUT CARE SUPPORT SERVICES LTD.
Adult and Health Services,Commissioning inc Supporting People,Third Party Payments 4THIRD,444002,Supporting People E444,06/08/2018,3473287-1967975,832.14,RICHMOND FELLOWSHIP.
Resources,Digital and Customer Services,Supplies and Services,304252,Equipment and Materials,06/08/2018,3473290-I070718,"1,950.00",RN SERVICE ENGINEERS LTD.
Children and Young Peoples Services,Head of Education and Skills,Transport,230008,Contract Hire,06/08/2018,3473292-0053,"1,425.00",RONS TAXI (CHESTER LE ST).
Regeneration and Local Services,Technical Services,Supplies and Services,304358,Equipment and Materials,06/08/2018,3473297-1617,"2,538.00",S & R LANDSCAPES.
Regeneration and Local Services,Direct Services,Stock A926,926004,Stock,06/08/2018,3473298-491019,789.15,S JENNINGS LTD.
Regeneration and Local Services,Direct Services,Transport,210057,Repair and Maintenance of Vehicles,06/08/2018,3473298-491024,"1,155.48",S JENNINGS LTD.
Children and Young Peoples Services,Head of Childrens Social Care,Third Party Payments 4THIRD,425021,Rendered by Voluntary Organisations,06/08/2018,3473299-IN001248,"19,026.30",S/C 202741 CAMBIAN INTERACT CARE SERVICES LTD.
Children and Young Peoples Services,Head of Childrens Social Care,Third Party Payments 4THIRD,425021,Rendered by Voluntary Organisations,06/08/2018,3473299-IN001275,"19,660.51",S/C 202741 CAMBIAN INTERACT CARE SERVICES LTD.
Adult and Health Services,Head of Adults,Third Party Payments 4THIRD,470101,Purchase of Care,06/08/2018,3473299-IN001301,"16,353.90",S/C 202741 CAMBIAN INTERACT CARE SERVICES LTD.
Regeneration and Local Services,Transport and Contracted Services,Third Party Payments 4THIRD,430106,Rendered by Private Contractors,06/08/2018,3473300-2740,"121,308.58",SCARLET BAND BUS & COACH LTD.
Dedicated Schools Grant,DSG High Needs Block,Supplies and Services,384199,Miscellaneous Expenses,06/08/2018,3473303-22,510.00,SHARON HOWARD T/A SH COUNSELLING SERVICES.
Regeneration and Local Services,Culture & Sport,Supplies and Services,384199,Miscellaneous Expenses,06/08/2018,3473304-1045,"1,175.00",SHIKKARI KARATE KAI.
Regeneration and Local Services,Direct Services,Supplies and Services,304221,Equipment and Materials,06/08/2018,3473307-00594909,721.13,SIG TRADING LTD T/A CARPET & FLOORING LTD.*
Children and Young Peoples Services,Head of Education and Skills,Transport,230012,Contract Hire,06/08/2018,3473309-936,825.00,SIMONS TAXIS.
Children and Young Peoples Services,Head of Education and Skills,Transport,230016,Contract Hire,06/08/2018,3473309-937,810.00,SIMONS TAXIS.
Children and Young Peoples Services,Head of Education and Skills,Transport,230008,Contract Hire,06/08/2018,3473309-935,"1,635.00",SIMONS TAXIS.
Resources,Digital and Customer Services,Supplies and Services,342033,Computers and Communications,06/08/2018,3473314-INV01954942,"1,479.54",SOFTCAT LTD.
Resources,Digital and Customer Services,Supplies and Services,342051,Computers and Communications,06/08/2018,3473314-INV01958666,"55,817.00",SOFTCAT LTD.
Regeneration and Local Services,Direct Services,Supplies and Services,304221,Equipment and Materials,06/08/2018,3473317-6288,750.00,ST ASTIER LTD.
Transformation and Partnerships,Partnerships & Community Engagement Div.,Supplies and Services,384086,Miscellaneous Expenses,06/08/2018,3473318-VOUCHER18NB-STAN009,"6,000.00",STANLEY EVENTS LTD.
Children and Young Peoples Services,Head of Education and Skills,Transport,230007,Contract Hire,06/08/2018,3473319-31360,600.60,STANLEY TRAVEL (NORTH EAST) LTD.
Children and Young Peoples Services,Head of Education and Skills,Transport,230009,Contract Hire,06/08/2018,3473319-31356-20/7/18,538.50,STANLEY TRAVEL (NORTH EAST) LTD.
Children and Young Peoples Services,Head of Education and Skills,Transport,230008,Contract Hire,06/08/2018,3473319-31346,"1,414.50",STANLEY TRAVEL (NORTH EAST) LTD.
Children and Young Peoples Services,Head of Education and Skills,Transport,230008,Contract Hire,06/08/2018,3473319-31348,727.50,STANLEY TRAVEL (NORTH EAST) LTD.
Children and Young Peoples Services,Head of Education and Skills,Transport,230008,Contract Hire,06/08/2018,3473319-31349-20/7/18,672.00,STANLEY TRAVEL (NORTH EAST) LTD.
Children and Young Peoples Services,Head of Education and Skills,Transport,230008,Contract Hire,06/08/2018,3473319-31350,"2,025.00",STANLEY TRAVEL (NORTH EAST) LTD.
Children and Young Peoples Services,Head of Education and Skills,Transport,230008,Contract Hire,06/08/2018,3473319-31351,"1,598.40",STANLEY TRAVEL (NORTH EAST) LTD.
Children and Young Peoples Services,Head of Education and Skills,Transport,230008,Contract Hire,06/08/2018,3473319-31353,"1,116.50",STANLEY TRAVEL (NORTH EAST) LTD.
Children and Young Peoples Services,Head of Education and Skills,Transport,230008,Contract Hire,06/08/2018,3473319-31354,"1,342.50",STANLEY TRAVEL (NORTH EAST) LTD.
Children and Young Peoples Services,Head of Education and Skills,Transport,230008,Contract Hire,06/08/2018,3473319-31355,"1,678.00",STANLEY TRAVEL (NORTH EAST) LTD.
Children and Young Peoples Services,Head of Education and Skills,Transport,230008,Contract Hire,06/08/2018,3473319-31359,"1,285.50",STANLEY TRAVEL (NORTH EAST) LTD.
Regeneration and Local Services,Technical Services,Supplies and Services,304221,Equipment and Materials,06/08/2018,3473321-107146,"3,831.76",STONEGRAVE AGGREGATES LTD.
Regeneration and Local Services,Technical Services,Supplies and Services,304221,Equipment and Materials,06/08/2018,3473321-107197,"1,261.60",STONEGRAVE AGGREGATES LTD.
Regeneration and Local Services,Technical Services,Supplies and Services,304221,Equipment and Materials,06/08/2018,3473321-107256,"1,071.40",STONEGRAVE AGGREGATES LTD.
Regeneration and Local Services,Technical Services,Supplies and Services,304221,Equipment and Materials,06/08/2018,3473321-107444,514.16,STONEGRAVE AGGREGATES LTD.
Regeneration and Local Services,Technical Services,Supplies and Services,304221,Equipment and Materials,06/08/2018,3473321-107566,836.80,STONEGRAVE AGGREGATES LTD.
Regeneration and Local Services,Technical Services,Stock A926,926900,Stock in hand-Inventory system,06/08/2018,3473326-2289032,"1,720.70",SUPPLIES TEAM LTD NOW KNOWN AS BANNER GROUP LTD.
Regeneration and Local Services,Direct Services,Supplies and Services,304221,Equipment and Materials,06/08/2018,3473327-2782255,"4,784.45",T CROSSLING & CO LTD.
Regeneration and Local Services,Technical Services,Supplies and Services,304221,Equipment and Materials,06/08/2018,3473330-9038464190,673.20,TARMAC TRADING LTD.
Regeneration and Local Services,Technical Services,Supplies and Services,304221,Equipment and Materials,06/08/2018,3473330-9038464893,872.26,TARMAC TRADING LTD.
Regeneration and Local Services,Technical Services,Supplies and Services,304221,Equipment and Materials,06/08/2018,3473330-9038464896,630.87,TARMAC TRADING LTD.
Regeneration and Local Services,Technical Services,Supplies and Services,304221,Equipment and Materials,06/08/2018,3473330-9038472234,673.20,TARMAC TRADING LTD.
Regeneration and Local Services,Technical Services,Supplies and Services,304221,Equipment and Materials,06/08/2018,3473330-9038472887,622.31,TARMAC TRADING LTD.
Regeneration and Local Services,Technical Services,Supplies and Services,304221,Equipment and Materials,06/08/2018,3473342-100990,"2,960.00",TOTAL RENTAL SOLUTIONS.
Regeneration and Local Services,Technical Services,Stock A926,926900,Stock in hand-Inventory system,06/08/2018,3473342-100991,"1,212.48",TOTAL RENTAL SOLUTIONS.
Regeneration and Local Services,Technical Services,Stock A926,926900,Stock in hand-Inventory system,06/08/2018,3473342-100992,898.80,TOTAL RENTAL SOLUTIONS.
Regeneration and Local Services,Technical Services,Stock A926,926900,Stock in hand-Inventory system,06/08/2018,3473342-100993,"1,200.00",TOTAL RENTAL SOLUTIONS.
Regeneration and Local Services,Technical Services,Stock A926,926900,Stock in hand-Inventory system,06/08/2018,3473342-100995,"3,013.82",TOTAL RENTAL SOLUTIONS.
Regeneration and Local Services,Technical Services,Stock A926,926900,Stock in hand-Inventory system,06/08/2018,3473342-100996,750.00,TOTAL RENTAL SOLUTIONS.
Children and Young Peoples Services,Childrens Services Operational Support,Supplies and Services,338089,Services,06/08/2018,3473344-00315,"2,218.61",TRACEY HILL TRAINING & CONSULTANCY LTD.
Regeneration and Local Services,Technical Services,Supplies and Services,304221,Equipment and Materials,06/08/2018,3473351-189136,"1,086.50",TYNEDALE ROADSTONE LTD.
Regeneration and Local Services,Technical Services,Supplies and Services,304221,Equipment and Materials,06/08/2018,3473351-189137,926.40,TYNEDALE ROADSTONE LTD.
Regeneration and Local Services,Technical Services,Supplies and Services,304221,Equipment and Materials,06/08/2018,3473351-189163,"1,101.10",TYNEDALE ROADSTONE LTD.
Regeneration and Local Services,Technical Services,Supplies and Services,304221,Equipment and Materials,06/08/2018,3473351-189165,618.10,TYNEDALE ROADSTONE LTD.
Regeneration and Local Services,Direct Services,Third Party Payments 4THIRD,430100,Rendered by Private Contractors,06/08/2018,3473356-INV484009,640.51,VERSALIFT DISTRIBUTORS (UK) LTD.
Regeneration and Local Services,Technical Services,Third Party Payments 4THIRD,430100,Rendered by Private Contractors,06/08/2018,3473359-396,"1,407.08",VINOVIUM ASSOCIATES LTD.
Children and Young Peoples Services,Head of Education and Skills,Transport,230007,Contract Hire,06/08/2018,3473366-23-20/7/18,672.00,WALTONS TAXIS.
Children and Young Peoples Services,Head of Education and Skills,Transport,230007,Contract Hire,06/08/2018,3473366-24-20/7/18,720.00,WALTONS TAXIS.
Regeneration and Local Services,Technical Services,Supplies and Services,304221,Equipment and Materials,06/08/2018,3473367-22017,"3,221.65",WARD TIMBER LTD.
Regeneration and Local Services,Technical Services,Fees,901002,Professional fees 901002,06/08/2018,3473368-NT60968,500.00,WARDELL ARMSTRONG LLP.
Regeneration and Local Services,Technical Services,Fees,901002,Professional fees 901002,06/08/2018,3473368-NT60969,"1,000.00",WARDELL ARMSTRONG LLP.
Children and Young Peoples Services,Head of Education and Skills,Transport,230007,Contract Hire,06/08/2018,3473370-4156/07/18,"1,725.00",WEARDALE MOTOR SERVICES LTD.
Children and Young Peoples Services,Head of Education and Skills,Transport,230003,Contract Hire,06/08/2018,3473370-STJOHN/JUL18/3223,"4,170.00",WEARDALE MOTOR SERVICES LTD.
Children and Young Peoples Services,Head of Education and Skills,Transport,230003,Contract Hire,06/08/2018,3473370-STJOHN/JUL18/3262,"2,085.00",WEARDALE MOTOR SERVICES LTD.
Children and Young Peoples Services,Head of Education and Skills,Transport,230008,Contract Hire,06/08/2018,3473370-W059/07/18,"2,400.00",WEARDALE MOTOR SERVICES LTD.
Children and Young Peoples Services,Head of Education and Skills,Transport,230007,Contract Hire,06/08/2018,3473371-7018,727.50,WEARDALE PRIVATE HIRE.
Children and Young Peoples Services,Head of Education and Skills,Transport,230007,Contract Hire,06/08/2018,3473371-7019-4042,"1,348.50",WEARDALE PRIVATE HIRE.
Children and Young Peoples Services,Head of Education and Skills,Transport,230007,Contract Hire,06/08/2018,3473371-7019-4071,750.00,WEARDALE PRIVATE HIRE.
Children and Young Peoples Services,Head of Education and Skills,Transport,230007,Contract Hire,06/08/2018,3473371-7019-4127,675.00,WEARDALE PRIVATE HIRE.
Children and Young Peoples Services,Head of Education and Skills,Transport,230008,Contract Hire,06/08/2018,3473371-7021,"1,897.50",WEARDALE PRIVATE HIRE.
Regeneration and Local Services,Technical Services,Premises,150015,Apportioned Exps of Operational Blds,06/08/2018,3473373-784984,637.14,WERNICK HIRE LTD.
Regeneration and Local Services,Direct Services,Premises,150015,Apportioned Exps of Operational Blds,06/08/2018,3473373-785072,671.58,WERNICK HIRE LTD.
Regeneration and Local Services,Direct Services,Premises,150015,Apportioned Exps of Operational Blds,06/08/2018,3473373-785082,737.10,WERNICK HIRE LTD.
Regeneration and Local Services,Direct Services,Supplies and Services,304221,Equipment and Materials,06/08/2018,3473376-11061,"1,200.00",WILF HUSBAND PLANT HIRE.
Regeneration and Local Services,Direct Services,Supplies and Services,304221,Equipment and Materials,06/08/2018,3473379-53568549,560.00,WOLSELEY UK LTD.
Regeneration and Local Services,Culture & Sport,Supplies and Services,384199,Miscellaneous Expenses,06/08/2018,3473380-INV522149,899.36,WORKWEAR EXPRESS LTD.
Resources,Digital and Customer Services,Stock A926,926900,Stock in hand-Inventory system,06/08/2018,3473381-KK89724,"4,773.40",XMA LTD.
Resources,Digital and Customer Services,Stock A926,926900,Stock in hand-Inventory system,06/08/2018,3473381-KK89820,954.68,XMA LTD.
Regeneration and Local Services,Direct Services,Transport,210057,Repair and Maintenance of Vehicles,06/08/2018,3473383-117593,533.66,ZOELLER WASTE SYSTEMS LTD.
Adult and Health Services,Head of Adults,Third Party Payments 4THIRD,470101,Purchase of Care,07/08/2018,3474459-2488858,"2,156.88",(USE 102450) LANGLEY HOUSE (DURHAM AGED MINEWORKERS HOMES ASSOCIATION).
Adult and Health Services,Head of Adults,Third Party Payments 4THIRD,470101,Purchase of Care,07/08/2018,3474459-2488948,"2,156.88",(USE 102450) LANGLEY HOUSE (DURHAM AGED MINEWORKERS HOMES ASSOCIATION).
Adult and Health Services,Head of Adults,Third Party Payments 4THIRD,470101,Purchase of Care,07/08/2018,3474459-2489056,"2,156.88",(USE 102450) LANGLEY HOUSE (DURHAM AGED MINEWORKERS HOMES ASSOCIATION).
Adult and Health Services,Head of Adults,Third Party Payments 4THIRD,470101,Purchase of Care,07/08/2018,3474459-2489097,"2,156.88",(USE 102450) LANGLEY HOUSE (DURHAM AGED MINEWORKERS HOMES ASSOCIATION).
Adult and Health Services,Head of Adults,Third Party Payments 4THIRD,470101,Purchase of Care,07/08/2018,3474459-2489116,"2,156.88",(USE 102450) LANGLEY HOUSE (DURHAM AGED MINEWORKERS HOMES ASSOCIATION).
Adult and Health Services,Head of Adults,Third Party Payments 4THIRD,470101,Purchase of Care,07/08/2018,3474459-2489244,"2,156.88",(USE 102450) LANGLEY HOUSE (DURHAM AGED MINEWORKERS HOMES ASSOCIATION).
Adult and Health Services,Head of Adults,Third Party Payments 4THIRD,470101,Purchase of Care,07/08/2018,3474459-2489283,"2,156.88",(USE 102450) LANGLEY HOUSE (DURHAM AGED MINEWORKERS HOMES ASSOCIATION).
Adult and Health Services,Head of Adults,Third Party Payments 4THIRD,470101,Purchase of Care,07/08/2018,3474459-2489539,"2,156.88",(USE 102450) LANGLEY HOUSE (DURHAM AGED MINEWORKERS HOMES ASSOCIATION).
Adult and Health Services,Head of Adults,Third Party Payments 4THIRD,470101,Purchase of Care,07/08/2018,3474459-2489657,"2,156.88",(USE 102450) LANGLEY HOUSE (DURHAM AGED MINEWORKERS HOMES ASSOCIATION).
Adult and Health Services,Head of Adults,Third Party Payments 4THIRD,470101,Purchase of Care,07/08/2018,3474459-2489796,"2,156.88",(USE 102450) LANGLEY HOUSE (DURHAM AGED MINEWORKERS HOMES ASSOCIATION).
Adult and Health Services,Head of Adults,Third Party Payments 4THIRD,470101,Purchase of Care,07/08/2018,3474459-2489797,"2,156.88",(USE 102450) LANGLEY HOUSE (DURHAM AGED MINEWORKERS HOMES ASSOCIATION).
Adult and Health Services,Head of Adults,Third Party Payments 4THIRD,470101,Purchase of Care,07/08/2018,3474459-2489945,"2,156.88",(USE 102450) LANGLEY HOUSE (DURHAM AGED MINEWORKERS HOMES ASSOCIATION).
Adult and Health Services,Head of Adults,Third Party Payments 4THIRD,470101,Purchase of Care,07/08/2018,3474459-2495319,"1,155.47",(USE 102450) LANGLEY HOUSE (DURHAM AGED MINEWORKERS HOMES ASSOCIATION).
Adult and Health Services,Head of Adults,Third Party Payments 4THIRD,471101,Purchase of Care,07/08/2018,3474459-2491866,"2,242.24",(USE 102450) LANGLEY HOUSE (DURHAM AGED MINEWORKERS HOMES ASSOCIATION).
Adult and Health Services,Head of Adults,Third Party Payments 4THIRD,471101,Purchase of Care,07/08/2018,3474459-2491925,"2,242.24",(USE 102450) LANGLEY HOUSE (DURHAM AGED MINEWORKERS HOMES ASSOCIATION).
Adult and Health Services,Head of Adults,Third Party Payments 4THIRD,471101,Purchase of Care,07/08/2018,3474459-2492119,"2,242.24",(USE 102450) LANGLEY HOUSE (DURHAM AGED MINEWORKERS HOMES ASSOCIATION).
Adult and Health Services,Head of Adults,Third Party Payments 4THIRD,471101,Purchase of Care,07/08/2018,3474459-2492140,"2,242.24",(USE 102450) LANGLEY HOUSE (DURHAM AGED MINEWORKERS HOMES ASSOCIATION).
Adult and Health Services,Head of Adults,Third Party Payments 4THIRD,471101,Purchase of Care,07/08/2018,3474459-2492244,"2,242.24",(USE 102450) LANGLEY HOUSE (DURHAM AGED MINEWORKERS HOMES ASSOCIATION).
Adult and Health Services,Head of Adults,Third Party Payments 4THIRD,471101,Purchase of Care,07/08/2018,3474459-2492401,"2,242.24",(USE 102450) LANGLEY HOUSE (DURHAM AGED MINEWORKERS HOMES ASSOCIATION).
Adult and Health Services,Head of Adults,Third Party Payments 4THIRD,474101,Purchase of Care,07/08/2018,3474545-2490071,"2,371.44",(USE 104002) REDWORTH HOUSE CARE CENTRE.
Adult and Health Services,Head of Adults,Third Party Payments 4THIRD,474101,Purchase of Care,07/08/2018,3474545-2490146,"2,371.44",(USE 104002) REDWORTH HOUSE CARE CENTRE.
Adult and Health Services,Head of Adults,Third Party Payments 4THIRD,474101,Purchase of Care,07/08/2018,3474545-2490411,"2,371.44",(USE 104002) REDWORTH HOUSE CARE CENTRE.
Adult and Health Services,Head of Adults,Third Party Payments 4THIRD,474101,Purchase of Care,07/08/2018,3474545-2490450,"2,371.44",(USE 104002) REDWORTH HOUSE CARE CENTRE.
Adult and Health Services,Head of Adults,Third Party Payments 4THIRD,474101,Purchase of Care,07/08/2018,3474545-2491482,"2,371.44",(USE 104002) REDWORTH HOUSE CARE CENTRE.
Adult and Health Services,Head of Adults,Third Party Payments 4THIRD,474101,Purchase of Care,07/08/2018,3474545-2491490,"2,371.44",(USE 104002) REDWORTH HOUSE CARE CENTRE.
Adult and Health Services,Head of Adults,Third Party Payments 4THIRD,474101,Purchase of Care,07/08/2018,3474545-2491508,"2,371.44",(USE 104002) REDWORTH HOUSE CARE CENTRE.
Adult and Health Services,Head of Adults,Third Party Payments 4THIRD,474101,Purchase of Care,07/08/2018,3474545-2491554,"1,185.72",(USE 104002) REDWORTH HOUSE CARE CENTRE.
Adult and Health Services,Head of Adults,Third Party Payments 4THIRD,474101,Purchase of Care,07/08/2018,3474545-2491564,"2,371.44",(USE 104002) REDWORTH HOUSE CARE CENTRE.
Adult and Health Services,Head of Adults,Third Party Payments 4THIRD,474101,Purchase of Care,07/08/2018,3474545-2491609,"1,185.72",(USE 104002) REDWORTH HOUSE CARE CENTRE.
Adult and Health Services,Head of Adults,Third Party Payments 4THIRD,474101,Purchase of Care,07/08/2018,3474545-2491736,"2,371.44",(USE 104002) REDWORTH HOUSE CARE CENTRE.
Adult and Health Services,Head of Adults,Third Party Payments 4THIRD,474101,Purchase of Care,07/08/2018,3474545-2491754,"2,371.44",(USE 104002) REDWORTH HOUSE CARE CENTRE.
Adult and Health Services,Head of Adults,Third Party Payments 4THIRD,474101,Purchase of Care,07/08/2018,3474545-2495268,"1,016.33",(USE 104002) REDWORTH HOUSE CARE CENTRE.
Adult and Health Services,Head of Adults,Third Party Payments 4THIRD,474101,Purchase of Care,07/08/2018,3474545-2495457,719.90,(USE 104002) REDWORTH HOUSE CARE CENTRE.
Adult and Health Services,Head of Adults,Third Party Payments 4THIRD,474101,Purchase of Care,07/08/2018,3474545-2495644,"1,185.72",(USE 104002) REDWORTH HOUSE CARE CENTRE.
Adult and Health Services,Head of Adults,Third Party Payments 4THIRD,474101,Purchase of Care,07/08/2018,3474545-2495716,"25,520.62",(USE 104002) REDWORTH HOUSE CARE CENTRE.
Adult and Health Services,Head of Adults,Third Party Payments 4THIRD,470101,Purchase of Care,07/08/2018,3474545-2489027,"2,279.00",(USE 104002) REDWORTH HOUSE CARE CENTRE.
Adult and Health Services,Head of Adults,Third Party Payments 4THIRD,470101,Purchase of Care,07/08/2018,3474545-2489171,"2,279.00",(USE 104002) REDWORTH HOUSE CARE CENTRE.
Adult and Health Services,Head of Adults,Third Party Payments 4THIRD,470101,Purchase of Care,07/08/2018,3474545-2489187,"2,279.00",(USE 104002) REDWORTH HOUSE CARE CENTRE.
Adult and Health Services,Head of Adults,Third Party Payments 4THIRD,470101,Purchase of Care,07/08/2018,3474545-2489752,"2,279.00",(USE 104002) REDWORTH HOUSE CARE CENTRE.
Adult and Health Services,Head of Adults,Third Party Payments 4THIRD,470101,Purchase of Care,07/08/2018,3474545-2489760,"2,279.00",(USE 104002) REDWORTH HOUSE CARE CENTRE.
Adult and Health Services,Head of Adults,Third Party Payments 4THIRD,470101,Purchase of Care,07/08/2018,3474545-2489773,"2,279.00",(USE 104002) REDWORTH HOUSE CARE CENTRE.
Adult and Health Services,Head of Adults,Third Party Payments 4THIRD,470101,Purchase of Care,07/08/2018,3474545-2489856,"2,279.00",(USE 104002) REDWORTH HOUSE CARE CENTRE.
Adult and Health Services,Head of Adults,Third Party Payments 4THIRD,470101,Purchase of Care,07/08/2018,3474545-2489868,"2,279.00",(USE 104002) REDWORTH HOUSE CARE CENTRE.
Adult and Health Services,Head of Adults,Third Party Payments 4THIRD,470101,Purchase of Care,07/08/2018,3474545-2490914,"2,279.00",(USE 104002) REDWORTH HOUSE CARE CENTRE.
Adult and Health Services,Head of Adults,Third Party Payments 4THIRD,470101,Purchase of Care,07/08/2018,3474545-2490950,"1,139.52",(USE 104002) REDWORTH HOUSE CARE CENTRE.
Adult and Health Services,Head of Adults,Third Party Payments 4THIRD,471101,Purchase of Care,07/08/2018,3474545-2491974,"2,363.08",(USE 104002) REDWORTH HOUSE CARE CENTRE.
Adult and Health Services,Head of Adults,Third Party Payments 4THIRD,471101,Purchase of Care,07/08/2018,3474545-2492066,"2,363.08",(USE 104002) REDWORTH HOUSE CARE CENTRE.
Adult and Health Services,Head of Adults,Third Party Payments 4THIRD,471101,Purchase of Care,07/08/2018,3474545-2492300,"2,363.08",(USE 104002) REDWORTH HOUSE CARE CENTRE.
Adult and Health Services,Head of Adults,Third Party Payments 4THIRD,471101,Purchase of Care,07/08/2018,3474545-2492355,"2,363.08",(USE 104002) REDWORTH HOUSE CARE CENTRE.
Adult and Health Services,Head of Adults,Third Party Payments 4THIRD,471101,Purchase of Care,07/08/2018,3474545-2492418,"2,363.08",(USE 104002) REDWORTH HOUSE CARE CENTRE.
Adult and Health Services,Head of Adults,Third Party Payments 4THIRD,471101,Purchase of Care,07/08/2018,3474545-2492444,"2,363.08",(USE 104002) REDWORTH HOUSE CARE CENTRE.
Adult and Health Services,Head of Adults,Third Party Payments 4THIRD,471101,Purchase of Care,07/08/2018,3474545-2492591,"2,363.08",(USE 104002) REDWORTH HOUSE CARE CENTRE.
Adult and Health Services,Head of Adults,Third Party Payments 4THIRD,471101,Purchase of Care,07/08/2018,3474545-2495261,717.35,(USE 104002) REDWORTH HOUSE CARE CENTRE.
Adult and Health Services,Head of Adults,Third Party Payments 4THIRD,470101,Purchase of Care,07/08/2018,3474478-2490733,"3,082.80",(USE 127646) MARY CROSS TRUST.
Adult and Health Services,Head of Adults,Third Party Payments 4THIRD,474101,Purchase of Care,07/08/2018,3474530-2490542,"2,011.16",(USE 163578) PERFECT CARE LTD T/A BELMONT GRANGE CARE HOME.
Adult and Health Services,Head of Adults,Third Party Payments 4THIRD,474101,Purchase of Care,07/08/2018,3474530-2490599,"2,011.16",(USE 163578) PERFECT CARE LTD T/A BELMONT GRANGE CARE HOME.
Adult and Health Services,Head of Adults,Third Party Payments 4THIRD,470101,Purchase of Care,07/08/2018,3474530-2488933,"1,919.00",(USE 163578) PERFECT CARE LTD T/A BELMONT GRANGE CARE HOME.
Adult and Health Services,Head of Adults,Third Party Payments 4THIRD,470101,Purchase of Care,07/08/2018,3474530-2488970,"1,919.00",(USE 163578) PERFECT CARE LTD T/A BELMONT GRANGE CARE HOME.
Adult and Health Services,Head of Adults,Third Party Payments 4THIRD,470101,Purchase of Care,07/08/2018,3474530-2489295,"1,919.00",(USE 163578) PERFECT CARE LTD T/A BELMONT GRANGE CARE HOME.
Adult and Health Services,Head of Adults,Third Party Payments 4THIRD,470101,Purchase of Care,07/08/2018,3474530-2489304,"1,919.00",(USE 163578) PERFECT CARE LTD T/A BELMONT GRANGE CARE HOME.
Adult and Health Services,Head of Adults,Third Party Payments 4THIRD,474101,Purchase of Care,07/08/2018,3474323-2490794,"2,848.00",(USE 201447) ABBEYMOOR CLINIC.
Adult and Health Services,Head of Adults,Third Party Payments 4THIRD,474101,Purchase of Care,07/08/2018,3474323-2495728,"1,727.46",(USE 201447) ABBEYMOOR CLINIC.
Adult and Health Services,Head of Adults,Third Party Payments 4THIRD,470101,Purchase of Care,07/08/2018,3474323-2490714,"2,000.00",(USE 201447) ABBEYMOOR CLINIC.
Adult and Health Services,Head of Adults,Third Party Payments 4THIRD,470101,Purchase of Care,07/08/2018,3474323-2495315,"1,019.48",(USE 201447) ABBEYMOOR CLINIC.
Adult and Health Services,Head of Adults,Third Party Payments 4THIRD,474101,Purchase of Care,07/08/2018,3474408-2490782,"2,221.72",(USE 201447) ELSWICK HALL CARE HOME.
Adult and Health Services,Head of Adults,Third Party Payments 4THIRD,470101,Purchase of Care,07/08/2018,3474392-2489371,"1,050.00",(USE 42626) DARLINGTON MANOR CARE HOME.
Adult and Health Services,Head of Adults,Third Party Payments 4THIRD,470101,Purchase of Care,07/08/2018,3474332-2474408,"2,204.00",(USE 42707) ANCHOR TRUST T/A NORTHBOURNE CARE HOME.
Adult and Health Services,Head of Adults,Third Party Payments 4THIRD,470101,Purchase of Care,07/08/2018,3474332-2489233,"2,714.00",(USE 42707) ANCHOR TRUST T/A NORTHBOURNE CARE HOME.
Adult and Health Services,Head of Adults,Third Party Payments 4THIRD,474101,Purchase of Care,07/08/2018,3474399-2491383,"2,800.00",(USE 42829) DR ANDREW ASHDOWN (STOCKTON LODGE CARE HOME).
Adult and Health Services,Head of Adults,Third Party Payments 4THIRD,474101,Purchase of Care,07/08/2018,3474399-2495427,508.16,(USE 42829) DR ANDREW ASHDOWN (STOCKTON LODGE CARE HOME).
Adult and Health Services,Head of Adults,Third Party Payments 4THIRD,470101,Purchase of Care,07/08/2018,3474399-2488787,"2,279.00",(USE 42829) DR ANDREW ASHDOWN (STOCKTON LODGE CARE HOME).
Adult and Health Services,Head of Adults,Third Party Payments 4THIRD,470101,Purchase of Care,07/08/2018,3474399-2489063,"2,279.00",(USE 42829) DR ANDREW ASHDOWN (STOCKTON LODGE CARE HOME).
Adult and Health Services,Head of Adults,Third Party Payments 4THIRD,470101,Purchase of Care,07/08/2018,3474399-2489271,"2,279.00",(USE 42829) DR ANDREW ASHDOWN (STOCKTON LODGE CARE HOME).
Adult and Health Services,Head of Adults,Third Party Payments 4THIRD,470101,Purchase of Care,07/08/2018,3474399-2489471,"2,279.00",(USE 42829) DR ANDREW ASHDOWN (STOCKTON LODGE CARE HOME).
Adult and Health Services,Head of Adults,Third Party Payments 4THIRD,470101,Purchase of Care,07/08/2018,3474399-2489629,"2,279.00",(USE 42829) DR ANDREW ASHDOWN (STOCKTON LODGE CARE HOME).
Adult and Health Services,Head of Adults,Third Party Payments 4THIRD,470101,Purchase of Care,07/08/2018,3474399-2489640,"2,279.00",(USE 42829) DR ANDREW ASHDOWN (STOCKTON LODGE CARE HOME).
Adult and Health Services,Head of Adults,Third Party Payments 4THIRD,470101,Purchase of Care,07/08/2018,3474399-2489806,"2,279.00",(USE 42829) DR ANDREW ASHDOWN (STOCKTON LODGE CARE HOME).
Adult and Health Services,Head of Adults,Third Party Payments 4THIRD,470101,Purchase of Care,07/08/2018,3474399-2489839,"2,279.00",(USE 42829) DR ANDREW ASHDOWN (STOCKTON LODGE CARE HOME).
Adult and Health Services,Head of Adults,Third Party Payments 4THIRD,470101,Purchase of Care,07/08/2018,3474399-2489871,"2,279.00",(USE 42829) DR ANDREW ASHDOWN (STOCKTON LODGE CARE HOME).
Adult and Health Services,Head of Adults,Third Party Payments 4THIRD,470101,Purchase of Care,07/08/2018,3474399-2494714,"7,325.36",(USE 42829) DR ANDREW ASHDOWN (STOCKTON LODGE CARE HOME).
Adult and Health Services,Head of Adults,Third Party Payments 4THIRD,470101,Purchase of Care,07/08/2018,3474399-2494800,"18,895.38",(USE 42829) DR ANDREW ASHDOWN (STOCKTON LODGE CARE HOME).
Adult and Health Services,Head of Adults,Third Party Payments 4THIRD,471101,Purchase of Care,07/08/2018,3474399-2492243,"2,363.08",(USE 42829) DR ANDREW ASHDOWN (STOCKTON LODGE CARE HOME).
Adult and Health Services,Head of Adults,Third Party Payments 4THIRD,471101,Purchase of Care,07/08/2018,3474399-2492333,"2,363.08",(USE 42829) DR ANDREW ASHDOWN (STOCKTON LODGE CARE HOME).
Adult and Health Services,Head of Adults,Third Party Payments 4THIRD,471101,Purchase of Care,07/08/2018,3474399-2492529,"2,363.08",(USE 42829) DR ANDREW ASHDOWN (STOCKTON LODGE CARE HOME).
Adult and Health Services,Head of Adults,Third Party Payments 4THIRD,471101,Purchase of Care,07/08/2018,3474399-2492551,"2,363.08",(USE 42829) DR ANDREW ASHDOWN (STOCKTON LODGE CARE HOME).
Adult and Health Services,Head of Adults,Third Party Payments 4THIRD,471101,Purchase of Care,07/08/2018,3474399-2492580,"2,363.08",(USE 42829) DR ANDREW ASHDOWN (STOCKTON LODGE CARE HOME).
Adult and Health Services,Head of Adults,Third Party Payments 4THIRD,471101,Purchase of Care,07/08/2018,3474399-2495640,"1,181.56",(USE 42829) DR ANDREW ASHDOWN (STOCKTON LODGE CARE HOME).
Adult and Health Services,Head of Adults,Third Party Payments 4THIRD,474101,Purchase of Care,07/08/2018,3474324-2491444,"2,393.16",(USE 42835) AKARI CARE LTD T/A PAVILION COURT CARE HOME.
Adult and Health Services,Head of Adults,Third Party Payments 4THIRD,474101,Purchase of Care,07/08/2018,3474325-2491512,"1,500.00",(USE 42835) AKARI CARE LTD T/A PHILIPS COURT.
Adult and Health Services,Head of Adults,Third Party Payments 4THIRD,474101,Purchase of Care,07/08/2018,3474325-2491595,"1,596.00",(USE 42835) AKARI CARE LTD T/A PHILIPS COURT.
Adult and Health Services,Head of Adults,Third Party Payments 4THIRD,474101,Purchase of Care,07/08/2018,3474325-2491633,"2,000.00",(USE 42835) AKARI CARE LTD T/A PHILIPS COURT.
Adult and Health Services,Head of Adults,Third Party Payments 4THIRD,474101,Purchase of Care,07/08/2018,3474325-2491634,"2,520.00",(USE 42835) AKARI CARE LTD T/A PHILIPS COURT.
Adult and Health Services,Head of Adults,Third Party Payments 4THIRD,470101,Purchase of Care,07/08/2018,3474325-2494816,"1,357.00",(USE 42835) AKARI CARE LTD T/A PHILIPS COURT.
Adult and Health Services,Head of Adults,Third Party Payments 4THIRD,470101,Purchase of Care,07/08/2018,3474326-2488760,"2,279.00",(USE 42835) AKARI CARE LTD T/A WESTERLEIGH NURSING HOME.
Adult and Health Services,Head of Adults,Third Party Payments 4THIRD,470101,Purchase of Care,07/08/2018,3474326-2488761,"2,279.00",(USE 42835) AKARI CARE LTD T/A WESTERLEIGH NURSING HOME.
Adult and Health Services,Head of Adults,Third Party Payments 4THIRD,470101,Purchase of Care,07/08/2018,3474326-2488797,"2,279.00",(USE 42835) AKARI CARE LTD T/A WESTERLEIGH NURSING HOME.
Adult and Health Services,Head of Adults,Third Party Payments 4THIRD,470101,Purchase of Care,07/08/2018,3474326-2488903,"2,279.00",(USE 42835) AKARI CARE LTD T/A WESTERLEIGH NURSING HOME.
Adult and Health Services,Head of Adults,Third Party Payments 4THIRD,470101,Purchase of Care,07/08/2018,3474326-2488980,"2,279.00",(USE 42835) AKARI CARE LTD T/A WESTERLEIGH NURSING HOME.
Adult and Health Services,Head of Adults,Third Party Payments 4THIRD,470101,Purchase of Care,07/08/2018,3474326-2488993,"2,279.00",(USE 42835) AKARI CARE LTD T/A WESTERLEIGH NURSING HOME.
Adult and Health Services,Head of Adults,Third Party Payments 4THIRD,470101,Purchase of Care,07/08/2018,3474326-2489085,"2,279.00",(USE 42835) AKARI CARE LTD T/A WESTERLEIGH NURSING HOME.
Adult and Health Services,Head of Adults,Third Party Payments 4THIRD,470101,Purchase of Care,07/08/2018,3474326-2489106,"2,279.00",(USE 42835) AKARI CARE LTD T/A WESTERLEIGH NURSING HOME.
Adult and Health Services,Head of Adults,Third Party Payments 4THIRD,470101,Purchase of Care,07/08/2018,3474326-2489167,651.14,(USE 42835) AKARI CARE LTD T/A WESTERLEIGH NURSING HOME.
Adult and Health Services,Head of Adults,Third Party Payments 4THIRD,470101,Purchase of Care,07/08/2018,3474326-2489191,"2,279.00",(USE 42835) AKARI CARE LTD T/A WESTERLEIGH NURSING HOME.
Adult and Health Services,Head of Adults,Third Party Payments 4THIRD,470101,Purchase of Care,07/08/2018,3474326-2489205,"2,279.00",(USE 42835) AKARI CARE LTD T/A WESTERLEIGH NURSING HOME.
Adult and Health Services,Head of Adults,Third Party Payments 4THIRD,470101,Purchase of Care,07/08/2018,3474326-2489293,"2,279.00",(USE 42835) AKARI CARE LTD T/A WESTERLEIGH NURSING HOME.
Adult and Health Services,Head of Adults,Third Party Payments 4THIRD,470101,Purchase of Care,07/08/2018,3474326-2489319,"2,279.00",(USE 42835) AKARI CARE LTD T/A WESTERLEIGH NURSING HOME.
Adult and Health Services,Head of Adults,Third Party Payments 4THIRD,470101,Purchase of Care,07/08/2018,3474326-2489429,"2,279.00",(USE 42835) AKARI CARE LTD T/A WESTERLEIGH NURSING HOME.
Adult and Health Services,Head of Adults,Third Party Payments 4THIRD,470101,Purchase of Care,07/08/2018,3474326-2489450,"2,279.00",(USE 42835) AKARI CARE LTD T/A WESTERLEIGH NURSING HOME.
Adult and Health Services,Head of Adults,Third Party Payments 4THIRD,470101,Purchase of Care,07/08/2018,3474326-2489589,"2,279.00",(USE 42835) AKARI CARE LTD T/A WESTERLEIGH NURSING HOME.
Adult and Health Services,Head of Adults,Third Party Payments 4THIRD,470101,Purchase of Care,07/08/2018,3474326-2489637,"2,279.00",(USE 42835) AKARI CARE LTD T/A WESTERLEIGH NURSING HOME.
Adult and Health Services,Head of Adults,Third Party Payments 4THIRD,470101,Purchase of Care,07/08/2018,3474326-2489659,"2,279.00",(USE 42835) AKARI CARE LTD T/A WESTERLEIGH NURSING HOME.
Adult and Health Services,Head of Adults,Third Party Payments 4THIRD,470101,Purchase of Care,07/08/2018,3474326-2489789,"2,279.00",(USE 42835) AKARI CARE LTD T/A WESTERLEIGH NURSING HOME.
Adult and Health Services,Head of Adults,Third Party Payments 4THIRD,470101,Purchase of Care,07/08/2018,3474326-2489803,"2,279.00",(USE 42835) AKARI CARE LTD T/A WESTERLEIGH NURSING HOME.
Adult and Health Services,Head of Adults,Third Party Payments 4THIRD,470101,Purchase of Care,07/08/2018,3474326-2489876,"2,279.00",(USE 42835) AKARI CARE LTD T/A WESTERLEIGH NURSING HOME.
Adult and Health Services,Head of Adults,Third Party Payments 4THIRD,470101,Purchase of Care,07/08/2018,3474326-2489883,"1,139.48",(USE 42835) AKARI CARE LTD T/A WESTERLEIGH NURSING HOME.
Adult and Health Services,Head of Adults,Third Party Payments 4THIRD,470101,Purchase of Care,07/08/2018,3474326-2489954,"2,279.00",(USE 42835) AKARI CARE LTD T/A WESTERLEIGH NURSING HOME.
Adult and Health Services,Head of Adults,Third Party Payments 4THIRD,470101,Purchase of Care,07/08/2018,3474326-2489970,"2,279.00",(USE 42835) AKARI CARE LTD T/A WESTERLEIGH NURSING HOME.
Adult and Health Services,Head of Adults,Third Party Payments 4THIRD,470101,Purchase of Care,07/08/2018,3474326-2490004,"2,279.00",(USE 42835) AKARI CARE LTD T/A WESTERLEIGH NURSING HOME.
Adult and Health Services,Head of Adults,Third Party Payments 4THIRD,470101,Purchase of Care,07/08/2018,3474326-2490010,"2,279.00",(USE 42835) AKARI CARE LTD T/A WESTERLEIGH NURSING HOME.
Adult and Health Services,Head of Adults,Third Party Payments 4THIRD,470101,Purchase of Care,07/08/2018,3474326-2494913,895.32,(USE 42835) AKARI CARE LTD T/A WESTERLEIGH NURSING HOME.
Adult and Health Services,Head of Adults,Third Party Payments 4THIRD,470101,Purchase of Care,07/08/2018,3474326-2495016,"4,802.18",(USE 42835) AKARI CARE LTD T/A WESTERLEIGH NURSING HOME.
Adult and Health Services,Head of Adults,Third Party Payments 4THIRD,470101,Purchase of Care,07/08/2018,3474326-2495039,"1,953.42",(USE 42835) AKARI CARE LTD T/A WESTERLEIGH NURSING HOME.
Adult and Health Services,Head of Adults,Third Party Payments 4THIRD,470101,Purchase of Care,07/08/2018,3474326-2495048,"1,302.28",(USE 42835) AKARI CARE LTD T/A WESTERLEIGH NURSING HOME.
Adult and Health Services,Head of Adults,Third Party Payments 4THIRD,471101,Purchase of Care,07/08/2018,3474326-2491840,"2,363.08",(USE 42835) AKARI CARE LTD T/A WESTERLEIGH NURSING HOME.
Adult and Health Services,Head of Adults,Third Party Payments 4THIRD,471101,Purchase of Care,07/08/2018,3474326-2491873,"2,363.08",(USE 42835) AKARI CARE LTD T/A WESTERLEIGH NURSING HOME.
Adult and Health Services,Head of Adults,Third Party Payments 4THIRD,471101,Purchase of Care,07/08/2018,3474326-2491945,"2,363.08",(USE 42835) AKARI CARE LTD T/A WESTERLEIGH NURSING HOME.
Adult and Health Services,Head of Adults,Third Party Payments 4THIRD,471101,Purchase of Care,07/08/2018,3474326-2491976,"2,363.08",(USE 42835) AKARI CARE LTD T/A WESTERLEIGH NURSING HOME.
Adult and Health Services,Head of Adults,Third Party Payments 4THIRD,471101,Purchase of Care,07/08/2018,3474326-2492032,"2,363.08",(USE 42835) AKARI CARE LTD T/A WESTERLEIGH NURSING HOME.
Adult and Health Services,Head of Adults,Third Party Payments 4THIRD,471101,Purchase of Care,07/08/2018,3474326-2492033,"2,363.08",(USE 42835) AKARI CARE LTD T/A WESTERLEIGH NURSING HOME.
Adult and Health Services,Head of Adults,Third Party Payments 4THIRD,471101,Purchase of Care,07/08/2018,3474326-2492173,"2,363.08",(USE 42835) AKARI CARE LTD T/A WESTERLEIGH NURSING HOME.
Adult and Health Services,Head of Adults,Third Party Payments 4THIRD,471101,Purchase of Care,07/08/2018,3474326-2492176,"2,363.08",(USE 42835) AKARI CARE LTD T/A WESTERLEIGH NURSING HOME.
Adult and Health Services,Head of Adults,Third Party Payments 4THIRD,471101,Purchase of Care,07/08/2018,3474326-2492260,"2,363.08",(USE 42835) AKARI CARE LTD T/A WESTERLEIGH NURSING HOME.
Adult and Health Services,Head of Adults,Third Party Payments 4THIRD,471101,Purchase of Care,07/08/2018,3474326-2492275,"2,363.08",(USE 42835) AKARI CARE LTD T/A WESTERLEIGH NURSING HOME.
Adult and Health Services,Head of Adults,Third Party Payments 4THIRD,471101,Purchase of Care,07/08/2018,3474326-2492303,"2,363.08",(USE 42835) AKARI CARE LTD T/A WESTERLEIGH NURSING HOME.
Adult and Health Services,Head of Adults,Third Party Payments 4THIRD,471101,Purchase of Care,07/08/2018,3474326-2492363,"2,363.08",(USE 42835) AKARI CARE LTD T/A WESTERLEIGH NURSING HOME.
Adult and Health Services,Head of Adults,Third Party Payments 4THIRD,471101,Purchase of Care,07/08/2018,3474326-2492393,"1,181.52",(USE 42835) AKARI CARE LTD T/A WESTERLEIGH NURSING HOME.
Adult and Health Services,Head of Adults,Third Party Payments 4THIRD,474101,Purchase of Care,07/08/2018,3474327-2490570,"2,271.32",(USE 42835) AKARI CARE LTD T/A WORDSWORTH HOUSE NURSING HOME.
Adult and Health Services,Head of Adults,Third Party Payments 4THIRD,474101,Purchase of Care,07/08/2018,3474447-2491339,"2,720.00",(USE 42866) HUNDENS PARK CARE CENTRE.
Adult and Health Services,Head of Adults,Third Party Payments 4THIRD,474101,Purchase of Care,07/08/2018,3474447-2491371,"2,584.00",(USE 42866) HUNDENS PARK CARE CENTRE.
Adult and Health Services,Head of Adults,Third Party Payments 4THIRD,474101,Purchase of Care,07/08/2018,3474447-2491372,"1,890.00",(USE 42866) HUNDENS PARK CARE CENTRE.
Adult and Health Services,Head of Adults,Third Party Payments 4THIRD,474101,Purchase of Care,07/08/2018,3474447-2491458,"1,980.00",(USE 42866) HUNDENS PARK CARE CENTRE.
Adult and Health Services,Head of Adults,Third Party Payments 4THIRD,474101,Purchase of Care,07/08/2018,3474447-2491531,"1,204.52",(USE 42866) HUNDENS PARK CARE CENTRE.
Adult and Health Services,Head of Adults,Third Party Payments 4THIRD,474101,Purchase of Care,07/08/2018,3474447-2491533,"2,584.00",(USE 42866) HUNDENS PARK CARE CENTRE.
Adult and Health Services,Head of Adults,Third Party Payments 4THIRD,474101,Purchase of Care,07/08/2018,3474447-2491556,"6,964.00",(USE 42866) HUNDENS PARK CARE CENTRE.
Adult and Health Services,Head of Adults,Third Party Payments 4THIRD,470101,Purchase of Care,07/08/2018,3474511-2489772,"1,056.00",(USE 42866) NORTH PARK CARE HOME.
Adult and Health Services,Head of Adults,Third Party Payments 4THIRD,471101,Purchase of Care,07/08/2018,3474511-2492313,"2,192.00",(USE 42866) NORTH PARK CARE HOME.
Adult and Health Services,Head of Adults,Third Party Payments 4THIRD,474101,Purchase of Care,07/08/2018,3474570-2472498,"2,700.00",(USE 42866) SOUTH VIEW NURSING HOME.
Adult and Health Services,Head of Adults,Third Party Payments 4THIRD,474101,Purchase of Care,07/08/2018,3474570-2472499,"2,478.00",(USE 42866) SOUTH VIEW NURSING HOME.
Adult and Health Services,Head of Adults,Third Party Payments 4THIRD,474101,Purchase of Care,07/08/2018,3474570-2474147,"2,990.00",(USE 42866) SOUTH VIEW NURSING HOME.
Adult and Health Services,Head of Adults,Third Party Payments 4THIRD,474101,Purchase of Care,07/08/2018,3474570-2474640,"2,950.00",(USE 42866) SOUTH VIEW NURSING HOME.
Adult and Health Services,Head of Adults,Third Party Payments 4THIRD,474101,Purchase of Care,07/08/2018,3474570-2474825,"2,950.00",(USE 42866) SOUTH VIEW NURSING HOME.
Adult and Health Services,Head of Adults,Third Party Payments 4THIRD,474101,Purchase of Care,07/08/2018,3474621-2490284,"1,908.00",(USE 42866) WESTMINSTER HEALTHCARE LTD.
Adult and Health Services,Head of Adults,Third Party Payments 4THIRD,474101,Purchase of Care,07/08/2018,3474455-2490105,"1,205.96",(USE 42902) KIMBLESWORTH NURSING HOME.
Adult and Health Services,Head of Adults,Third Party Payments 4THIRD,474101,Purchase of Care,07/08/2018,3474455-2490860,"2,034.76",(USE 42902) KIMBLESWORTH NURSING HOME.
Adult and Health Services,Head of Adults,Third Party Payments 4THIRD,474101,Purchase of Care,07/08/2018,3474455-2490862,"2,034.76",(USE 42902) KIMBLESWORTH NURSING HOME.
Adult and Health Services,Head of Adults,Third Party Payments 4THIRD,474101,Purchase of Care,07/08/2018,3474455-2490864,"1,175.04",(USE 42902) KIMBLESWORTH NURSING HOME.
Adult and Health Services,Head of Adults,Third Party Payments 4THIRD,474101,Purchase of Care,07/08/2018,3474455-2490866,"1,017.36",(USE 42902) KIMBLESWORTH NURSING HOME.
Adult and Health Services,Head of Adults,Third Party Payments 4THIRD,474101,Purchase of Care,07/08/2018,3474455-2490868,"1,477.32",(USE 42902) KIMBLESWORTH NURSING HOME.
Adult and Health Services,Head of Adults,Third Party Payments 4THIRD,474101,Purchase of Care,07/08/2018,3474455-2490870,"2,034.76",(USE 42902) KIMBLESWORTH NURSING HOME.
Adult and Health Services,Head of Adults,Third Party Payments 4THIRD,474101,Purchase of Care,07/08/2018,3474455-2490872,"2,034.76",(USE 42902) KIMBLESWORTH NURSING HOME.
Adult and Health Services,Head of Adults,Third Party Payments 4THIRD,474101,Purchase of Care,07/08/2018,3474455-2490874,"1,017.36",(USE 42902) KIMBLESWORTH NURSING HOME.
Adult and Health Services,Head of Adults,Third Party Payments 4THIRD,470101,Purchase of Care,07/08/2018,3474455-2490916,968.64,(USE 42902) KIMBLESWORTH NURSING HOME.
Adult and Health Services,Head of Adults,Third Party Payments 4THIRD,470101,Purchase of Care,07/08/2018,3474455-2490925,"1,937.32",(USE 42902) KIMBLESWORTH NURSING HOME.
Adult and Health Services,Head of Adults,Third Party Payments 4THIRD,470101,Purchase of Care,07/08/2018,3474455-2490936,"1,937.32",(USE 42902) KIMBLESWORTH NURSING HOME.
Adult and Health Services,Head of Adults,Third Party Payments 4THIRD,470101,Purchase of Care,07/08/2018,3474455-2490959,"1,134.24",(USE 42902) KIMBLESWORTH NURSING HOME.
Adult and Health Services,Head of Adults,Third Party Payments 4THIRD,474101,Purchase of Care,07/08/2018,3474430-2490116,"1,791.04",(USE 43168) GUARDIAN CARE HOMES (WEST) LTD T/A BOWBURN CARE CENTRE.
Adult and Health Services,Head of Adults,Third Party Payments 4THIRD,474101,Purchase of Care,07/08/2018,3474430-2490126,"2,371.44",(USE 43168) GUARDIAN CARE HOMES (WEST) LTD T/A BOWBURN CARE CENTRE.
Adult and Health Services,Head of Adults,Third Party Payments 4THIRD,474101,Purchase of Care,07/08/2018,3474430-2490141,"2,371.44",(USE 43168) GUARDIAN CARE HOMES (WEST) LTD T/A BOWBURN CARE CENTRE.
Adult and Health Services,Head of Adults,Third Party Payments 4THIRD,474101,Purchase of Care,07/08/2018,3474430-2490239,"1,427.76",(USE 43168) GUARDIAN CARE HOMES (WEST) LTD T/A BOWBURN CARE CENTRE.
Adult and Health Services,Head of Adults,Third Party Payments 4THIRD,474101,Purchase of Care,07/08/2018,3474430-2490376,"1,855.04",(USE 43168) GUARDIAN CARE HOMES (WEST) LTD T/A BOWBURN CARE CENTRE.
Adult and Health Services,Head of Adults,Third Party Payments 4THIRD,474101,Purchase of Care,07/08/2018,3474430-2490520,"2,371.44",(USE 43168) GUARDIAN CARE HOMES (WEST) LTD T/A BOWBURN CARE CENTRE.
Adult and Health Services,Head of Adults,Third Party Payments 4THIRD,474101,Purchase of Care,07/08/2018,3474430-2490630,"1,788.96",(USE 43168) GUARDIAN CARE HOMES (WEST) LTD T/A BOWBURN CARE CENTRE.
Adult and Health Services,Head of Adults,Third Party Payments 4THIRD,474101,Purchase of Care,07/08/2018,3474430-2491275,"1,750.52",(USE 43168) GUARDIAN CARE HOMES (WEST) LTD T/A BOWBURN CARE CENTRE.
Adult and Health Services,Head of Adults,Third Party Payments 4THIRD,474101,Purchase of Care,07/08/2018,3474430-2491322,"1,572.96",(USE 43168) GUARDIAN CARE HOMES (WEST) LTD T/A BOWBURN CARE CENTRE.
Adult and Health Services,Head of Adults,Third Party Payments 4THIRD,474101,Purchase of Care,07/08/2018,3474430-2491344,"2,371.44",(USE 43168) GUARDIAN CARE HOMES (WEST) LTD T/A BOWBURN CARE CENTRE.
Adult and Health Services,Head of Adults,Third Party Payments 4THIRD,474101,Purchase of Care,07/08/2018,3474430-2491363,"1,185.72",(USE 43168) GUARDIAN CARE HOMES (WEST) LTD T/A BOWBURN CARE CENTRE.
Adult and Health Services,Head of Adults,Third Party Payments 4THIRD,474101,Purchase of Care,07/08/2018,3474430-2491381,"2,371.44",(USE 43168) GUARDIAN CARE HOMES (WEST) LTD T/A BOWBURN CARE CENTRE.
Adult and Health Services,Head of Adults,Third Party Payments 4THIRD,474101,Purchase of Care,07/08/2018,3474430-2491704,"1,819.04",(USE 43168) GUARDIAN CARE HOMES (WEST) LTD T/A BOWBURN CARE CENTRE.
Adult and Health Services,Head of Adults,Third Party Payments 4THIRD,474101,Purchase of Care,07/08/2018,3474430-2494783,"2,371.44",(USE 43168) GUARDIAN CARE HOMES (WEST) LTD T/A BOWBURN CARE CENTRE.
Adult and Health Services,Head of Adults,Third Party Payments 4THIRD,474101,Purchase of Care,07/08/2018,3474430-2494998,"1,281.28",(USE 43168) GUARDIAN CARE HOMES (WEST) LTD T/A BOWBURN CARE CENTRE.
Adult and Health Services,Head of Adults,Third Party Payments 4THIRD,474101,Purchase of Care,07/08/2018,3474430-2495686,931.63,(USE 43168) GUARDIAN CARE HOMES (WEST) LTD T/A BOWBURN CARE CENTRE.
Adult and Health Services,Head of Adults,Third Party Payments 4THIRD,470101,Purchase of Care,07/08/2018,3474430-2488830,"1,582.44",(USE 43168) GUARDIAN CARE HOMES (WEST) LTD T/A BOWBURN CARE CENTRE.
Adult and Health Services,Head of Adults,Third Party Payments 4THIRD,470101,Purchase of Care,07/08/2018,3474430-2488958,"2,523.18",(USE 43168) GUARDIAN CARE HOMES (WEST) LTD T/A BOWBURN CARE CENTRE.
Adult and Health Services,Head of Adults,Third Party Payments 4THIRD,470101,Purchase of Care,07/08/2018,3474430-2489021,"1,530.80",(USE 43168) GUARDIAN CARE HOMES (WEST) LTD T/A BOWBURN CARE CENTRE.
Adult and Health Services,Head of Adults,Third Party Payments 4THIRD,470101,Purchase of Care,07/08/2018,3474430-2489194,"2,279.00",(USE 43168) GUARDIAN CARE HOMES (WEST) LTD T/A BOWBURN CARE CENTRE.
Adult and Health Services,Head of Adults,Third Party Payments 4THIRD,470101,Purchase of Care,07/08/2018,3474430-2489310,"2,279.00",(USE 43168) GUARDIAN CARE HOMES (WEST) LTD T/A BOWBURN CARE CENTRE.
Adult and Health Services,Head of Adults,Third Party Payments 4THIRD,470101,Purchase of Care,07/08/2018,3474430-2489323,"2,279.00",(USE 43168) GUARDIAN CARE HOMES (WEST) LTD T/A BOWBURN CARE CENTRE.
Adult and Health Services,Head of Adults,Third Party Payments 4THIRD,470101,Purchase of Care,07/08/2018,3474430-2489342,"2,279.00",(USE 43168) GUARDIAN CARE HOMES (WEST) LTD T/A BOWBURN CARE CENTRE.
Adult and Health Services,Head of Adults,Third Party Payments 4THIRD,470101,Purchase of Care,07/08/2018,3474430-2489400,"2,279.00",(USE 43168) GUARDIAN CARE HOMES (WEST) LTD T/A BOWBURN CARE CENTRE.
Adult and Health Services,Head of Adults,Third Party Payments 4THIRD,470101,Purchase of Care,07/08/2018,3474430-2489563,"2,279.00",(USE 43168) GUARDIAN CARE HOMES (WEST) LTD T/A BOWBURN CARE CENTRE.
Adult and Health Services,Head of Adults,Third Party Payments 4THIRD,470101,Purchase of Care,07/08/2018,3474430-2489726,"1,308.12",(USE 43168) GUARDIAN CARE HOMES (WEST) LTD T/A BOWBURN CARE CENTRE.
Adult and Health Services,Head of Adults,Third Party Payments 4THIRD,470101,Purchase of Care,07/08/2018,3474430-2489802,"1,282.32",(USE 43168) GUARDIAN CARE HOMES (WEST) LTD T/A BOWBURN CARE CENTRE.
Adult and Health Services,Head of Adults,Third Party Payments 4THIRD,470101,Purchase of Care,07/08/2018,3474430-2490944,"1,139.52",(USE 43168) GUARDIAN CARE HOMES (WEST) LTD T/A BOWBURN CARE CENTRE.
Adult and Health Services,Head of Adults,Third Party Payments 4THIRD,470101,Purchase of Care,07/08/2018,3474430-2494704,569.75,(USE 43168) GUARDIAN CARE HOMES (WEST) LTD T/A BOWBURN CARE CENTRE.
Adult and Health Services,Head of Adults,Third Party Payments 4THIRD,471101,Purchase of Care,07/08/2018,3474430-2491825,"1,657.60",(USE 43168) GUARDIAN CARE HOMES (WEST) LTD T/A BOWBURN CARE CENTRE.
Adult and Health Services,Head of Adults,Third Party Payments 4THIRD,471101,Purchase of Care,07/08/2018,3474430-2491828,"1,181.56",(USE 43168) GUARDIAN CARE HOMES (WEST) LTD T/A BOWBURN CARE CENTRE.
Adult and Health Services,Head of Adults,Third Party Payments 4THIRD,471101,Purchase of Care,07/08/2018,3474430-2491875,"2,363.08",(USE 43168) GUARDIAN CARE HOMES (WEST) LTD T/A BOWBURN CARE CENTRE.
Adult and Health Services,Head of Adults,Third Party Payments 4THIRD,471101,Purchase of Care,07/08/2018,3474430-2491883,"1,354.56",(USE 43168) GUARDIAN CARE HOMES (WEST) LTD T/A BOWBURN CARE CENTRE.
Adult and Health Services,Head of Adults,Third Party Payments 4THIRD,471101,Purchase of Care,07/08/2018,3474430-2491888,"2,363.08",(USE 43168) GUARDIAN CARE HOMES (WEST) LTD T/A BOWBURN CARE CENTRE.
Adult and Health Services,Head of Adults,Third Party Payments 4THIRD,471101,Purchase of Care,07/08/2018,3474430-2491896,"1,810.68",(USE 43168) GUARDIAN CARE HOMES (WEST) LTD T/A BOWBURN CARE CENTRE.
Adult and Health Services,Head of Adults,Third Party Payments 4THIRD,471101,Purchase of Care,07/08/2018,3474430-2492001,"2,667.68",(USE 43168) GUARDIAN CARE HOMES (WEST) LTD T/A BOWBURN CARE CENTRE.
Adult and Health Services,Head of Adults,Third Party Payments 4THIRD,471101,Purchase of Care,07/08/2018,3474430-2492004,"2,363.08",(USE 43168) GUARDIAN CARE HOMES (WEST) LTD T/A BOWBURN CARE CENTRE.
Adult and Health Services,Head of Adults,Third Party Payments 4THIRD,471101,Purchase of Care,07/08/2018,3474430-2492139,"1,505.24",(USE 43168) GUARDIAN CARE HOMES (WEST) LTD T/A BOWBURN CARE CENTRE.
Adult and Health Services,Head of Adults,Third Party Payments 4THIRD,471101,Purchase of Care,07/08/2018,3474430-2492162,"1,810.68",(USE 43168) GUARDIAN CARE HOMES (WEST) LTD T/A BOWBURN CARE CENTRE.
Adult and Health Services,Head of Adults,Third Party Payments 4THIRD,471101,Purchase of Care,07/08/2018,3474430-2492255,"2,363.08",(USE 43168) GUARDIAN CARE HOMES (WEST) LTD T/A BOWBURN CARE CENTRE.
Adult and Health Services,Head of Adults,Third Party Payments 4THIRD,471101,Purchase of Care,07/08/2018,3474430-2492387,"1,366.16",(USE 43168) GUARDIAN CARE HOMES (WEST) LTD T/A BOWBURN CARE CENTRE.
Adult and Health Services,Head of Adults,Third Party Payments 4THIRD,471101,Purchase of Care,07/08/2018,3474430-2492404,"1,811.40",(USE 43168) GUARDIAN CARE HOMES (WEST) LTD T/A BOWBURN CARE CENTRE.
Adult and Health Services,Head of Adults,Third Party Payments 4THIRD,471101,Purchase of Care,07/08/2018,3474430-2492472,"1,810.68",(USE 43168) GUARDIAN CARE HOMES (WEST) LTD T/A BOWBURN CARE CENTRE.
Adult and Health Services,Head of Adults,Third Party Payments 4THIRD,471101,Purchase of Care,07/08/2018,3474430-2492540,"1,528.80",(USE 43168) GUARDIAN CARE HOMES (WEST) LTD T/A BOWBURN CARE CENTRE.
Adult and Health Services,Head of Adults,Third Party Payments 4THIRD,471101,Purchase of Care,07/08/2018,3474430-2494701,"1,181.54",(USE 43168) GUARDIAN CARE HOMES (WEST) LTD T/A BOWBURN CARE CENTRE.
Adult and Health Services,Head of Adults,Third Party Payments 4THIRD,471101,Purchase of Care,07/08/2018,3474430-2494980,"1,097.14",(USE 43168) GUARDIAN CARE HOMES (WEST) LTD T/A BOWBURN CARE CENTRE.
Adult and Health Services,Head of Adults,Third Party Payments 4THIRD,471101,Purchase of Care,07/08/2018,3474430-2495603,"1,856.70",(USE 43168) GUARDIAN CARE HOMES (WEST) LTD T/A BOWBURN CARE CENTRE.
Adult and Health Services,Head of Adults,Third Party Payments 4THIRD,474101,Purchase of Care,07/08/2018,3474364-2490809,"4,896.00",(USE 43554) BOWES COURT CARE HOME.
Adult and Health Services,Head of Adults,Third Party Payments 4THIRD,474101,Purchase of Care,07/08/2018,3474364-2491270,"4,896.00",(USE 43554) BOWES COURT CARE HOME.
Adult and Health Services,Head of Adults,Third Party Payments 4THIRD,474101,Purchase of Care,07/08/2018,3474364-2495528,"6,260.00",(USE 43554) BOWES COURT CARE HOME.
Adult and Health Services,Head of Adults,Third Party Payments 4THIRD,470101,Purchase of Care,07/08/2018,3474364-2491007,"2,724.00",(USE 43554) BOWES COURT CARE HOME.
Adult and Health Services,Head of Adults,Third Party Payments 4THIRD,470101,Purchase of Care,07/08/2018,3474364-2491067,"2,645.88",(USE 43554) BOWES COURT CARE HOME.
Adult and Health Services,Head of Adults,Third Party Payments 4THIRD,470101,Purchase of Care,07/08/2018,3474364-2491135,"2,266.44",(USE 43554) BOWES COURT CARE HOME.
Adult and Health Services,Head of Adults,Third Party Payments 4THIRD,470101,Purchase of Care,07/08/2018,3474364-2495683,529.28,(USE 43554) BOWES COURT CARE HOME.
Adult and Health Services,Head of Adults,Third Party Payments 4THIRD,474101,Purchase of Care,07/08/2018,3474473-2490035,"2,286.74",(USE 43554) LYONS COURT CARE HOME.
Adult and Health Services,Head of Adults,Third Party Payments 4THIRD,474101,Purchase of Care,07/08/2018,3474473-2490085,"2,371.44",(USE 43554) LYONS COURT CARE HOME.
Adult and Health Services,Head of Adults,Third Party Payments 4THIRD,474101,Purchase of Care,07/08/2018,3474473-2490207,"2,371.44",(USE 43554) LYONS COURT CARE HOME.
Adult and Health Services,Head of Adults,Third Party Payments 4THIRD,474101,Purchase of Care,07/08/2018,3474473-2490243,"2,371.44",(USE 43554) LYONS COURT CARE HOME.
Adult and Health Services,Head of Adults,Third Party Payments 4THIRD,474101,Purchase of Care,07/08/2018,3474473-2490580,"2,371.44",(USE 43554) LYONS COURT CARE HOME.
Adult and Health Services,Head of Adults,Third Party Payments 4THIRD,474101,Purchase of Care,07/08/2018,3474473-2491336,"2,982.00",(USE 43554) LYONS COURT CARE HOME.
Adult and Health Services,Head of Adults,Third Party Payments 4THIRD,474101,Purchase of Care,07/08/2018,3474473-2491393,"2,982.00",(USE 43554) LYONS COURT CARE HOME.
Adult and Health Services,Head of Adults,Third Party Payments 4THIRD,474101,Purchase of Care,07/08/2018,3474473-2491495,"5,680.00",(USE 43554) LYONS COURT CARE HOME.
Adult and Health Services,Head of Adults,Third Party Payments 4THIRD,474101,Purchase of Care,07/08/2018,3474473-2491586,"2,680.00",(USE 43554) LYONS COURT CARE HOME.
Adult and Health Services,Head of Adults,Third Party Payments 4THIRD,474101,Purchase of Care,07/08/2018,3474473-2491588,"2,982.00",(USE 43554) LYONS COURT CARE HOME.
Adult and Health Services,Head of Adults,Third Party Payments 4THIRD,474101,Purchase of Care,07/08/2018,3474473-2491706,"1,185.72",(USE 43554) LYONS COURT CARE HOME.
Adult and Health Services,Head of Adults,Third Party Payments 4THIRD,474101,Purchase of Care,07/08/2018,3474473-2491757,"2,371.44",(USE 43554) LYONS COURT CARE HOME.
Adult and Health Services,Head of Adults,Third Party Payments 4THIRD,474101,Purchase of Care,07/08/2018,3474473-2495043,"1,101.02",(USE 43554) LYONS COURT CARE HOME.
Adult and Health Services,Head of Adults,Third Party Payments 4THIRD,474101,Purchase of Care,07/08/2018,3474473-2495300,931.63,(USE 43554) LYONS COURT CARE HOME.
Adult and Health Services,Head of Adults,Third Party Payments 4THIRD,470101,Purchase of Care,07/08/2018,3474473-2488938,"2,279.00",(USE 43554) LYONS COURT CARE HOME.
Adult and Health Services,Head of Adults,Third Party Payments 4THIRD,470101,Purchase of Care,07/08/2018,3474473-2489777,"2,279.00",(USE 43554) LYONS COURT CARE HOME.
Adult and Health Services,Head of Adults,Third Party Payments 4THIRD,470101,Purchase of Care,07/08/2018,3474473-2489985,"2,279.00",(USE 43554) LYONS COURT CARE HOME.
Adult and Health Services,Head of Adults,Third Party Payments 4THIRD,471101,Purchase of Care,07/08/2018,3474473-2491901,"2,363.08",(USE 43554) LYONS COURT CARE HOME.
Adult and Health Services,Head of Adults,Third Party Payments 4THIRD,471101,Purchase of Care,07/08/2018,3474473-2492105,"2,363.08",(USE 43554) LYONS COURT CARE HOME.
Adult and Health Services,Head of Adults,Third Party Payments 4THIRD,471101,Purchase of Care,07/08/2018,3474473-2492253,"2,363.08",(USE 43554) LYONS COURT CARE HOME.
Adult and Health Services,Head of Adults,Third Party Payments 4THIRD,471101,Purchase of Care,07/08/2018,3474473-2492351,"2,363.08",(USE 43554) LYONS COURT CARE HOME.
Adult and Health Services,Head of Adults,Third Party Payments 4THIRD,471101,Purchase of Care,07/08/2018,3474473-2492392,"2,363.08",(USE 43554) LYONS COURT CARE HOME.
Adult and Health Services,Head of Adults,Third Party Payments 4THIRD,474101,Purchase of Care,07/08/2018,3474573-2490768,"3,080.32",(USE 43554) ST AIDENS COTTAGE.
Adult and Health Services,Head of Adults,Third Party Payments 4THIRD,474101,Purchase of Care,07/08/2018,3474573-2490825,"3,041.64",(USE 43554) ST AIDENS COTTAGE.
Adult and Health Services,Head of Adults,Third Party Payments 4THIRD,474101,Purchase of Care,07/08/2018,3474573-2490842,"3,041.64",(USE 43554) ST AIDENS COTTAGE.
Adult and Health Services,Head of Adults,Third Party Payments 4THIRD,474101,Purchase of Care,07/08/2018,3474573-2490846,"3,041.64",(USE 43554) ST AIDENS COTTAGE.
Adult and Health Services,Head of Adults,Third Party Payments 4THIRD,474101,Purchase of Care,07/08/2018,3474573-2490848,"3,041.64",(USE 43554) ST AIDENS COTTAGE.
Adult and Health Services,Head of Adults,Third Party Payments 4THIRD,474101,Purchase of Care,07/08/2018,3474573-2490850,"3,041.64",(USE 43554) ST AIDENS COTTAGE.
Adult and Health Services,Head of Adults,Third Party Payments 4THIRD,474101,Purchase of Care,07/08/2018,3474573-2490852,"3,041.64",(USE 43554) ST AIDENS COTTAGE.
Adult and Health Services,Head of Adults,Third Party Payments 4THIRD,474101,Purchase of Care,07/08/2018,3474573-2491255,"4,896.00",(USE 43554) ST AIDENS COTTAGE.
Adult and Health Services,Head of Adults,Third Party Payments 4THIRD,470101,Purchase of Care,07/08/2018,3474573-2490702,"2,246.12",(USE 43554) ST AIDENS COTTAGE.
Adult and Health Services,Head of Adults,Third Party Payments 4THIRD,470101,Purchase of Care,07/08/2018,3474573-2490707,"2,519.40",(USE 43554) ST AIDENS COTTAGE.
Adult and Health Services,Head of Adults,Third Party Payments 4THIRD,470101,Purchase of Care,07/08/2018,3474573-2490708,"1,234.80",(USE 43554) ST AIDENS COTTAGE.
Adult and Health Services,Head of Adults,Third Party Payments 4THIRD,470101,Purchase of Care,07/08/2018,3474573-2490709,"2,184.52",(USE 43554) ST AIDENS COTTAGE.
Adult and Health Services,Head of Adults,Third Party Payments 4THIRD,470101,Purchase of Care,07/08/2018,3474573-2490710,"2,184.52",(USE 43554) ST AIDENS COTTAGE.
Adult and Health Services,Head of Adults,Third Party Payments 4THIRD,470101,Purchase of Care,07/08/2018,3474573-2490725,"2,640.80",(USE 43554) ST AIDENS COTTAGE.
Adult and Health Services,Head of Adults,Third Party Payments 4THIRD,470101,Purchase of Care,07/08/2018,3474573-2490727,"3,049.80",(USE 43554) ST AIDENS COTTAGE.
Adult and Health Services,Head of Adults,Third Party Payments 4THIRD,470101,Purchase of Care,07/08/2018,3474573-2490853,"2,963.52",(USE 43554) ST AIDENS COTTAGE.
Adult and Health Services,Head of Adults,Third Party Payments 4THIRD,470101,Purchase of Care,07/08/2018,3474573-2490854,648.28,(USE 43554) ST AIDENS COTTAGE.
Adult and Health Services,Head of Adults,Third Party Payments 4THIRD,470101,Purchase of Care,07/08/2018,3474573-2490966,"2,231.76",(USE 43554) ST AIDENS COTTAGE.
Adult and Health Services,Head of Adults,Third Party Payments 4THIRD,470101,Purchase of Care,07/08/2018,3474573-2491042,"4,896.00",(USE 43554) ST AIDENS COTTAGE.
Adult and Health Services,Head of Adults,Third Party Payments 4THIRD,470101,Purchase of Care,07/08/2018,3474573-2491070,"2,003.84",(USE 43554) ST AIDENS COTTAGE.
Adult and Health Services,Head of Adults,Third Party Payments 4THIRD,470101,Purchase of Care,07/08/2018,3474573-2491071,"2,003.84",(USE 43554) ST AIDENS COTTAGE.
Adult and Health Services,Head of Adults,Third Party Payments 4THIRD,470101,Purchase of Care,07/08/2018,3474573-2495703,529.28,(USE 43554) ST AIDENS COTTAGE.
Adult and Health Services,Head of Adults,Third Party Payments 4THIRD,474101,Purchase of Care,07/08/2018,3474427-2491524,"1,437.50",(USE 43836) GAINFORD CARE HOMES T/A LINDISFARNE CRAWCROOK CARE HOME.
Adult and Health Services,Head of Adults,Third Party Payments 4THIRD,474101,Purchase of Care,07/08/2018,3474467-2490179,"2,371.44",(USE 43836) LINDISFARNE CARE HOME (GAINFORD CARE HOMES LTD).
Adult and Health Services,Head of Adults,Third Party Payments 4THIRD,474101,Purchase of Care,07/08/2018,3474467-2490292,"2,371.44",(USE 43836) LINDISFARNE CARE HOME (GAINFORD CARE HOMES LTD).
Adult and Health Services,Head of Adults,Third Party Payments 4THIRD,474101,Purchase of Care,07/08/2018,3474467-2490407,"2,371.44",(USE 43836) LINDISFARNE CARE HOME (GAINFORD CARE HOMES LTD).
Adult and Health Services,Head of Adults,Third Party Payments 4THIRD,474101,Purchase of Care,07/08/2018,3474467-2490491,"2,371.44",(USE 43836) LINDISFARNE CARE HOME (GAINFORD CARE HOMES LTD).
Adult and Health Services,Head of Adults,Third Party Payments 4THIRD,474101,Purchase of Care,07/08/2018,3474467-2490500,"2,371.44",(USE 43836) LINDISFARNE CARE HOME (GAINFORD CARE HOMES LTD).
Adult and Health Services,Head of Adults,Third Party Payments 4THIRD,474101,Purchase of Care,07/08/2018,3474467-2490650,"1,185.72",(USE 43836) LINDISFARNE CARE HOME (GAINFORD CARE HOMES LTD).
Adult and Health Services,Head of Adults,Third Party Payments 4THIRD,474101,Purchase of Care,07/08/2018,3474467-2490905,"2,371.44",(USE 43836) LINDISFARNE CARE HOME (GAINFORD CARE HOMES LTD).
Adult and Health Services,Head of Adults,Third Party Payments 4THIRD,474101,Purchase of Care,07/08/2018,3474467-2491273,"2,371.44",(USE 43836) LINDISFARNE CARE HOME (GAINFORD CARE HOMES LTD).
Adult and Health Services,Head of Adults,Third Party Payments 4THIRD,474101,Purchase of Care,07/08/2018,3474467-2491459,"1,185.72",(USE 43836) LINDISFARNE CARE HOME (GAINFORD CARE HOMES LTD).
Adult and Health Services,Head of Adults,Third Party Payments 4THIRD,474101,Purchase of Care,07/08/2018,3474467-2491474,"2,371.44",(USE 43836) LINDISFARNE CARE HOME (GAINFORD CARE HOMES LTD).
Adult and Health Services,Head of Adults,Third Party Payments 4THIRD,474101,Purchase of Care,07/08/2018,3474467-2491690,"2,371.44",(USE 43836) LINDISFARNE CARE HOME (GAINFORD CARE HOMES LTD).
Adult and Health Services,Head of Adults,Third Party Payments 4THIRD,474101,Purchase of Care,07/08/2018,3474467-2491716,"2,371.44",(USE 43836) LINDISFARNE CARE HOME (GAINFORD CARE HOMES LTD).
Adult and Health Services,Head of Adults,Third Party Payments 4THIRD,474101,Purchase of Care,07/08/2018,3474467-2491720,"2,371.44",(USE 43836) LINDISFARNE CARE HOME (GAINFORD CARE HOMES LTD).
Adult and Health Services,Head of Adults,Third Party Payments 4THIRD,474101,Purchase of Care,07/08/2018,3474467-2491764,"2,371.44",(USE 43836) LINDISFARNE CARE HOME (GAINFORD CARE HOMES LTD).
Adult and Health Services,Head of Adults,Third Party Payments 4THIRD,470101,Purchase of Care,07/08/2018,3474467-2489156,"2,279.00",(USE 43836) LINDISFARNE CARE HOME (GAINFORD CARE HOMES LTD).
Adult and Health Services,Head of Adults,Third Party Payments 4THIRD,470101,Purchase of Care,07/08/2018,3474467-2489239,"2,279.00",(USE 43836) LINDISFARNE CARE HOME (GAINFORD CARE HOMES LTD).
Adult and Health Services,Head of Adults,Third Party Payments 4THIRD,470101,Purchase of Care,07/08/2018,3474467-2489552,"2,279.00",(USE 43836) LINDISFARNE CARE HOME (GAINFORD CARE HOMES LTD).
Adult and Health Services,Head of Adults,Third Party Payments 4THIRD,470101,Purchase of Care,07/08/2018,3474467-2489596,"2,279.00",(USE 43836) LINDISFARNE CARE HOME (GAINFORD CARE HOMES LTD).
Adult and Health Services,Head of Adults,Third Party Payments 4THIRD,470101,Purchase of Care,07/08/2018,3474467-2489963,"2,279.00",(USE 43836) LINDISFARNE CARE HOME (GAINFORD CARE HOMES LTD).
Adult and Health Services,Head of Adults,Third Party Payments 4THIRD,471101,Purchase of Care,07/08/2018,3474467-2491811,"1,181.56",(USE 43836) LINDISFARNE CARE HOME (GAINFORD CARE HOMES LTD).
Adult and Health Services,Head of Adults,Third Party Payments 4THIRD,471101,Purchase of Care,07/08/2018,3474467-2491933,"2,363.08",(USE 43836) LINDISFARNE CARE HOME (GAINFORD CARE HOMES LTD).
Adult and Health Services,Head of Adults,Third Party Payments 4THIRD,471101,Purchase of Care,07/08/2018,3474467-2491934,"2,363.08",(USE 43836) LINDISFARNE CARE HOME (GAINFORD CARE HOMES LTD).
Adult and Health Services,Head of Adults,Third Party Payments 4THIRD,471101,Purchase of Care,07/08/2018,3474467-2492019,"2,363.08",(USE 43836) LINDISFARNE CARE HOME (GAINFORD CARE HOMES LTD).
Adult and Health Services,Head of Adults,Third Party Payments 4THIRD,471101,Purchase of Care,07/08/2018,3474467-2492051,"2,363.08",(USE 43836) LINDISFARNE CARE HOME (GAINFORD CARE HOMES LTD).
Adult and Health Services,Head of Adults,Third Party Payments 4THIRD,471101,Purchase of Care,07/08/2018,3474467-2492086,"2,363.08",(USE 43836) LINDISFARNE CARE HOME (GAINFORD CARE HOMES LTD).
Adult and Health Services,Head of Adults,Third Party Payments 4THIRD,471101,Purchase of Care,07/08/2018,3474467-2492109,"1,181.52",(USE 43836) LINDISFARNE CARE HOME (GAINFORD CARE HOMES LTD).
Adult and Health Services,Head of Adults,Third Party Payments 4THIRD,471101,Purchase of Care,07/08/2018,3474467-2492174,"1,181.52",(USE 43836) LINDISFARNE CARE HOME (GAINFORD CARE HOMES LTD).
Adult and Health Services,Head of Adults,Third Party Payments 4THIRD,471101,Purchase of Care,07/08/2018,3474467-2492236,"2,363.08",(USE 43836) LINDISFARNE CARE HOME (GAINFORD CARE HOMES LTD).
Adult and Health Services,Head of Adults,Third Party Payments 4THIRD,471101,Purchase of Care,07/08/2018,3474467-2492301,"2,363.08",(USE 43836) LINDISFARNE CARE HOME (GAINFORD CARE HOMES LTD).
Adult and Health Services,Head of Adults,Third Party Payments 4THIRD,471101,Purchase of Care,07/08/2018,3474467-2492314,"1,181.52",(USE 43836) LINDISFARNE CARE HOME (GAINFORD CARE HOMES LTD).
Adult and Health Services,Head of Adults,Third Party Payments 4THIRD,471101,Purchase of Care,07/08/2018,3474467-2492549,"2,363.08",(USE 43836) LINDISFARNE CARE HOME (GAINFORD CARE HOMES LTD).
Adult and Health Services,Head of Adults,Third Party Payments 4THIRD,471101,Purchase of Care,07/08/2018,3474467-2492559,"2,363.08",(USE 43836) LINDISFARNE CARE HOME (GAINFORD CARE HOMES LTD).
Adult and Health Services,Head of Adults,Third Party Payments 4THIRD,471101,Purchase of Care,07/08/2018,3474467-2492575,"2,363.08",(USE 43836) LINDISFARNE CARE HOME (GAINFORD CARE HOMES LTD).
Adult and Health Services,Head of Adults,Third Party Payments 4THIRD,471101,Purchase of Care,07/08/2018,3474467-2492582,"2,363.08",(USE 43836) LINDISFARNE CARE HOME (GAINFORD CARE HOMES LTD).
Adult and Health Services,Head of Adults,Third Party Payments 4THIRD,471101,Purchase of Care,07/08/2018,3474467-2492594,"2,363.08",(USE 43836) LINDISFARNE CARE HOME (GAINFORD CARE HOMES LTD).
Adult and Health Services,Head of Adults,Third Party Payments 4THIRD,471101,Purchase of Care,07/08/2018,3474467-2495073,"2,700.66",(USE 43836) LINDISFARNE CARE HOME (GAINFORD CARE HOMES LTD).
Adult and Health Services,Head of Adults,Third Party Payments 4THIRD,474101,Purchase of Care,07/08/2018,3474468-2490150,"2,371.44",(USE 43836) LINDISFARNE CARE HOME.
Adult and Health Services,Head of Adults,Third Party Payments 4THIRD,474101,Purchase of Care,07/08/2018,3474468-2490221,"2,371.44",(USE 43836) LINDISFARNE CARE HOME.
Adult and Health Services,Head of Adults,Third Party Payments 4THIRD,474101,Purchase of Care,07/08/2018,3474468-2490261,"2,371.44",(USE 43836) LINDISFARNE CARE HOME.
Adult and Health Services,Head of Adults,Third Party Payments 4THIRD,474101,Purchase of Care,07/08/2018,3474468-2494907,"1,439.80",(USE 43836) LINDISFARNE CARE HOME.
Adult and Health Services,Head of Adults,Third Party Payments 4THIRD,474101,Purchase of Care,07/08/2018,3474468-2495256,592.86,(USE 43836) LINDISFARNE CARE HOME.
Adult and Health Services,Head of Adults,Third Party Payments 4THIRD,470101,Purchase of Care,07/08/2018,3474468-2488952,"2,279.00",(USE 43836) LINDISFARNE CARE HOME.
Adult and Health Services,Head of Adults,Third Party Payments 4THIRD,470101,Purchase of Care,07/08/2018,3474468-2489095,"2,279.00",(USE 43836) LINDISFARNE CARE HOME.
Adult and Health Services,Head of Adults,Third Party Payments 4THIRD,470101,Purchase of Care,07/08/2018,3474468-2489198,"2,279.00",(USE 43836) LINDISFARNE CARE HOME.
Adult and Health Services,Head of Adults,Third Party Payments 4THIRD,470101,Purchase of Care,07/08/2018,3474468-2489336,"2,279.00",(USE 43836) LINDISFARNE CARE HOME.
Adult and Health Services,Head of Adults,Third Party Payments 4THIRD,470101,Purchase of Care,07/08/2018,3474468-2489421,"2,279.00",(USE 43836) LINDISFARNE CARE HOME.
Adult and Health Services,Head of Adults,Third Party Payments 4THIRD,470101,Purchase of Care,07/08/2018,3474468-2489445,"2,279.00",(USE 43836) LINDISFARNE CARE HOME.
Adult and Health Services,Head of Adults,Third Party Payments 4THIRD,470101,Purchase of Care,07/08/2018,3474468-2489571,"2,279.00",(USE 43836) LINDISFARNE CARE HOME.
Adult and Health Services,Head of Adults,Third Party Payments 4THIRD,470101,Purchase of Care,07/08/2018,3474468-2489693,"2,279.00",(USE 43836) LINDISFARNE CARE HOME.
Adult and Health Services,Head of Adults,Third Party Payments 4THIRD,470101,Purchase of Care,07/08/2018,3474468-2489742,"2,279.00",(USE 43836) LINDISFARNE CARE HOME.
Adult and Health Services,Head of Adults,Third Party Payments 4THIRD,471101,Purchase of Care,07/08/2018,3474468-2491929,"2,363.08",(USE 43836) LINDISFARNE CARE HOME.
Adult and Health Services,Head of Adults,Third Party Payments 4THIRD,471101,Purchase of Care,07/08/2018,3474468-2491958,"2,363.08",(USE 43836) LINDISFARNE CARE HOME.
Adult and Health Services,Head of Adults,Third Party Payments 4THIRD,471101,Purchase of Care,07/08/2018,3474468-2492048,"2,363.08",(USE 43836) LINDISFARNE CARE HOME.
Adult and Health Services,Head of Adults,Third Party Payments 4THIRD,471101,Purchase of Care,07/08/2018,3474468-2492268,"1,181.52",(USE 43836) LINDISFARNE CARE HOME.
Adult and Health Services,Head of Adults,Third Party Payments 4THIRD,471101,Purchase of Care,07/08/2018,3474468-2492417,"2,363.08",(USE 43836) LINDISFARNE CARE HOME.
Adult and Health Services,Head of Adults,Third Party Payments 4THIRD,471101,Purchase of Care,07/08/2018,3474468-2492589,"2,363.08",(USE 43836) LINDISFARNE CARE HOME.
Adult and Health Services,Head of Adults,Third Party Payments 4THIRD,471101,Purchase of Care,07/08/2018,3474468-2492593,"2,363.08",(USE 43836) LINDISFARNE CARE HOME.
Adult and Health Services,Head of Adults,Third Party Payments 4THIRD,471101,Purchase of Care,07/08/2018,3474468-2492595,"2,363.08",(USE 43836) LINDISFARNE CARE HOME.
Adult and Health Services,Head of Adults,Third Party Payments 4THIRD,471101,Purchase of Care,07/08/2018,3474468-2492601,"2,363.08",(USE 43836) LINDISFARNE CARE HOME.
Adult and Health Services,Head of Adults,Third Party Payments 4THIRD,471101,Purchase of Care,07/08/2018,3474468-2492603,"2,363.08",(USE 43836) LINDISFARNE CARE HOME.
Adult and Health Services,Head of Adults,Third Party Payments 4THIRD,471101,Purchase of Care,07/08/2018,3474468-2495060,"1,012.74",(USE 43836) LINDISFARNE CARE HOME.
Adult and Health Services,Head of Adults,Third Party Payments 4THIRD,474101,Purchase of Care,07/08/2018,3474469-2490463,"2,371.44",(USE 43836) LINDISFARNE.
Adult and Health Services,Head of Adults,Third Party Payments 4THIRD,474101,Purchase of Care,07/08/2018,3474469-2490788,"2,575.28",(USE 43836) LINDISFARNE.
Adult and Health Services,Head of Adults,Third Party Payments 4THIRD,474101,Purchase of Care,07/08/2018,3474469-2490897,"1,185.72",(USE 43836) LINDISFARNE.
Adult and Health Services,Head of Adults,Third Party Payments 4THIRD,474101,Purchase of Care,07/08/2018,3474469-2491312,"2,371.44",(USE 43836) LINDISFARNE.
Adult and Health Services,Head of Adults,Third Party Payments 4THIRD,474101,Purchase of Care,07/08/2018,3474469-2491517,"1,185.72",(USE 43836) LINDISFARNE.
Adult and Health Services,Head of Adults,Third Party Payments 4THIRD,474101,Purchase of Care,07/08/2018,3474469-2491536,"2,371.44",(USE 43836) LINDISFARNE.
Adult and Health Services,Head of Adults,Third Party Payments 4THIRD,474101,Purchase of Care,07/08/2018,3474469-2491549,"2,371.44",(USE 43836) LINDISFARNE.
Adult and Health Services,Head of Adults,Third Party Payments 4THIRD,474101,Purchase of Care,07/08/2018,3474469-2491575,"2,371.44",(USE 43836) LINDISFARNE.
Adult and Health Services,Head of Adults,Third Party Payments 4THIRD,474101,Purchase of Care,07/08/2018,3474469-2491579,"1,185.72",(USE 43836) LINDISFARNE.
Adult and Health Services,Head of Adults,Third Party Payments 4THIRD,474101,Purchase of Care,07/08/2018,3474469-2491590,"2,371.44",(USE 43836) LINDISFARNE.
Adult and Health Services,Head of Adults,Third Party Payments 4THIRD,474101,Purchase of Care,07/08/2018,3474469-2491637,"1,185.72",(USE 43836) LINDISFARNE.
Adult and Health Services,Head of Adults,Third Party Payments 4THIRD,474101,Purchase of Care,07/08/2018,3474469-2491646,"2,371.44",(USE 43836) LINDISFARNE.
Adult and Health Services,Head of Adults,Third Party Payments 4THIRD,474101,Purchase of Care,07/08/2018,3474469-2491692,"2,371.44",(USE 43836) LINDISFARNE.
Adult and Health Services,Head of Adults,Third Party Payments 4THIRD,474101,Purchase of Care,07/08/2018,3474469-2495034,762.24,(USE 43836) LINDISFARNE.
Adult and Health Services,Head of Adults,Third Party Payments 4THIRD,470101,Purchase of Care,07/08/2018,3474469-2489359,"1,430.32",(USE 43836) LINDISFARNE.
Adult and Health Services,Head of Adults,Third Party Payments 4THIRD,470101,Purchase of Care,07/08/2018,3474469-2489488,"2,279.00",(USE 43836) LINDISFARNE.
Adult and Health Services,Head of Adults,Third Party Payments 4THIRD,470101,Purchase of Care,07/08/2018,3474469-2489582,"2,279.00",(USE 43836) LINDISFARNE.
Adult and Health Services,Head of Adults,Third Party Payments 4THIRD,470101,Purchase of Care,07/08/2018,3474469-2489817,"2,279.00",(USE 43836) LINDISFARNE.
Adult and Health Services,Head of Adults,Third Party Payments 4THIRD,470101,Purchase of Care,07/08/2018,3474469-2495015,"7,081.18",(USE 43836) LINDISFARNE.
Adult and Health Services,Head of Adults,Third Party Payments 4THIRD,470101,Purchase of Care,07/08/2018,3474469-2495767,"4,476.61",(USE 43836) LINDISFARNE.
Adult and Health Services,Head of Adults,Third Party Payments 4THIRD,471101,Purchase of Care,07/08/2018,3474469-2491815,"5,148.13",(USE 43836) LINDISFARNE.
Adult and Health Services,Head of Adults,Third Party Payments 4THIRD,471101,Purchase of Care,07/08/2018,3474469-2491869,"2,363.08",(USE 43836) LINDISFARNE.
Adult and Health Services,Head of Adults,Third Party Payments 4THIRD,471101,Purchase of Care,07/08/2018,3474469-2491962,"2,363.08",(USE 43836) LINDISFARNE.
Adult and Health Services,Head of Adults,Third Party Payments 4THIRD,471101,Purchase of Care,07/08/2018,3474469-2492384,"2,363.08",(USE 43836) LINDISFARNE.
Adult and Health Services,Head of Adults,Third Party Payments 4THIRD,470101,Purchase of Care,07/08/2018,3474395-2488954,"2,279.00",(USE 44049) DERWENT CARE HOME.
Adult and Health Services,Head of Adults,Third Party Payments 4THIRD,470101,Purchase of Care,07/08/2018,3474395-2488959,"2,279.00",(USE 44049) DERWENT CARE HOME.
Adult and Health Services,Head of Adults,Third Party Payments 4THIRD,470101,Purchase of Care,07/08/2018,3474395-2488994,"2,279.00",(USE 44049) DERWENT CARE HOME.
Adult and Health Services,Head of Adults,Third Party Payments 4THIRD,470101,Purchase of Care,07/08/2018,3474395-2489427,"2,279.00",(USE 44049) DERWENT CARE HOME.
